{"text_format":"1","workbook":"xlsx","n_sheets":2,"sheets":["Pasiūlymas","Subtiekėjai ir priedai"],"not_rendered":{"charts":0,"images":0,"macros":1,"external_links":0,"defined_names":0,"comments":0,"pivot_tables":0},"unopened":[],"bounds":{"document_bytes":16777216,"sheet_cells":100000,"rows_first":2000,"rows_last":500,"rows_between":2000,"halvings":0,"cell_chars":16384,"cell_head_chars":4096},"cells_cut":0,"cells_raw":0,"read":"whole","date_system":"1900"}

{"sheet":"Pasiūlymas","index":0,"n_rows":3390,"n_cols":7,"rows_kept":3390,"cut":false,"hidden":false,"merged":[[19,2,19,5],[27,0,27,5],[28,0,28,5],[24,0,24,5],[25,0,25,5],[26,0,26,5],[29,0,29,2],[29,3,29,5],[11,0,11,1],[12,0,12,1],[13,0,13,1],[14,0,14,1],[15,0,15,1],[16,0,16,1],[17,0,17,1],[18,0,18,1],[23,0,23,5],[19,0,19,1],[20,0,20,1],[20,2,20,5],[22,0,22,5],[18,2,18,5],[11,2,11,5],[16,2,16,5],[17,2,17,5],[12,2,12,5],[13,2,13,5],[14,2,14,5],[15,2,15,5]]}
[]
["PIRKIMO SĄLYGŲ PRIEDAS \"PASIŪLYMŲ FORMA\""]
[]
["MEDIKAMENTAI PERKAMI NE PER CPO ELEKTRONINĮ KATALOGĄ "]
[]
["Kam:","VšĮ LSMU Kauno ligoninė"]
[]
["Data:","2022-05-04"]
["Nr.:","20220509/591915"]
["Vieta:","Vilnius"]
[]
["Tiekėjo pavadinimas / Ūkio subjektų grupės nariai:",null,"Fresenius Kabi Baltics UAB"]
["Tiekėjo kodas (-ai):",null,302992398]
["Tiekėjo adresas (-ai):",null,"J. Basanavičiaus g. 26, LT-03244, Vilnius, Lietuva"]
["Tiekėjo PVM mokėtojo kodas(-ai):",null,"LT100007642217"]
["Tiekėjo / Ūkio subjektų grupės atsakingo partnerio sąskaitos numeris, banko pavadinimas ir banko kodas (-ai):",null,"FI47 8421 0710 0114 32, Danske Bank A/S Finland Branch, SWIFT/ BIC DABAFIHH"]
["Asmens atsakingo už pasiūlymą vardas, pavardė:",null,"Daina Virkšaitė"]
["Asmens atsakingo už pasiūlymą telefono numeris, el. pašto adresas:",null,"tel. 8521 93406, daina.virksaite@fresenius-kabi.com"]
["Tiekėjo / Ūkio subjektų grupės, laimėjimo atveju, pasirašančio sutartį asmens vardas, pavardė, pareigos:",null,"Baltijos valstybių regiono vadovė Violeta Bajelienė"]
["Tiekėjo / Ūkio subjektų grupės, laimėjimo atveju, už sutarties vykdymą atsakingo asmens vardas, pavardė, telefono numeris, elektroninio pašto adresas:",null,"Vaidutė Daugytė, tel. 8 525 05681, orders.baltics@fresenius-kabi.com"]
["(1) Tiekėjo / Ūkio subjektų grupės narių, (2) ūkio subjektų, kurių pajėgumais remiamasi, ir (3) jei pašalinimo pagrindai taikomi visiems subtiekėjams - subtiekėjų, kolegialaus priežiūros organo (Stebėtojų tarybos) ir (ar) kolegialaus valdymo organo (Valdybos) narių sąrašas (jei sudaryta) ir (ar) asmuo, kuriam suteikti VPĮ 46 str. 2 d. 2 p. numatyti įgaliojimai",null,null,null,null,null,{"$f":"IF((SUMPRODUCT(--(C21=\"\"))>0), \"Privaloma užpildyti, kai taikomi pašalinimo pagrindai\", \"\")","v":"Privaloma užpildyti, kai taikomi pašalinimo pagrindai"}]
[]
["Tiekėjo patvirtinimai:"]
["1. Šiuo pasiūlymu pažymime, kad sutinkame su visomi pirkimo sąlygomis, nustatytomis:"]
["1.1. viešojo pirkimo dokumentuose"]
["1.2. kituose pirkimo dokumentuose (jų paaiškinimuose, papildymuose)."]
["2. Patvirtiname, kad informacija ir duomenys, pateikti pasiūlyme, yra teisingi ir apima viską, ko reikia tinkamam sutarties įvykdymui"]
["3. Patvirtiname, kad jei pasiūlyme nenurodyti kolegialaus priežiūros/valdymo organų nariai, šie organai juridiniuose asmenyse nėra sudaryti (taikoma, kai pirkimo dokumentuose nustatyti pašalinimo pagrindai)."]
["4. Pasiūlymas galioja iki termino, nustatyto pirkimo dokumentuose."]
["5. Tais atvejais, kai pagal galiojančius teisės aktus tiekėjui nereikia mokėti PVM, jis nurodo priežastis, dėl kurių PVM nemoka:"]
[]
["1. DALIS","1ML GERIAMŲJŲ LAŠŲ YRA VAISTINIO VALERIJONŲ ŠAKNŲ 1,2G SUKATŽOLŲ ŽOLĖS 1,2G, APYNIŲ SPURGŲ 0,8G, PIPIRMĖTĖS LAPŲ 0,8G"]
[]
["Tiekėjo pasiūlymas:"]
["Nr.","Pavadinimas","Kiekis","Mato vienetas","Įkainis be PVM, Eur","Suma be PVM, Eur","Siūlomo produkto pavadinimas, dozė, kiekis pakuotėje, gamintojas. Būtina pažymėti, kuris vaistas yra  vardinis"]
["1.","1ml geriamųjų lašų yra Vaistinio valerijonų šaknų 1,2g sukatžolų žolės 1,2g, apynių spurgų 0,8g, pipirmėtės lapų 0,8g"]
["1.1.","1ml geriamųjų lašų yra Vaistinio valerijonų šaknų 1,2g sukatžolų žolės 1,2g, apynių spurgų 0,8g, pipirmėtės lapų 0,8g",2000,"ml",null,{"$f":"IF(ISBLANK(E37),\"\", PRODUCT(C37,E37))","v":""}]
[null,null,null,null,"Suma be PVM",{"$f":"IF(F37=\"\",\"\",SUM(F37:F37))","v":""},{"$f":"IF(F37=\"\",\"Neužpildytos visos objektų kainos\",\"\")","v":"Neužpildytos visos objektų kainos"}]
[null,null,null,null,"PVM suma"]
[null,null,null,null,"Suma su PVM",{"$f":"IF(ISBLANK(F39), \"\", SUM(F38:F39))","v":""},"Dalies biudžetas su PVM: 556,5 Eur"]
[]
[]
[]
["2. DALIS","ACETILCISTEINAS 300 MG 3 ML INJ"]
[]
["Tiekėjo pasiūlymas:"]
["Nr.","Pavadinimas","Kiekis","Mato vienetas","Įkainis be PVM, Eur","Suma be PVM, Eur","Siūlomo produkto pavadinimas, dozė, kiekis pakuotėje, gamintojas. Būtina pažymėti, kuris vaistas yra  vardinis"]
["2.","Acetilcisteinas 300 mg 3 ml "]
["2.1.","Acetilcisteinas 300 mg 3 ml",30,"amp.",null,{"$f":"IF(ISBLANK(E49),\"\", PRODUCT(C49,E49))","v":""}]
[null,null,null,null,"Suma be PVM",{"$f":"IF(F49=\"\",\"\",SUM(F49:F49))","v":""},{"$f":"IF(F49=\"\",\"Neužpildytos visos objektų kainos\",\"\")","v":"Neužpildytos visos objektų kainos"}]
[null,null,null,null,"PVM suma"]
[null,null,null,null,"Suma su PVM",{"$f":"IF(ISBLANK(F51), \"\", SUM(F50:F51))","v":""},"Dalies biudžetas su PVM: 28,35 Eur"]
[]
[]
[]
["3. DALIS","ACETONUM"]
[]
["Tiekėjo pasiūlymas:"]
["Nr.","Pavadinimas","Kiekis","Mato vienetas","Įkainis be PVM, Eur","Suma be PVM, Eur","Siūlomo produkto pavadinimas, dozė, kiekis pakuotėje, gamintojas. Būtina pažymėti, kuris vaistas yra  vardinis"]
["3.","Acetonum"]
["3.1.","Acetonum",8,"l",null,{"$f":"IF(ISBLANK(E61),\"\", PRODUCT(C61,E61))","v":""}]
[null,null,null,null,"Suma be PVM",{"$f":"IF(F61=\"\",\"\",SUM(F61:F61))","v":""},{"$f":"IF(F61=\"\",\"Neužpildytos visos objektų kainos\",\"\")","v":"Neužpildytos visos objektų kainos"}]
[null,null,null,null,"PVM suma"]
[null,null,null,null,"Suma su PVM",{"$f":"IF(ISBLANK(F63), \"\", SUM(F62:F63))","v":""},"Dalies biudžetas su PVM: 105 Eur"]
[]
[]
[]
["4. DALIS","ACIDUM ACETICUM"]
[]
["Tiekėjo pasiūlymas:"]
["Nr.","Pavadinimas","Kiekis","Mato vienetas","Įkainis be PVM, Eur","Suma be PVM, Eur","Siūlomo produkto pavadinimas, dozė, kiekis pakuotėje, gamintojas. Būtina pažymėti, kuris vaistas yra  vardinis"]
["4.","Acidum aceticum"]
["4.1.","Acidum aceticum",2,"l",null,{"$f":"IF(ISBLANK(E73),\"\", PRODUCT(C73,E73))","v":""}]
[null,null,null,null,"Suma be PVM",{"$f":"IF(F73=\"\",\"\",SUM(F73:F73))","v":""},{"$f":"IF(F73=\"\",\"Neužpildytos visos objektų kainos\",\"\")","v":"Neužpildytos visos objektų kainos"}]
[null,null,null,null,"PVM suma"]
[null,null,null,null,"Suma su PVM",{"$f":"IF(ISBLANK(F75), \"\", SUM(F74:F75))","v":""},"Dalies biudžetas su PVM: 15,75 Eur"]
[]
[]
[]
["5. DALIS","ACIDUM CITRICUM"]
[]
["Tiekėjo pasiūlymas:"]
["Nr.","Pavadinimas","Kiekis","Mato vienetas","Įkainis be PVM, Eur","Suma be PVM, Eur","Siūlomo produkto pavadinimas, dozė, kiekis pakuotėje, gamintojas. Būtina pažymėti, kuris vaistas yra  vardinis"]
["5.","Acidum citricum"]
["5.1.","Acidum citricum",2,"kg",null,{"$f":"IF(ISBLANK(E85),\"\", PRODUCT(C85,E85))","v":""}]
[null,null,null,null,"Suma be PVM",{"$f":"IF(F85=\"\",\"\",SUM(F85:F85))","v":""},{"$f":"IF(F85=\"\",\"Neužpildytos visos objektų kainos\",\"\")","v":"Neužpildytos visos objektų kainos"}]
[null,null,null,null,"PVM suma"]
[null,null,null,null,"Suma su PVM",{"$f":"IF(ISBLANK(F87), \"\", SUM(F86:F87))","v":""},"Dalies biudžetas su PVM: 26,25 Eur"]
[]
[]
[]
["6. DALIS","ACIDUM FOLICUM"]
[]
["Tiekėjo pasiūlymas:"]
["Nr.","Pavadinimas","Kiekis","Mato vienetas","Įkainis be PVM, Eur","Suma be PVM, Eur","Siūlomo produkto pavadinimas, dozė, kiekis pakuotėje, gamintojas. Būtina pažymėti, kuris vaistas yra  vardinis"]
["6.","Acidum folicum"]
["6.1.","Acidum folicum",50,"g",null,{"$f":"IF(ISBLANK(E97),\"\", PRODUCT(C97,E97))","v":""}]
[null,null,null,null,"Suma be PVM",{"$f":"IF(F97=\"\",\"\",SUM(F97:F97))","v":""},{"$f":"IF(F97=\"\",\"Neužpildytos visos objektų kainos\",\"\")","v":"Neužpildytos visos objektų kainos"}]
[null,null,null,null,"PVM suma"]
[null,null,null,null,"Suma su PVM",{"$f":"IF(ISBLANK(F99), \"\", SUM(F98:F99))","v":""},"Dalies biudžetas su PVM: 231 Eur"]
[]
[]
[]
["7. DALIS","ACIDUM FOLICUM 400MCG"]
[]
["Tiekėjo pasiūlymas:"]
["Nr.","Pavadinimas","Kiekis","Mato vienetas","Įkainis be PVM, Eur","Suma be PVM, Eur","Siūlomo produkto pavadinimas, dozė, kiekis pakuotėje, gamintojas. Būtina pažymėti, kuris vaistas yra  vardinis"]
["7.","Acidum folicum 400mcg"]
["7.1.","Acidum folicum 400mcg",3300,"tab.",null,{"$f":"IF(ISBLANK(E109),\"\", PRODUCT(C109,E109))","v":""}]
[null,null,null,null,"Suma be PVM",{"$f":"IF(F109=\"\",\"\",SUM(F109:F109))","v":""},{"$f":"IF(F109=\"\",\"Neužpildytos visos objektų kainos\",\"\")","v":"Neužpildytos visos objektų kainos"}]
[null,null,null,null,"PVM suma"]
[null,null,null,null,"Suma su PVM",{"$f":"IF(ISBLANK(F111), \"\", SUM(F110:F111))","v":""},"Dalies biudžetas su PVM: 187,69 Eur"]
[]
[]
[]
["8. DALIS","ACIDUM FOLICUM 800MCG"]
[]
["Tiekėjo pasiūlymas:"]
["Nr.","Pavadinimas","Kiekis","Mato vienetas","Įkainis be PVM, Eur","Suma be PVM, Eur","Siūlomo produkto pavadinimas, dozė, kiekis pakuotėje, gamintojas. Būtina pažymėti, kuris vaistas yra  vardinis"]
["8.","Acidum folicum 800mcg"]
["8.1.","Acidum folicum 800mcg",600,"tab.",null,{"$f":"IF(ISBLANK(E121),\"\", PRODUCT(C121,E121))","v":""}]
[null,null,null,null,"Suma be PVM",{"$f":"IF(F121=\"\",\"\",SUM(F121:F121))","v":""},{"$f":"IF(F121=\"\",\"Neužpildytos visos objektų kainos\",\"\")","v":"Neužpildytos visos objektų kainos"}]
[null,null,null,null,"PVM suma"]
[null,null,null,null,"Suma su PVM",{"$f":"IF(ISBLANK(F123), \"\", SUM(F122:F123))","v":""},"Dalies biudžetas su PVM: 81,9 Eur"]
[]
[]
[]
["9. DALIS","ACIDUM SALICYLICUM"]
[]
["Tiekėjo pasiūlymas:"]
["Nr.","Pavadinimas","Kiekis","Mato vienetas","Įkainis be PVM, Eur","Suma be PVM, Eur","Siūlomo produkto pavadinimas, dozė, kiekis pakuotėje, gamintojas. Būtina pažymėti, kuris vaistas yra  vardinis"]
["9.","Acidum salicylicum"]
["9.1.","Acidum salicylicum",3,"kg",null,{"$f":"IF(ISBLANK(E133),\"\", PRODUCT(C133,E133))","v":""}]
[null,null,null,null,"Suma be PVM",{"$f":"IF(F133=\"\",\"\",SUM(F133:F133))","v":""},{"$f":"IF(F133=\"\",\"Neužpildytos visos objektų kainos\",\"\")","v":"Neužpildytos visos objektų kainos"}]
[null,null,null,null,"PVM suma"]
[null,null,null,null,"Suma su PVM",{"$f":"IF(ISBLANK(F135), \"\", SUM(F134:F135))","v":""},"Dalies biudžetas su PVM: 94,5 Eur"]
[]
[]
[]
["10. DALIS","ADATĖLĖS PLASTIKINĖS ODOS DŪRIO MĖGINIAMS ATLIKTI"]
[]
["Tiekėjo pasiūlymas:"]
["Nr.","Pavadinimas","Kiekis","Mato vienetas","Įkainis be PVM, Eur","Suma be PVM, Eur","Siūlomo produkto pavadinimas, dozė, kiekis pakuotėje, gamintojas. Būtina pažymėti, kuris vaistas yra  vardinis"]
["10.","Adatėlės plastikinės odos dūrio mėginiams atlikti"]
["10.1.","Adatėlės plastikinės odos dūrio mėginiams atlikti",8000,"vnt.",null,{"$f":"IF(ISBLANK(E145),\"\", PRODUCT(C145,E145))","v":""}]
[null,null,null,null,"Suma be PVM",{"$f":"IF(F145=\"\",\"\",SUM(F145:F145))","v":""},{"$f":"IF(F145=\"\",\"Neužpildytos visos objektų kainos\",\"\")","v":"Neužpildytos visos objektų kainos"}]
[null,null,null,null,"PVM suma"]
[null,null,null,null,"Suma su PVM",{"$f":"IF(ISBLANK(F147), \"\", SUM(F146:F147))","v":""},"Dalies biudžetas su PVM: 1680 Eur"]
[]
[]
[]
["11. DALIS","AKTYVINTA ANGLIS 200 MG"]
[]
["Tiekėjo pasiūlymas:"]
["Nr.","Pavadinimas","Kiekis","Mato vienetas","Įkainis be PVM, Eur","Suma be PVM, Eur","Siūlomo produkto pavadinimas, dozė, kiekis pakuotėje, gamintojas. Būtina pažymėti, kuris vaistas yra  vardinis"]
["11.","Aktyvinta anglis 200 mg"]
["11.1.","Aktyvinta anglis 200 mg",1500,"tab./kaps.",null,{"$f":"IF(ISBLANK(E157),\"\", PRODUCT(C157,E157))","v":""}]
[null,null,null,null,"Suma be PVM",{"$f":"IF(F157=\"\",\"\",SUM(F157:F157))","v":""},{"$f":"IF(F157=\"\",\"Neužpildytos visos objektų kainos\",\"\")","v":"Neužpildytos visos objektų kainos"}]
[null,null,null,null,"PVM suma"]
[null,null,null,null,"Suma su PVM",{"$f":"IF(ISBLANK(F159), \"\", SUM(F158:F159))","v":""},"Dalies biudžetas su PVM: 236,25 Eur"]
[]
[]
[]
["12. DALIS","AKTYVINTA ANGLIS MILTELIAIS PO 50 - 61,5 G"]
[]
["Tiekėjo pasiūlymas:"]
["Nr.","Pavadinimas","Kiekis","Mato vienetas","Įkainis be PVM, Eur","Suma be PVM, Eur","Siūlomo produkto pavadinimas, dozė, kiekis pakuotėje, gamintojas. Būtina pažymėti, kuris vaistas yra  vardinis"]
["12.","Aktyvinta anglis milteliais po 50 - 61,5 g"]
["12.1.","Aktyvinta anglis milteliais po 50 - 61,5g",10,"įpak.",null,{"$f":"IF(ISBLANK(E169),\"\", PRODUCT(C169,E169))","v":""}]
[null,null,null,null,"Suma be PVM",{"$f":"IF(F169=\"\",\"\",SUM(F169:F169))","v":""},{"$f":"IF(F169=\"\",\"Neužpildytos visos objektų kainos\",\"\")","v":"Neužpildytos visos objektų kainos"}]
[null,null,null,null,"PVM suma"]
[null,null,null,null,"Suma su PVM",{"$f":"IF(ISBLANK(F171), \"\", SUM(F170:F171))","v":""},"Dalies biudžetas su PVM: 262,5 Eur"]
[]
[]
[]
["13. DALIS","AKTYVUOTAS PROTROMBINO KOAGULIACIJOS KOMPLEKSAS 1000 TV"]
[]
["Tiekėjo pasiūlymas:"]
["Nr.","Pavadinimas","Kiekis","Mato vienetas","Įkainis be PVM, Eur","Suma be PVM, Eur","Siūlomo produkto pavadinimas, dozė, kiekis pakuotėje, gamintojas. Būtina pažymėti, kuris vaistas yra  vardinis"]
["13.","Aktyvuotas protrombino koaguliacijos kompleksas 1000 TV"]
["13.1.","Aktyvuotas protrombino koaguliacijos kompleksas 1000 TV",3,"but./amp.",null,{"$f":"IF(ISBLANK(E181),\"\", PRODUCT(C181,E181))","v":""}]
[null,null,null,null,"Suma be PVM",{"$f":"IF(F181=\"\",\"\",SUM(F181:F181))","v":""},{"$f":"IF(F181=\"\",\"Neužpildytos visos objektų kainos\",\"\")","v":"Neužpildytos visos objektų kainos"}]
[null,null,null,null,"PVM suma"]
[null,null,null,null,"Suma su PVM",{"$f":"IF(ISBLANK(F183), \"\", SUM(F182:F183))","v":""},"Dalies biudžetas su PVM: 3150 Eur"]
[]
[]
[]
["14. DALIS","ALBENDAZOLUM 400MG"]
[]
["Tiekėjo pasiūlymas:"]
["Nr.","Pavadinimas","Kiekis","Mato vienetas","Įkainis be PVM, Eur","Suma be PVM, Eur","Siūlomo produkto pavadinimas, dozė, kiekis pakuotėje, gamintojas. Būtina pažymėti, kuris vaistas yra  vardinis"]
["14.","Albendazolum 400mg"]
["14.1.","Albendazolum 400mg",120,"tab.",null,{"$f":"IF(ISBLANK(E193),\"\", PRODUCT(C193,E193))","v":""}]
[null,null,null,null,"Suma be PVM",{"$f":"IF(F193=\"\",\"\",SUM(F193:F193))","v":""},{"$f":"IF(F193=\"\",\"Neužpildytos visos objektų kainos\",\"\")","v":"Neužpildytos visos objektų kainos"}]
[null,null,null,null,"PVM suma"]
[null,null,null,null,"Suma su PVM",{"$f":"IF(ISBLANK(F195), \"\", SUM(F194:F195))","v":""},"Dalies biudžetas su PVM: 262,5 Eur"]
[]
[]
[]
["15. DALIS","ALFA LIPO RŪGŠTIS 600 MG/50 ML "]
[]
["Tiekėjo pasiūlymas:"]
["Nr.","Pavadinimas","Kiekis","Mato vienetas","Įkainis be PVM, Eur","Suma be PVM, Eur","Siūlomo produkto pavadinimas, dozė, kiekis pakuotėje, gamintojas. Būtina pažymėti, kuris vaistas yra  vardinis"]
["15.","Alfa lipo rūgštis 600 mg/50 ml "]
["15.1.","Alfa lipo rūgštis 600 mg/50 ml ",80,"fl.",null,{"$f":"IF(ISBLANK(E205),\"\", PRODUCT(C205,E205))","v":""}]
[null,null,null,null,"Suma be PVM",{"$f":"IF(F205=\"\",\"\",SUM(F205:F205))","v":""},{"$f":"IF(F205=\"\",\"Neužpildytos visos objektų kainos\",\"\")","v":"Neužpildytos visos objektų kainos"}]
[null,null,null,null,"PVM suma"]
[null,null,null,null,"Suma su PVM",{"$f":"IF(ISBLANK(F207), \"\", SUM(F206:F207))","v":""},"Dalies biudžetas su PVM: 441 Eur"]
[]
[]
[]
["16. DALIS","ALOPURINOLIS 300 MG"]
[]
["Tiekėjo pasiūlymas:"]
["Nr.","Pavadinimas","Kiekis","Mato vienetas","Įkainis be PVM, Eur","Suma be PVM, Eur","Siūlomo produkto pavadinimas, dozė, kiekis pakuotėje, gamintojas. Būtina pažymėti, kuris vaistas yra  vardinis"]
["16.","Alopurinolis 300 mg"]
["16.1.","Alopurinolis 300 mg",5000,"tab.",null,{"$f":"IF(ISBLANK(E217),\"\", PRODUCT(C217,E217))","v":""}]
[null,null,null,null,"Suma be PVM",{"$f":"IF(F217=\"\",\"\",SUM(F217:F217))","v":""},{"$f":"IF(F217=\"\",\"Neužpildytos visos objektų kainos\",\"\")","v":"Neužpildytos visos objektų kainos"}]
[null,null,null,null,"PVM suma"]
[null,null,null,null,"Suma su PVM",{"$f":"IF(ISBLANK(F219), \"\", SUM(F218:F219))","v":""},"Dalies biudžetas su PVM: 483 Eur"]
[]
[]
[]
["17. DALIS","AMFOTERICINAS B LIPOSOMINIS 50MG"]
[]
["Tiekėjo pasiūlymas:"]
["Nr.","Pavadinimas","Kiekis","Mato vienetas","Įkainis be PVM, Eur","Suma be PVM, Eur","Siūlomo produkto pavadinimas, dozė, kiekis pakuotėje, gamintojas. Būtina pažymėti, kuris vaistas yra  vardinis"]
["17.","Amfotericinas B liposominis 50mg"]
["17.1.","Amfotericinas B liposominis 50mg",10,"amp.",null,{"$f":"IF(ISBLANK(E229),\"\", PRODUCT(C229,E229))","v":""}]
[null,null,null,null,"Suma be PVM",{"$f":"IF(F229=\"\",\"\",SUM(F229:F229))","v":""},{"$f":"IF(F229=\"\",\"Neužpildytos visos objektų kainos\",\"\")","v":"Neužpildytos visos objektų kainos"}]
[null,null,null,null,"PVM suma"]
[null,null,null,null,"Suma su PVM",{"$f":"IF(ISBLANK(F231), \"\", SUM(F230:F231))","v":""},"Dalies biudžetas su PVM: 5460 Eur"]
[]
[]
[]
["18. DALIS","AMIL NITRITAS 0.3 ML"]
[]
["Tiekėjo pasiūlymas:"]
["Nr.","Pavadinimas","Kiekis","Mato vienetas","Įkainis be PVM, Eur","Suma be PVM, Eur","Siūlomo produkto pavadinimas, dozė, kiekis pakuotėje, gamintojas. Būtina pažymėti, kuris vaistas yra  vardinis"]
["18.","Amil Nitritas 0.3 ml"]
["18.1.","Amil Nitritas 0.3 ml",12,"amp.",null,{"$f":"IF(ISBLANK(E241),\"\", PRODUCT(C241,E241))","v":""}]
[null,null,null,null,"Suma be PVM",{"$f":"IF(F241=\"\",\"\",SUM(F241:F241))","v":""},{"$f":"IF(F241=\"\",\"Neužpildytos visos objektų kainos\",\"\")","v":"Neužpildytos visos objektų kainos"}]
[null,null,null,null,"PVM suma"]
[null,null,null,null,"Suma su PVM",{"$f":"IF(ISBLANK(F243), \"\", SUM(F242:F243))","v":""},"Dalies biudžetas su PVM: 189 Eur"]
[]
[]
[]
["19. DALIS","MIŠINYS PARENTERINIAM MAITINIMUI (RIEBALŲ EMULSIJA SU ILGOS IR VIDUTINĖS GRANDINĖS TRIGLICERIDAIS, OMEGA-3 RIEBALŲ RŪGŠTIMIS ARBA JŲ TRIGLICERIDAIS + AMINORŪGŠČIŲ, ELEKTROLITŲ IR GLIUKOZĖS TIRPALAI), ENERG. VERTĖ 700-800 KCAL/1000ML TRIJŲ KAMERŲ MAIŠE, LEISTI Į PERIFERINĘ VENĄ, 1900 - 2000 ML MAIŠAS"]
[]
["Tiekėjo pasiūlymas:"]
["Nr.","Pavadinimas","Kiekis","Mato vienetas","Įkainis be PVM, Eur","Suma be PVM, Eur","Siūlomo produkto pavadinimas, dozė, kiekis pakuotėje, gamintojas. Būtina pažymėti, kuris vaistas yra  vardinis"]
["19.","Mišinys parenteriniam maitinimui (riebalų emulsija su ilgos ir vidutinės grandinės trigliceridais, omega-3 riebalų rūgštimis arba jų trigliceridais + aminorūgščių, elektrolitų ir gliukozės tirpalai), energ. vertė 700-800 kcal/1000ml trijų kamerų maiše, leisti į periferinę veną, 1900 - 2000 ml maišas"]
["19.1.","Mišinys parenteriniam maitinimui (riebalų emulsija su ilgos ir vidutinės grandinės trigliceridais, omega-3 riebalų rūgštimis arba jų trigliceridais + aminorūgščių, elektrolitų ir gliukozės tirpalai), energ. vertė 700-800 kcal/1000ml trijų kamerų maiše, leisti į periferinę veną, 1900 - 2000 ml maišas",88,"vnt.",37.1,{"$f":"IF(ISBLANK(E253),\"\", PRODUCT(C253,E253))","v":3264.8},"SmofKabiven Peripheral infuzinė emulsija 1904 ml, N4, Fresenius Kabi AB, Švedija"]
[null,null,null,null,"Suma be PVM",{"$f":"IF(F253=\"\",\"\",SUM(F253:F253))","v":3264.8},{"$f":"IF(F253=\"\",\"Neužpildytos visos objektų kainos\",\"\")","v":""}]
[null,null,null,null,"PVM suma",{"$f":"F254*0.05","v":163.24}]
[null,null,null,null,"Suma su PVM",{"$f":"IF(ISBLANK(F255), \"\", SUM(F254:F255))","v":3428.04},"Dalies biudžetas su PVM: 4620 Eur"]
[]
[]
[]
["20. DALIS","AMIODARONAS  50MG/ML 3ML"]
[]
["Tiekėjo pasiūlymas:"]
["Nr.","Pavadinimas","Kiekis","Mato vienetas","Įkainis be PVM, Eur","Suma be PVM, Eur","Siūlomo produkto pavadinimas, dozė, kiekis pakuotėje, gamintojas. Būtina pažymėti, kuris vaistas yra  vardinis"]
["20.","Amiodaronas  50mg/ml 3ml"]
["20.1.","Amiodaronas  50mg/ml 3ml",5000,"amp.",null,{"$f":"IF(ISBLANK(E265),\"\", PRODUCT(C265,E265))","v":""}]
[null,null,null,null,"Suma be PVM",{"$f":"IF(F265=\"\",\"\",SUM(F265:F265))","v":""},{"$f":"IF(F265=\"\",\"Neužpildytos visos objektų kainos\",\"\")","v":"Neužpildytos visos objektų kainos"}]
[null,null,null,null,"PVM suma"]
[null,null,null,null,"Suma su PVM",{"$f":"IF(ISBLANK(F267), \"\", SUM(F266:F267))","v":""},"Dalies biudžetas su PVM: 15750 Eur"]
[]
[]
[]
["21. DALIS","AMPICILINAS 1000MG + SULBAKTAMAS 500MG"]
[]
["Tiekėjo pasiūlymas:"]
["Nr.","Pavadinimas","Kiekis","Mato vienetas","Įkainis be PVM, Eur","Suma be PVM, Eur","Siūlomo produkto pavadinimas, dozė, kiekis pakuotėje, gamintojas. Būtina pažymėti, kuris vaistas yra  vardinis"]
["21.","Ampicilinas 1000mg + Sulbaktamas 500mg"]
["21.1.","Ampicilinas 1000mg + Sulbaktamas 500mg",5000,"fl.",null,{"$f":"IF(ISBLANK(E277),\"\", PRODUCT(C277,E277))","v":""}]
[null,null,null,null,"Suma be PVM",{"$f":"IF(F277=\"\",\"\",SUM(F277:F277))","v":""},{"$f":"IF(F277=\"\",\"Neužpildytos visos objektų kainos\",\"\")","v":"Neužpildytos visos objektų kainos"}]
[null,null,null,null,"PVM suma"]
[null,null,null,null,"Suma su PVM",{"$f":"IF(ISBLANK(F279), \"\", SUM(F278:F279))","v":""},"Dalies biudžetas su PVM: 9450 Eur"]
[]
[]
[]
["22. DALIS","AMPICILINAS 2000MG + SULBAKTAMAS 1000 MG"]
[]
["Tiekėjo pasiūlymas:"]
["Nr.","Pavadinimas","Kiekis","Mato vienetas","Įkainis be PVM, Eur","Suma be PVM, Eur","Siūlomo produkto pavadinimas, dozė, kiekis pakuotėje, gamintojas. Būtina pažymėti, kuris vaistas yra  vardinis"]
["22.","Ampicilinas 2000mg + Sulbaktamas 1000 mg"]
["22.1.","Ampicilinas 2000mg + Sulbaktamas 1000 mg",3000,"fl.",null,{"$f":"IF(ISBLANK(E289),\"\", PRODUCT(C289,E289))","v":""}]
[null,null,null,null,"Suma be PVM",{"$f":"IF(F289=\"\",\"\",SUM(F289:F289))","v":""},{"$f":"IF(F289=\"\",\"Neužpildytos visos objektų kainos\",\"\")","v":"Neužpildytos visos objektų kainos"}]
[null,null,null,null,"PVM suma"]
[null,null,null,null,"Suma su PVM",{"$f":"IF(ISBLANK(F291), \"\", SUM(F290:F291))","v":""},"Dalies biudžetas su PVM: 5670 Eur"]
[]
[]
[]
["23. DALIS","ANAESTHESINUM"]
[]
["Tiekėjo pasiūlymas:"]
["Nr.","Pavadinimas","Kiekis","Mato vienetas","Įkainis be PVM, Eur","Suma be PVM, Eur","Siūlomo produkto pavadinimas, dozė, kiekis pakuotėje, gamintojas. Būtina pažymėti, kuris vaistas yra  vardinis"]
["23.","Anaesthesinum"]
["23.1.","Anaesthesinum",4,"kg",null,{"$f":"IF(ISBLANK(E301),\"\", PRODUCT(C301,E301))","v":""}]
[null,null,null,null,"Suma be PVM",{"$f":"IF(F301=\"\",\"\",SUM(F301:F301))","v":""},{"$f":"IF(F301=\"\",\"Neužpildytos visos objektų kainos\",\"\")","v":"Neužpildytos visos objektų kainos"}]
[null,null,null,null,"PVM suma"]
[null,null,null,null,"Suma su PVM",{"$f":"IF(ISBLANK(F303), \"\", SUM(F302:F303))","v":""},"Dalies biudžetas su PVM: 157,5 Eur"]
[]
[]
[]
["24. DALIS","ARBATA NUO PERŠALINIMO 2,0 G PAKELIUOSE"]
[]
["Tiekėjo pasiūlymas:"]
["Nr.","Pavadinimas","Kiekis","Mato vienetas","Įkainis be PVM, Eur","Suma be PVM, Eur","Siūlomo produkto pavadinimas, dozė, kiekis pakuotėje, gamintojas. Būtina pažymėti, kuris vaistas yra  vardinis"]
["24.","Arbata nuo peršalinimo 2,0 g pakeliuose"]
["24.1.","Arbata nuo peršalinimo 2,0 g pakeliuose (lygiavertė Gripolis)",200,"vnt.",null,{"$f":"IF(ISBLANK(E313),\"\", PRODUCT(C313,E313))","v":""}]
[null,null,null,null,"Suma be PVM",{"$f":"IF(F313=\"\",\"\",SUM(F313:F313))","v":""},{"$f":"IF(F313=\"\",\"Neužpildytos visos objektų kainos\",\"\")","v":"Neužpildytos visos objektų kainos"}]
[null,null,null,null,"PVM suma"]
[null,null,null,null,"Suma su PVM",{"$f":"IF(ISBLANK(F315), \"\", SUM(F314:F315))","v":""},"Dalies biudžetas su PVM: 25,2 Eur"]
[]
[]
[]
["25. DALIS","ARGENTHI NITRAS"]
[]
["Tiekėjo pasiūlymas:"]
["Nr.","Pavadinimas","Kiekis","Mato vienetas","Įkainis be PVM, Eur","Suma be PVM, Eur","Siūlomo produkto pavadinimas, dozė, kiekis pakuotėje, gamintojas. Būtina pažymėti, kuris vaistas yra  vardinis"]
["25.","Argenthi nitras"]
["25.1.","Argenthi nitras",100,"g",null,{"$f":"IF(ISBLANK(E325),\"\", PRODUCT(C325,E325))","v":""}]
[null,null,null,null,"Suma be PVM",{"$f":"IF(F325=\"\",\"\",SUM(F325:F325))","v":""},{"$f":"IF(F325=\"\",\"Neužpildytos visos objektų kainos\",\"\")","v":"Neužpildytos visos objektų kainos"}]
[null,null,null,null,"PVM suma"]
[null,null,null,null,"Suma su PVM",{"$f":"IF(ISBLANK(F327), \"\", SUM(F326:F327))","v":""},"Dalies biudžetas su PVM: 315 Eur"]
[]
[]
[]
["26. DALIS","ASKORBO RŪGŠTIS 500 MG "]
[]
["Tiekėjo pasiūlymas:"]
["Nr.","Pavadinimas","Kiekis","Mato vienetas","Įkainis be PVM, Eur","Suma be PVM, Eur","Siūlomo produkto pavadinimas, dozė, kiekis pakuotėje, gamintojas. Būtina pažymėti, kuris vaistas yra  vardinis"]
["26.","Askorbo rūgštis 500 mg "]
["26.1.","Askorbo rūgštis 500 mg ",500,"tab.",null,{"$f":"IF(ISBLANK(E337),\"\", PRODUCT(C337,E337))","v":""}]
[null,null,null,null,"Suma be PVM",{"$f":"IF(F337=\"\",\"\",SUM(F337:F337))","v":""},{"$f":"IF(F337=\"\",\"Neužpildytos visos objektų kainos\",\"\")","v":"Neužpildytos visos objektų kainos"}]
[null,null,null,null,"PVM suma"]
[null,null,null,null,"Suma su PVM",{"$f":"IF(ISBLANK(F339), \"\", SUM(F338:F339))","v":""},"Dalies biudžetas su PVM: 26,25 Eur"]
[]
[]
[]
["27. DALIS","ASKORBO RŪGŠTIS 50MG/ML"]
[]
["Tiekėjo pasiūlymas:"]
["Nr.","Pavadinimas","Kiekis","Mato vienetas","Įkainis be PVM, Eur","Suma be PVM, Eur","Siūlomo produkto pavadinimas, dozė, kiekis pakuotėje, gamintojas. Būtina pažymėti, kuris vaistas yra  vardinis"]
["27.","Askorbo rūgštis 50mg/ml"]
["27.1.","Askorbo rūgštis 50mg/ml",2500,"amp.",null,{"$f":"IF(ISBLANK(E349),\"\", PRODUCT(C349,E349))","v":""}]
[null,null,null,null,"Suma be PVM",{"$f":"IF(F349=\"\",\"\",SUM(F349:F349))","v":""},{"$f":"IF(F349=\"\",\"Neužpildytos visos objektų kainos\",\"\")","v":"Neužpildytos visos objektų kainos"}]
[null,null,null,null,"PVM suma"]
[null,null,null,null,"Suma su PVM",{"$f":"IF(ISBLANK(F351), \"\", SUM(F350:F351))","v":""},"Dalies biudžetas su PVM: 805 Eur"]
[]
[]
[]
["28. DALIS","ATORVASTATINAS /PERINDOPRILIO ARGININAS/AMLODIPINAS 40/10/10 MG"]
[]
["Tiekėjo pasiūlymas:"]
["Nr.","Pavadinimas","Kiekis","Mato vienetas","Įkainis be PVM, Eur","Suma be PVM, Eur","Siūlomo produkto pavadinimas, dozė, kiekis pakuotėje, gamintojas. Būtina pažymėti, kuris vaistas yra  vardinis"]
["28.","Atorvastatinas /perindoprilio argininas/amlodipinas 40/10/10 mg"]
["28.1.","Atorvastatinas /perindoprilio argininas/amlodipinas 40/10/10 mg",60,"tab.",null,{"$f":"IF(ISBLANK(E361),\"\", PRODUCT(C361,E361))","v":""}]
[null,null,null,null,"Suma be PVM",{"$f":"IF(F361=\"\",\"\",SUM(F361:F361))","v":""},{"$f":"IF(F361=\"\",\"Neužpildytos visos objektų kainos\",\"\")","v":"Neužpildytos visos objektų kainos"}]
[null,null,null,null,"PVM suma"]
[null,null,null,null,"Suma su PVM",{"$f":"IF(ISBLANK(F363), \"\", SUM(F362:F363))","v":""},"Dalies biudžetas su PVM: 23,31 Eur"]
[]
[]
[]
["29. DALIS","ATROPINO SULFATAS 1MG/ML"]
[]
["Tiekėjo pasiūlymas:"]
["Nr.","Pavadinimas","Kiekis","Mato vienetas","Įkainis be PVM, Eur","Suma be PVM, Eur","Siūlomo produkto pavadinimas, dozė, kiekis pakuotėje, gamintojas. Būtina pažymėti, kuris vaistas yra  vardinis"]
["29.","Atropino sulfatas 1mg/ml"]
["29.1.","Atropino sulfatas 1mg/ml",10000,"amp.",null,{"$f":"IF(ISBLANK(E373),\"\", PRODUCT(C373,E373))","v":""}]
[null,null,null,null,"Suma be PVM",{"$f":"IF(F373=\"\",\"\",SUM(F373:F373))","v":""},{"$f":"IF(F373=\"\",\"Neužpildytos visos objektų kainos\",\"\")","v":"Neužpildytos visos objektų kainos"}]
[null,null,null,null,"PVM suma"]
[null,null,null,null,"Suma su PVM",{"$f":"IF(ISBLANK(F375), \"\", SUM(F374:F375))","v":""},"Dalies biudžetas su PVM: 8400 Eur"]
[]
[]
[]
["30. DALIS","AZATHIOPRIN 50 MG "]
[]
["Tiekėjo pasiūlymas:"]
["Nr.","Pavadinimas","Kiekis","Mato vienetas","Įkainis be PVM, Eur","Suma be PVM, Eur","Siūlomo produkto pavadinimas, dozė, kiekis pakuotėje, gamintojas. Būtina pažymėti, kuris vaistas yra  vardinis"]
["30.","Azathioprin 50 mg "]
["30.1.","Azathioprin 50 mg ",100,"tab.",null,{"$f":"IF(ISBLANK(E385),\"\", PRODUCT(C385,E385))","v":""}]
[null,null,null,null,"Suma be PVM",{"$f":"IF(F385=\"\",\"\",SUM(F385:F385))","v":""},{"$f":"IF(F385=\"\",\"Neužpildytos visos objektų kainos\",\"\")","v":"Neužpildytos visos objektų kainos"}]
[null,null,null,null,"PVM suma"]
[null,null,null,null,"Suma su PVM",{"$f":"IF(ISBLANK(F387), \"\", SUM(F386:F387))","v":""},"Dalies biudžetas su PVM: 28,35 Eur"]
[]
[]
[]
["31. DALIS","BARII SULFAS PRO RENTGENO"]
[]
["Tiekėjo pasiūlymas:"]
["Nr.","Pavadinimas","Kiekis","Mato vienetas","Įkainis be PVM, Eur","Suma be PVM, Eur","Siūlomo produkto pavadinimas, dozė, kiekis pakuotėje, gamintojas. Būtina pažymėti, kuris vaistas yra  vardinis"]
["31.","Barii sulfas pro rentgeno"]
["31.1.","Barii sulfas pro rentgeno",15,"kg",null,{"$f":"IF(ISBLANK(E397),\"\", PRODUCT(C397,E397))","v":""}]
[null,null,null,null,"Suma be PVM",{"$f":"IF(F397=\"\",\"\",SUM(F397:F397))","v":""},{"$f":"IF(F397=\"\",\"Neužpildytos visos objektų kainos\",\"\")","v":"Neužpildytos visos objektų kainos"}]
[null,null,null,null,"PVM suma"]
[null,null,null,null,"Suma su PVM",{"$f":"IF(ISBLANK(F399), \"\", SUM(F398:F399))","v":""},"Dalies biudžetas su PVM: 315 Eur"]
[]
[]
[]
["32. DALIS","BEKLOMETAZONO DIPROPIONATAS/FORMOTEROLIO FUMARATAS DIHIDRATAS/ 200 ΜG/6 ΜG/IŠPURŠKIME"]
[]
["Tiekėjo pasiūlymas:"]
["Nr.","Pavadinimas","Kiekis","Mato vienetas","Įkainis be PVM, Eur","Suma be PVM, Eur","Siūlomo produkto pavadinimas, dozė, kiekis pakuotėje, gamintojas. Būtina pažymėti, kuris vaistas yra  vardinis"]
["32.","Beklometazono dipropionatas/Formoterolio fumaratas dihidratas/ 200 µg/6 µg/išpurškime"]
["32.1.","Beklometazono dipropionatas/Formoterolio fumaratas dihidratas/ 200 µg/6 µg/išpurškime",900,"doz.",null,{"$f":"IF(ISBLANK(E409),\"\", PRODUCT(C409,E409))","v":""}]
[null,null,null,null,"Suma be PVM",{"$f":"IF(F409=\"\",\"\",SUM(F409:F409))","v":""},{"$f":"IF(F409=\"\",\"Neužpildytos visos objektų kainos\",\"\")","v":"Neužpildytos visos objektų kainos"}]
[null,null,null,null,"PVM suma"]
[null,null,null,null,"Suma su PVM",{"$f":"IF(ISBLANK(F411), \"\", SUM(F410:F411))","v":""},"Dalies biudžetas su PVM: 255,15 Eur"]
[]
[]
[]
["33. DALIS","BEKLOMETAZONO DIPROPIONATAS/FORMOTEROLIO FUMARATAS DIHIDRATAS/GLIKOPIRONIS 87 ΜG/5 ΜG/9 ΜG   "]
[]
["Tiekėjo pasiūlymas:"]
["Nr.","Pavadinimas","Kiekis","Mato vienetas","Įkainis be PVM, Eur","Suma be PVM, Eur","Siūlomo produkto pavadinimas, dozė, kiekis pakuotėje, gamintojas. Būtina pažymėti, kuris vaistas yra  vardinis"]
["33.","Beklometazono dipropionatas/Formoterolio fumaratas dihidratas/Glikopironis 87 µg/5 µg/9 µg   suslėgtasis įkvepiamasis tirpalas"]
["33.1.","Beklometazono dipropionatas/Formoterolio fumaratas dihidratas/Glikopironis 87 µg/5 µg/9 µg   suslėgtasis įkvepiamasis tirpalas",900,"doz.",null,{"$f":"IF(ISBLANK(E421),\"\", PRODUCT(C421,E421))","v":""}]
[null,null,null,null,"Suma be PVM",{"$f":"IF(F421=\"\",\"\",SUM(F421:F421))","v":""},{"$f":"IF(F421=\"\",\"Neužpildytos visos objektų kainos\",\"\")","v":"Neužpildytos visos objektų kainos"}]
[null,null,null,null,"PVM suma"]
[null,null,null,null,"Suma su PVM",{"$f":"IF(ISBLANK(F423), \"\", SUM(F422:F423))","v":""},"Dalies biudžetas su PVM: 378 Eur"]
[]
[]
[]
["34. DALIS","BENFOTIAMINAS 100MG + PIRIDOKSINAS (B6) 100MG + CIANOKOBALAMINAS 1000MCG"]
[]
["Tiekėjo pasiūlymas:"]
["Nr.","Pavadinimas","Kiekis","Mato vienetas","Įkainis be PVM, Eur","Suma be PVM, Eur","Siūlomo produkto pavadinimas, dozė, kiekis pakuotėje, gamintojas. Būtina pažymėti, kuris vaistas yra  vardinis"]
["34.","Benfotiaminas 100mg + Piridoksinas (B6) 100mg + Cianokobalaminas 1000mcg"]
["34.1.","Benfotiaminas 100mg + Piridoksinas (B6) 100mg + Cianokobalaminas 1000mcg ",400,"amp.",null,{"$f":"IF(ISBLANK(E433),\"\", PRODUCT(C433,E433))","v":""}]
[null,null,null,null,"Suma be PVM",{"$f":"IF(F433=\"\",\"\",SUM(F433:F433))","v":""},{"$f":"IF(F433=\"\",\"Neužpildytos visos objektų kainos\",\"\")","v":"Neužpildytos visos objektų kainos"}]
[null,null,null,null,"PVM suma"]
[null,null,null,null,"Suma su PVM",{"$f":"IF(ISBLANK(F435), \"\", SUM(F434:F435))","v":""},"Dalies biudžetas su PVM: 840 Eur"]
[]
[]
[]
["35. DALIS","BENZATINO PENICILINAS 2400000 TV"]
[]
["Tiekėjo pasiūlymas:"]
["Nr.","Pavadinimas","Kiekis","Mato vienetas","Įkainis be PVM, Eur","Suma be PVM, Eur","Siūlomo produkto pavadinimas, dozė, kiekis pakuotėje, gamintojas. Būtina pažymėti, kuris vaistas yra  vardinis"]
["35.","Benzatino penicilinas 2400000 TV"]
["35.1.","Benzatino penicilinas 2400000 TV",30,"fl.",null,{"$f":"IF(ISBLANK(E445),\"\", PRODUCT(C445,E445))","v":""}]
[null,null,null,null,"Suma be PVM",{"$f":"IF(F445=\"\",\"\",SUM(F445:F445))","v":""},{"$f":"IF(F445=\"\",\"Neužpildytos visos objektų kainos\",\"\")","v":"Neužpildytos visos objektų kainos"}]
[null,null,null,null,"PVM suma"]
[null,null,null,null,"Suma su PVM",{"$f":"IF(ISBLANK(F447), \"\", SUM(F446:F447))","v":""},"Dalies biudžetas su PVM: 210 Eur"]
[]
[]
[]
["36. DALIS","BETAINAS SU POLIHEKSANIDU 350ML"]
[]
["Tiekėjo pasiūlymas:"]
["Nr.","Pavadinimas","Kiekis","Mato vienetas","Įkainis be PVM, Eur","Suma be PVM, Eur","Siūlomo produkto pavadinimas, dozė, kiekis pakuotėje, gamintojas. Būtina pažymėti, kuris vaistas yra  vardinis"]
["36.","Betainas su poliheksanidu 350ml"]
["36.1.","Betainas su poliheksanidu 350ml",400,"fl.",null,{"$f":"IF(ISBLANK(E457),\"\", PRODUCT(C457,E457))","v":""}]
[null,null,null,null,"Suma be PVM",{"$f":"IF(F457=\"\",\"\",SUM(F457:F457))","v":""},{"$f":"IF(F457=\"\",\"Neužpildytos visos objektų kainos\",\"\")","v":"Neužpildytos visos objektų kainos"}]
[null,null,null,null,"PVM suma"]
[null,null,null,null,"Suma su PVM",{"$f":"IF(ISBLANK(F459), \"\", SUM(F458:F459))","v":""},"Dalies biudžetas su PVM: 4200 Eur"]
[]
[]
[]
["37. DALIS","BIZOPROLOLIO FUMARATAS/ PERINDOPRILIO ARGININAS 5/10 MG "]
[]
["Tiekėjo pasiūlymas:"]
["Nr.","Pavadinimas","Kiekis","Mato vienetas","Įkainis be PVM, Eur","Suma be PVM, Eur","Siūlomo produkto pavadinimas, dozė, kiekis pakuotėje, gamintojas. Būtina pažymėti, kuris vaistas yra  vardinis"]
["37.","Bizoprololio fumaratas/ perindoprilio argininas 5/10 mg "]
["37.1.","Bizoprololio fumaratas/ perindoprilio argininas 5/10 mg ",30,"tab.",null,{"$f":"IF(ISBLANK(E469),\"\", PRODUCT(C469,E469))","v":""}]
[null,null,null,null,"Suma be PVM",{"$f":"IF(F469=\"\",\"\",SUM(F469:F469))","v":""},{"$f":"IF(F469=\"\",\"Neužpildytos visos objektų kainos\",\"\")","v":"Neužpildytos visos objektų kainos"}]
[null,null,null,null,"PVM suma"]
[null,null,null,null,"Suma su PVM",{"$f":"IF(ISBLANK(F471), \"\", SUM(F470:F471))","v":""},"Dalies biudžetas su PVM: 11,03 Eur"]
[]
[]
[]
["38. DALIS","BIZOPROLOLIO FUMARATAS/ PERINDOPRILIO ARGININAS 5/5MG"]
[]
["Tiekėjo pasiūlymas:"]
["Nr.","Pavadinimas","Kiekis","Mato vienetas","Įkainis be PVM, Eur","Suma be PVM, Eur","Siūlomo produkto pavadinimas, dozė, kiekis pakuotėje, gamintojas. Būtina pažymėti, kuris vaistas yra  vardinis"]
["38.","Bizoprololio fumaratas/ perindoprilio argininas 5/5mg"]
["38.1.","Bizoprololio fumaratas/ perindoprilio argininas 5/5mg",450,"tab.",null,{"$f":"IF(ISBLANK(E481),\"\", PRODUCT(C481,E481))","v":""}]
[null,null,null,null,"Suma be PVM",{"$f":"IF(F481=\"\",\"\",SUM(F481:F481))","v":""},{"$f":"IF(F481=\"\",\"Neužpildytos visos objektų kainos\",\"\")","v":"Neužpildytos visos objektų kainos"}]
[null,null,null,null,"PVM suma"]
[null,null,null,null,"Suma su PVM",{"$f":"IF(ISBLANK(F483), \"\", SUM(F482:F483))","v":""},"Dalies biudžetas su PVM: 232,05 Eur"]
[]
[]
[]
["39. DALIS","BIZOPROLOLIO FUMARATAS/PERINDOPRILIO ARGININAS 10/10MG "]
[]
["Tiekėjo pasiūlymas:"]
["Nr.","Pavadinimas","Kiekis","Mato vienetas","Įkainis be PVM, Eur","Suma be PVM, Eur","Siūlomo produkto pavadinimas, dozė, kiekis pakuotėje, gamintojas. Būtina pažymėti, kuris vaistas yra  vardinis"]
["39.","Bizoprololio fumaratas/perindoprilio argininas 10/10mg "]
["39.1.","Bizoprololio fumaratas/perindoprilio argininas 10/10mg ",60,"tab.",null,{"$f":"IF(ISBLANK(E493),\"\", PRODUCT(C493,E493))","v":""}]
[null,null,null,null,"Suma be PVM",{"$f":"IF(F493=\"\",\"\",SUM(F493:F493))","v":""},{"$f":"IF(F493=\"\",\"Neužpildytos visos objektų kainos\",\"\")","v":"Neužpildytos visos objektų kainos"}]
[null,null,null,null,"PVM suma"]
[null,null,null,null,"Suma su PVM",{"$f":"IF(ISBLANK(F495), \"\", SUM(F494:F495))","v":""},"Dalies biudžetas su PVM: 8,82 Eur"]
[]
[]
[]
["40. DALIS","BOLUS ALBA"]
[]
["Tiekėjo pasiūlymas:"]
["Nr.","Pavadinimas","Kiekis","Mato vienetas","Įkainis be PVM, Eur","Suma be PVM, Eur","Siūlomo produkto pavadinimas, dozė, kiekis pakuotėje, gamintojas. Būtina pažymėti, kuris vaistas yra  vardinis"]
["40.","Bolus alba"]
["40.1.","Bolus alba",2,"kg",null,{"$f":"IF(ISBLANK(E505),\"\", PRODUCT(C505,E505))","v":""}]
[null,null,null,null,"Suma be PVM",{"$f":"IF(F505=\"\",\"\",SUM(F505:F505))","v":""},{"$f":"IF(F505=\"\",\"Neužpildytos visos objektų kainos\",\"\")","v":"Neužpildytos visos objektų kainos"}]
[null,null,null,null,"PVM suma"]
[null,null,null,null,"Suma su PVM",{"$f":"IF(ISBLANK(F507), \"\", SUM(F506:F507))","v":""},"Dalies biudžetas su PVM: 42 Eur"]
[]
[]
[]
["41. DALIS","BOTULIZMO ANTITOKSINAS INFUZ TIRP. 250ML "]
[]
["Tiekėjo pasiūlymas:"]
["Nr.","Pavadinimas","Kiekis","Mato vienetas","Įkainis be PVM, Eur","Suma be PVM, Eur","Siūlomo produkto pavadinimas, dozė, kiekis pakuotėje, gamintojas. Būtina pažymėti, kuris vaistas yra  vardinis"]
["41.","Botulizmo antitoksinas infuz tirp. 250ml "]
["41.1.","Botulizmo antitoksinas infuz tirp. 250ml ",3,"fl.",null,{"$f":"IF(ISBLANK(E517),\"\", PRODUCT(C517,E517))","v":""}]
[null,null,null,null,"Suma be PVM",{"$f":"IF(F517=\"\",\"\",SUM(F517:F517))","v":""},{"$f":"IF(F517=\"\",\"Neužpildytos visos objektų kainos\",\"\")","v":"Neužpildytos visos objektų kainos"}]
[null,null,null,null,"PVM suma"]
[null,null,null,null,"Suma su PVM",{"$f":"IF(ISBLANK(F519), \"\", SUM(F518:F519))","v":""},"Dalies biudžetas su PVM: 15750 Eur"]
[]
[]
[]
["42. DALIS","BURNOS PURŠKALAS 12 % NUO BURNOS PAŽEIDIMŲ. "]
[]
["Tiekėjo pasiūlymas:"]
["Nr.","Pavadinimas","Kiekis","Mato vienetas","Įkainis be PVM, Eur","Suma be PVM, Eur","Siūlomo produkto pavadinimas, dozė, kiekis pakuotėje, gamintojas. Būtina pažymėti, kuris vaistas yra  vardinis"]
["42.","Burnos purškalas 12 % nuo burnos pažeidimų. Sudėtis: ( vandens, polivinilo pirolidono (PVP), maltodekstrino, propeno glikolio, PEG-40 hidrinto ricinos aliejaus, ksantano dervos, kalio sorbato, natrio benzoato, natrio hialuronato, kvapiųjų medžiagų, benzalkonio chlorido, dinatrio EDTA, natrio sacharino, dikalio glicirizato, tikrojo alavijo (Aloe barbadensis)"]
["42.1.","Burnos purškalas 12 % nuo burnos pažeidimų. Sudėtis: ( vandens, polivinilo pirolidono (PVP), maltodekstrino, propeno glikolio, PEG-40 hidrinto ricinos aliejaus, ksantano dervos, kalio sorbato, natrio benzoato, natrio hialuronato, kvapiųjų medžiagų, benzalkonio chlorido, dinatrio EDTA, natrio sacharino, dikalio glicirizato, tikrojo alavijo (Aloe barbadensis)",150,"ml",null,{"$f":"IF(ISBLANK(E529),\"\", PRODUCT(C529,E529))","v":""}]
[null,null,null,null,"Suma be PVM",{"$f":"IF(F529=\"\",\"\",SUM(F529:F529))","v":""},{"$f":"IF(F529=\"\",\"Neužpildytos visos objektų kainos\",\"\")","v":"Neužpildytos visos objektų kainos"}]
[null,null,null,null,"PVM suma"]
[null,null,null,null,"Suma su PVM",{"$f":"IF(ISBLANK(F531), \"\", SUM(F530:F531))","v":""},"Dalies biudžetas su PVM: 118,13 Eur"]
[]
[]
[]
["43. DALIS","BUTYRUM CACAO"]
[]
["Tiekėjo pasiūlymas:"]
["Nr.","Pavadinimas","Kiekis","Mato vienetas","Įkainis be PVM, Eur","Suma be PVM, Eur","Siūlomo produkto pavadinimas, dozė, kiekis pakuotėje, gamintojas. Būtina pažymėti, kuris vaistas yra  vardinis"]
["43.","Butyrum cacao"]
["43.1.","Butyrum cacao",1,"kg",null,{"$f":"IF(ISBLANK(E541),\"\", PRODUCT(C541,E541))","v":""}]
[null,null,null,null,"Suma be PVM",{"$f":"IF(F541=\"\",\"\",SUM(F541:F541))","v":""},{"$f":"IF(F541=\"\",\"Neužpildytos visos objektų kainos\",\"\")","v":"Neužpildytos visos objektų kainos"}]
[null,null,null,null,"PVM suma"]
[null,null,null,null,"Suma su PVM",{"$f":"IF(ISBLANK(F543), \"\", SUM(F542:F543))","v":""},"Dalies biudžetas su PVM: 31,5 Eur"]
[]
[]
[]
["44. DALIS","CALCII CARBONAS"]
[]
["Tiekėjo pasiūlymas:"]
["Nr.","Pavadinimas","Kiekis","Mato vienetas","Įkainis be PVM, Eur","Suma be PVM, Eur","Siūlomo produkto pavadinimas, dozė, kiekis pakuotėje, gamintojas. Būtina pažymėti, kuris vaistas yra  vardinis"]
["44.","Calcii carbonas"]
["44.1.","Calcii carbonas",4,"kg",null,{"$f":"IF(ISBLANK(E553),\"\", PRODUCT(C553,E553))","v":""}]
[null,null,null,null,"Suma be PVM",{"$f":"IF(F553=\"\",\"\",SUM(F553:F553))","v":""},{"$f":"IF(F553=\"\",\"Neužpildytos visos objektų kainos\",\"\")","v":"Neužpildytos visos objektų kainos"}]
[null,null,null,null,"PVM suma"]
[null,null,null,null,"Suma su PVM",{"$f":"IF(ISBLANK(F555), \"\", SUM(F554:F555))","v":""},"Dalies biudžetas su PVM: 52,5 Eur"]
[]
[]
[]
["45. DALIS","CEFOPERAZONAS + SULBAKTAMAS 1000MG/1000MG INJEKCIJOMS"]
[]
["Tiekėjo pasiūlymas:"]
["Nr.","Pavadinimas","Kiekis","Mato vienetas","Įkainis be PVM, Eur","Suma be PVM, Eur","Siūlomo produkto pavadinimas, dozė, kiekis pakuotėje, gamintojas. Būtina pažymėti, kuris vaistas yra  vardinis"]
["45.","Cefoperazonas + Sulbaktamas 1000mg/1000mg injekcijoms"]
["45.1.","Cefoperazonas + Sulbaktamas 1000mg/1000mg injekcijoms",100,"fl.",null,{"$f":"IF(ISBLANK(E565),\"\", PRODUCT(C565,E565))","v":""}]
[null,null,null,null,"Suma be PVM",{"$f":"IF(F565=\"\",\"\",SUM(F565:F565))","v":""},{"$f":"IF(F565=\"\",\"Neužpildytos visos objektų kainos\",\"\")","v":"Neužpildytos visos objektų kainos"}]
[null,null,null,null,"PVM suma"]
[null,null,null,null,"Suma su PVM",{"$f":"IF(ISBLANK(F567), \"\", SUM(F566:F567))","v":""},"Dalies biudžetas su PVM: 3150 Eur"]
[]
[]
[]
["46. DALIS","CHLORHEKSIDINAS 0,2MG/ML 1000ML"]
[]
["Tiekėjo pasiūlymas:"]
["Nr.","Pavadinimas","Kiekis","Mato vienetas","Įkainis be PVM, Eur","Suma be PVM, Eur","Siūlomo produkto pavadinimas, dozė, kiekis pakuotėje, gamintojas. Būtina pažymėti, kuris vaistas yra  vardinis"]
["46.","Chlorheksidinas 0,2mg/ml 1000ml"]
["46.1.","Chlorheksidinas 0,2mg/ml 1000ml",200,"fl.",null,{"$f":"IF(ISBLANK(E577),\"\", PRODUCT(C577,E577))","v":""}]
[null,null,null,null,"Suma be PVM",{"$f":"IF(F577=\"\",\"\",SUM(F577:F577))","v":""},{"$f":"IF(F577=\"\",\"Neužpildytos visos objektų kainos\",\"\")","v":"Neužpildytos visos objektų kainos"}]
[null,null,null,null,"PVM suma"]
[null,null,null,null,"Suma su PVM",{"$f":"IF(ISBLANK(F579), \"\", SUM(F578:F579))","v":""},"Dalies biudžetas su PVM: 1050 Eur"]
[]
[]
[]
["47. DALIS","CHLORHEKSIDINO IR CHLORBUTANOLIO DERINYS 500 ML BURNAI SKALAUTI KOSMETIKOS PRIEMONĖ LYGIAVERTIS ELUDRIL"]
[]
["Tiekėjo pasiūlymas:"]
["Nr.","Pavadinimas","Kiekis","Mato vienetas","Įkainis be PVM, Eur","Suma be PVM, Eur","Siūlomo produkto pavadinimas, dozė, kiekis pakuotėje, gamintojas. Būtina pažymėti, kuris vaistas yra  vardinis"]
["47.","Chlorheksidino ir chlorbutanolio derinys 500 ml burnai skalauti kosmetikos priemonė lygiavertis Eludril"]
["47.1.","Chlorheksidino ir chlorbutanolio derinys 500 ml burnai skalauti kosmetikos priemonė lygiavertis Eludril",200,"fl.",null,{"$f":"IF(ISBLANK(E589),\"\", PRODUCT(C589,E589))","v":""}]
[null,null,null,null,"Suma be PVM",{"$f":"IF(F589=\"\",\"\",SUM(F589:F589))","v":""},{"$f":"IF(F589=\"\",\"Neužpildytos visos objektų kainos\",\"\")","v":"Neužpildytos visos objektų kainos"}]
[null,null,null,null,"PVM suma"]
[null,null,null,null,"Suma su PVM",{"$f":"IF(ISBLANK(F591), \"\", SUM(F590:F591))","v":""},"Dalies biudžetas su PVM: 2310 Eur"]
[]
[]
[]
["48. DALIS","CHLORHEXIDINE GLUCONATE 20% SOL."]
[]
["Tiekėjo pasiūlymas:"]
["Nr.","Pavadinimas","Kiekis","Mato vienetas","Įkainis be PVM, Eur","Suma be PVM, Eur","Siūlomo produkto pavadinimas, dozė, kiekis pakuotėje, gamintojas. Būtina pažymėti, kuris vaistas yra  vardinis"]
["48.","Chlorhexidine gluconate 20% sol."]
["48.1.","Chlorhexidine gluconate 20% sol.",3,"l",null,{"$f":"IF(ISBLANK(E601),\"\", PRODUCT(C601,E601))","v":""}]
[null,null,null,null,"Suma be PVM",{"$f":"IF(F601=\"\",\"\",SUM(F601:F601))","v":""},{"$f":"IF(F601=\"\",\"Neužpildytos visos objektų kainos\",\"\")","v":"Neužpildytos visos objektų kainos"}]
[null,null,null,null,"PVM suma"]
[null,null,null,null,"Suma su PVM",{"$f":"IF(ISBLANK(F603), \"\", SUM(F602:F603))","v":""},"Dalies biudžetas su PVM: 157,5 Eur"]
[]
[]
[]
["49. DALIS","CHLORPROMAZINAS 100 MG "]
[]
["Tiekėjo pasiūlymas:"]
["Nr.","Pavadinimas","Kiekis","Mato vienetas","Įkainis be PVM, Eur","Suma be PVM, Eur","Siūlomo produkto pavadinimas, dozė, kiekis pakuotėje, gamintojas. Būtina pažymėti, kuris vaistas yra  vardinis"]
["49.","Chlorpromazinas 100 mg "]
["49.1.","Chlorpromazinas 100 mg ",300,"tab.",null,{"$f":"IF(ISBLANK(E613),\"\", PRODUCT(C613,E613))","v":""}]
[null,null,null,null,"Suma be PVM",{"$f":"IF(F613=\"\",\"\",SUM(F613:F613))","v":""},{"$f":"IF(F613=\"\",\"Neužpildytos visos objektų kainos\",\"\")","v":"Neužpildytos visos objektų kainos"}]
[null,null,null,null,"PVM suma"]
[null,null,null,null,"Suma su PVM",{"$f":"IF(ISBLANK(F615), \"\", SUM(F614:F615))","v":""},"Dalies biudžetas su PVM: 157,5 Eur"]
[]
[]
[]
["50. DALIS","CHLORPROMAZINAS 25MG/ML 2 ML "]
[]
["Tiekėjo pasiūlymas:"]
["Nr.","Pavadinimas","Kiekis","Mato vienetas","Įkainis be PVM, Eur","Suma be PVM, Eur","Siūlomo produkto pavadinimas, dozė, kiekis pakuotėje, gamintojas. Būtina pažymėti, kuris vaistas yra  vardinis"]
["50.","Chlorpromazinas 25mg/ml 2 ml "]
["50.1.","Chlorpromazinas 25mg/ml 2 ml ",100,"amp.",null,{"$f":"IF(ISBLANK(E625),\"\", PRODUCT(C625,E625))","v":""}]
[null,null,null,null,"Suma be PVM",{"$f":"IF(F625=\"\",\"\",SUM(F625:F625))","v":""},{"$f":"IF(F625=\"\",\"Neužpildytos visos objektų kainos\",\"\")","v":"Neužpildytos visos objektų kainos"}]
[null,null,null,null,"PVM suma"]
[null,null,null,null,"Suma su PVM",{"$f":"IF(ISBLANK(F627), \"\", SUM(F626:F627))","v":""},"Dalies biudžetas su PVM: 135,45 Eur"]
[]
[]
[]
["51. DALIS","CIANOKOBALAMINAS 500ΜG/ML"]
[]
["Tiekėjo pasiūlymas:"]
["Nr.","Pavadinimas","Kiekis","Mato vienetas","Įkainis be PVM, Eur","Suma be PVM, Eur","Siūlomo produkto pavadinimas, dozė, kiekis pakuotėje, gamintojas. Būtina pažymėti, kuris vaistas yra  vardinis"]
["51.","Cianokobalaminas 500µg/ml"]
["51.1.","Cianokobalaminas 500µg/ml",1300,"amp.",null,{"$f":"IF(ISBLANK(E637),\"\", PRODUCT(C637,E637))","v":""}]
[null,null,null,null,"Suma be PVM",{"$f":"IF(F637=\"\",\"\",SUM(F637:F637))","v":""},{"$f":"IF(F637=\"\",\"Neužpildytos visos objektų kainos\",\"\")","v":"Neužpildytos visos objektų kainos"}]
[null,null,null,null,"PVM suma"]
[null,null,null,null,"Suma su PVM",{"$f":"IF(ISBLANK(F639), \"\", SUM(F638:F639))","v":""},"Dalies biudžetas su PVM: 1023,75 Eur"]
[]
[]
[]
["52. DALIS","CIKLOPENTOLATAS 1% 15 ML"]
[]
["Tiekėjo pasiūlymas:"]
["Nr.","Pavadinimas","Kiekis","Mato vienetas","Įkainis be PVM, Eur","Suma be PVM, Eur","Siūlomo produkto pavadinimas, dozė, kiekis pakuotėje, gamintojas. Būtina pažymėti, kuris vaistas yra  vardinis"]
["52.","Ciklopentolatas 1% 15 ml"]
["52.1.","Ciklopentolatas 1% 15 ml",20,"fl.",null,{"$f":"IF(ISBLANK(E649),\"\", PRODUCT(C649,E649))","v":""}]
[null,null,null,null,"Suma be PVM",{"$f":"IF(F649=\"\",\"\",SUM(F649:F649))","v":""},{"$f":"IF(F649=\"\",\"Neužpildytos visos objektų kainos\",\"\")","v":"Neužpildytos visos objektų kainos"}]
[null,null,null,null,"PVM suma"]
[null,null,null,null,"Suma su PVM",{"$f":"IF(ISBLANK(F651), \"\", SUM(F650:F651))","v":""},"Dalies biudžetas su PVM: 73,5 Eur"]
[]
[]
[]
["53. DALIS","CINKO OKSIDO TEPALAS 100MG/G"]
[]
["Tiekėjo pasiūlymas:"]
["Nr.","Pavadinimas","Kiekis","Mato vienetas","Įkainis be PVM, Eur","Suma be PVM, Eur","Siūlomo produkto pavadinimas, dozė, kiekis pakuotėje, gamintojas. Būtina pažymėti, kuris vaistas yra  vardinis"]
["53.","Cinko oksido tepalas 100mg/g"]
["53.1.","Cinko oksido tepalas 100mg/g",1090,"g",null,{"$f":"IF(ISBLANK(E661),\"\", PRODUCT(C661,E661))","v":""}]
[null,null,null,null,"Suma be PVM",{"$f":"IF(F661=\"\",\"\",SUM(F661:F661))","v":""},{"$f":"IF(F661=\"\",\"Neužpildytos visos objektų kainos\",\"\")","v":"Neužpildytos visos objektų kainos"}]
[null,null,null,null,"PVM suma"]
[null,null,null,null,"Suma su PVM",{"$f":"IF(ISBLANK(F663), \"\", SUM(F662:F663))","v":""},"Dalies biudžetas su PVM: 381,5 Eur"]
[]
[]
[]
["54. DALIS","CITRULUS COLOCYNTHIS, AMMONIUM BROMATUM, ATROPINUM SULFURICUM, VERATRUM ALBUM, MAGNESIUM PHOSPHORICUM, GELSEMIUM SEMPERVIRENS, PASSIFLORA INCARNATA, AGARICUS, CHAMOMILLA RECUTITA, CUPRUM SULFURICIM, ACONITUM NAPELLUS, LAKTOZĖS, TAB MAGNIO STEARATO."]
[]
["Tiekėjo pasiūlymas:"]
["Nr.","Pavadinimas","Kiekis","Mato vienetas","Įkainis be PVM, Eur","Suma be PVM, Eur","Siūlomo produkto pavadinimas, dozė, kiekis pakuotėje, gamintojas. Būtina pažymėti, kuris vaistas yra  vardinis"]
["54.","Citrulus colocynthis, ammonium bromatum, atropinum sulfuricum, veratrum album, magnesium phosphoricum, gelsemium sempervirens, passiflora incarnata, agaricus, chamomilla recutita, cuprum sulfuricim, aconitum napellus, laktozės, magnio stearato."]
["54.1.","Citrulus colocynthis, ammonium bromatum, atropinum sulfuricum, veratrum album, magnesium phosphoricum, gelsemium sempervirens, passiflora incarnata, agaricus, chamomilla recutita, cuprum sulfuricim, aconitum napellus, laktozės, magnio stearato.",14500,"tab.",null,{"$f":"IF(ISBLANK(E673),\"\", PRODUCT(C673,E673))","v":""}]
[null,null,null,null,"Suma be PVM",{"$f":"IF(F673=\"\",\"\",SUM(F673:F673))","v":""},{"$f":"IF(F673=\"\",\"Neužpildytos visos objektų kainos\",\"\")","v":"Neužpildytos visos objektų kainos"}]
[null,null,null,null,"PVM suma"]
[null,null,null,null,"Suma su PVM",{"$f":"IF(ISBLANK(F675), \"\", SUM(F674:F675))","v":""},"Dalies biudžetas su PVM: 1305 Eur"]
[]
[]
[]
["55. DALIS","CLONIDIN 150 MG/ML INJEKCINIS TIRPALAS"]
[]
["Tiekėjo pasiūlymas:"]
["Nr.","Pavadinimas","Kiekis","Mato vienetas","Įkainis be PVM, Eur","Suma be PVM, Eur","Siūlomo produkto pavadinimas, dozė, kiekis pakuotėje, gamintojas. Būtina pažymėti, kuris vaistas yra  vardinis"]
["55.","Clonidin 150 mg/ml injekcinis tirpalas"]
["55.1.","Clonidin 150 mg/ml injekcinis tirpalas",150,"amp.",null,{"$f":"IF(ISBLANK(E685),\"\", PRODUCT(C685,E685))","v":""}]
[null,null,null,null,"Suma be PVM",{"$f":"IF(F685=\"\",\"\",SUM(F685:F685))","v":""},{"$f":"IF(F685=\"\",\"Neužpildytos visos objektų kainos\",\"\")","v":"Neužpildytos visos objektų kainos"}]
[null,null,null,null,"PVM suma"]
[null,null,null,null,"Suma su PVM",{"$f":"IF(ISBLANK(F687), \"\", SUM(F686:F687))","v":""},"Dalies biudžetas su PVM: 236,25 Eur"]
[]
[]
[]
["56. DALIS","CLONIDIN 75 MCG "]
[]
["Tiekėjo pasiūlymas:"]
["Nr.","Pavadinimas","Kiekis","Mato vienetas","Įkainis be PVM, Eur","Suma be PVM, Eur","Siūlomo produkto pavadinimas, dozė, kiekis pakuotėje, gamintojas. Būtina pažymėti, kuris vaistas yra  vardinis"]
["56.","Clonidin 75 mcg "]
["56.1.","Clonidin 75 mcg ",20,"tab.",null,{"$f":"IF(ISBLANK(E697),\"\", PRODUCT(C697,E697))","v":""}]
[null,null,null,null,"Suma be PVM",{"$f":"IF(F697=\"\",\"\",SUM(F697:F697))","v":""},{"$f":"IF(F697=\"\",\"Neužpildytos visos objektų kainos\",\"\")","v":"Neužpildytos visos objektų kainos"}]
[null,null,null,null,"PVM suma"]
[null,null,null,null,"Suma su PVM",{"$f":"IF(ISBLANK(F699), \"\", SUM(F698:F699))","v":""},"Dalies biudžetas su PVM: 21 Eur"]
[]
[]
[]
["57. DALIS","COLCHICINUM  0,5 MG"]
[]
["Tiekėjo pasiūlymas:"]
["Nr.","Pavadinimas","Kiekis","Mato vienetas","Įkainis be PVM, Eur","Suma be PVM, Eur","Siūlomo produkto pavadinimas, dozė, kiekis pakuotėje, gamintojas. Būtina pažymėti, kuris vaistas yra  vardinis"]
["57.","Colchicinum  0,5 mg"]
["57.1.","Colchicinum  0,5 mg",30,"tab.",null,{"$f":"IF(ISBLANK(E709),\"\", PRODUCT(C709,E709))","v":""}]
[null,null,null,null,"Suma be PVM",{"$f":"IF(F709=\"\",\"\",SUM(F709:F709))","v":""},{"$f":"IF(F709=\"\",\"Neužpildytos visos objektų kainos\",\"\")","v":"Neužpildytos visos objektų kainos"}]
[null,null,null,null,"PVM suma"]
[null,null,null,null,"Suma su PVM",{"$f":"IF(ISBLANK(F711), \"\", SUM(F710:F711))","v":""},"Dalies biudžetas su PVM: 157,5 Eur"]
[]
[]
[]
["58. DALIS","COLCHICINUM 1 MG"]
[]
["Tiekėjo pasiūlymas:"]
["Nr.","Pavadinimas","Kiekis","Mato vienetas","Įkainis be PVM, Eur","Suma be PVM, Eur","Siūlomo produkto pavadinimas, dozė, kiekis pakuotėje, gamintojas. Būtina pažymėti, kuris vaistas yra  vardinis"]
["58.","Colchicinum 1 mg"]
["58.1.","Colchicinum 1 mg",40,"tab.",null,{"$f":"IF(ISBLANK(E721),\"\", PRODUCT(C721,E721))","v":""}]
[null,null,null,null,"Suma be PVM",{"$f":"IF(F721=\"\",\"\",SUM(F721:F721))","v":""},{"$f":"IF(F721=\"\",\"Neužpildytos visos objektų kainos\",\"\")","v":"Neužpildytos visos objektų kainos"}]
[null,null,null,null,"PVM suma"]
[null,null,null,null,"Suma su PVM",{"$f":"IF(ISBLANK(F723), \"\", SUM(F722:F723))","v":""},"Dalies biudžetas su PVM: 210 Eur"]
[]
[]
[]
["59. DALIS","CRYSTAL VIOLET (GENTIAN VIOLET) PULV. 10G"]
[]
["Tiekėjo pasiūlymas:"]
["Nr.","Pavadinimas","Kiekis","Mato vienetas","Įkainis be PVM, Eur","Suma be PVM, Eur","Siūlomo produkto pavadinimas, dozė, kiekis pakuotėje, gamintojas. Būtina pažymėti, kuris vaistas yra  vardinis"]
["59.","Crystal violet (gentian violet) pulv. 10g"]
["59.1.","Crystal violet (gentian violet) pulv. 10g",2,"kg",null,{"$f":"IF(ISBLANK(E733),\"\", PRODUCT(C733,E733))","v":""}]
[null,null,null,null,"Suma be PVM",{"$f":"IF(F733=\"\",\"\",SUM(F733:F733))","v":""},{"$f":"IF(F733=\"\",\"Neužpildytos visos objektų kainos\",\"\")","v":"Neužpildytos visos objektų kainos"}]
[null,null,null,null,"PVM suma"]
[null,null,null,null,"Suma su PVM",{"$f":"IF(ISBLANK(F735), \"\", SUM(F734:F735))","v":""},"Dalies biudžetas su PVM: 315 Eur"]
[]
[]
[]
["60. DALIS","ČIOBRELIO ŽOLĖ  1,0-2,0  PAKELIUOSE"]
[]
["Tiekėjo pasiūlymas:"]
["Nr.","Pavadinimas","Kiekis","Mato vienetas","Įkainis be PVM, Eur","Suma be PVM, Eur","Siūlomo produkto pavadinimas, dozė, kiekis pakuotėje, gamintojas. Būtina pažymėti, kuris vaistas yra  vardinis"]
["60.","Čiobrelio žolė  1,0-2,0  pakeliuose"]
["60.1.","Čiobrelio žolė  1,0-2,0  pakeliuose",100,"vnt.",null,{"$f":"IF(ISBLANK(E745),\"\", PRODUCT(C745,E745))","v":""}]
[null,null,null,null,"Suma be PVM",{"$f":"IF(F745=\"\",\"\",SUM(F745:F745))","v":""},{"$f":"IF(F745=\"\",\"Neužpildytos visos objektų kainos\",\"\")","v":"Neužpildytos visos objektų kainos"}]
[null,null,null,null,"PVM suma"]
[null,null,null,null,"Suma su PVM",{"$f":"IF(ISBLANK(F747), \"\", SUM(F746:F747))","v":""},"Dalies biudžetas su PVM: 10,5 Eur"]
[]
[]
[]
["61. DALIS","DANTROLENAS 50MG/ML"]
[]
["Tiekėjo pasiūlymas:"]
["Nr.","Pavadinimas","Kiekis","Mato vienetas","Įkainis be PVM, Eur","Suma be PVM, Eur","Siūlomo produkto pavadinimas, dozė, kiekis pakuotėje, gamintojas. Būtina pažymėti, kuris vaistas yra  vardinis"]
["61.","Dantrolenas 50mg/ml"]
["61.1.","Dantrolenas 50mg/ml",24,"but./amp.",null,{"$f":"IF(ISBLANK(E757),\"\", PRODUCT(C757,E757))","v":""}]
[null,null,null,null,"Suma be PVM",{"$f":"IF(F757=\"\",\"\",SUM(F757:F757))","v":""},{"$f":"IF(F757=\"\",\"Neužpildytos visos objektų kainos\",\"\")","v":"Neužpildytos visos objektų kainos"}]
[null,null,null,null,"PVM suma"]
[null,null,null,null,"Suma su PVM",{"$f":"IF(ISBLANK(F759), \"\", SUM(F758:F759))","v":""},"Dalies biudžetas su PVM: 3276 Eur"]
[]
[]
[]
["62. DALIS","DAPAGLIFLOZINAS 10 MG"]
[]
["Tiekėjo pasiūlymas:"]
["Nr.","Pavadinimas","Kiekis","Mato vienetas","Įkainis be PVM, Eur","Suma be PVM, Eur","Siūlomo produkto pavadinimas, dozė, kiekis pakuotėje, gamintojas. Būtina pažymėti, kuris vaistas yra  vardinis"]
["62.","Dapagliflozinas 10 mg"]
["62.1.","Dapagliflozinas 10 mg",120,"tab.",null,{"$f":"IF(ISBLANK(E769),\"\", PRODUCT(C769,E769))","v":""}]
[null,null,null,null,"Suma be PVM",{"$f":"IF(F769=\"\",\"\",SUM(F769:F769))","v":""},{"$f":"IF(F769=\"\",\"Neužpildytos visos objektų kainos\",\"\")","v":"Neužpildytos visos objektų kainos"}]
[null,null,null,null,"PVM suma"]
[null,null,null,null,"Suma su PVM",{"$f":"IF(ISBLANK(F771), \"\", SUM(F770:F771))","v":""},"Dalies biudžetas su PVM: 176,4 Eur"]
[]
[]
[]
["63. DALIS","DAPSONAS 50MG"]
[]
["Tiekėjo pasiūlymas:"]
["Nr.","Pavadinimas","Kiekis","Mato vienetas","Įkainis be PVM, Eur","Suma be PVM, Eur","Siūlomo produkto pavadinimas, dozė, kiekis pakuotėje, gamintojas. Būtina pažymėti, kuris vaistas yra  vardinis"]
["63.","Dapsonas 50mg"]
["63.1.","Dapsonas 50mg",300,"tab.",null,{"$f":"IF(ISBLANK(E781),\"\", PRODUCT(C781,E781))","v":""}]
[null,null,null,null,"Suma be PVM",{"$f":"IF(F781=\"\",\"\",SUM(F781:F781))","v":""},{"$f":"IF(F781=\"\",\"Neužpildytos visos objektų kainos\",\"\")","v":"Neužpildytos visos objektų kainos"}]
[null,null,null,null,"PVM suma"]
[null,null,null,null,"Suma su PVM",{"$f":"IF(ISBLANK(F783), \"\", SUM(F782:F783))","v":""},"Dalies biudžetas su PVM: 157,5 Eur"]
[]
[]
[]
["64. DALIS","DĖKINAMIEJI LAŠAI/LIUBRIKANTAS AKIMS. DĖL AKIŲ SAUSUMO ATSIRADUSIEMS DEGINIMO IR DIRGINIMO POJŪČIAMS  SUMAŽINTI (LYGIAVERTIS SYSTANE ULTRA)"]
[]
["Tiekėjo pasiūlymas:"]
["Nr.","Pavadinimas","Kiekis","Mato vienetas","Įkainis be PVM, Eur","Suma be PVM, Eur","Siūlomo produkto pavadinimas, dozė, kiekis pakuotėje, gamintojas. Būtina pažymėti, kuris vaistas yra  vardinis"]
["64.","Dėkinamieji lašai/liubrikantas akims. Dėl akių sausumo atsiradusiems deginimo ir dirginimo pojūčiams  sumažinti (lygiavertis Systane Ultra)"]
["64.1.","Dėkinamieji lašai/liubrikantas akims. Dėl akių sausumo atsiradusiems deginimo ir dirginimo pojūčiams  sumažinti (lygiavertis Systane Ultra)",10,"fl.",null,{"$f":"IF(ISBLANK(E793),\"\", PRODUCT(C793,E793))","v":""}]
[null,null,null,null,"Suma be PVM",{"$f":"IF(F793=\"\",\"\",SUM(F793:F793))","v":""},{"$f":"IF(F793=\"\",\"Neužpildytos visos objektų kainos\",\"\")","v":"Neužpildytos visos objektų kainos"}]
[null,null,null,null,"PVM suma"]
[null,null,null,null,"Suma su PVM",{"$f":"IF(ISBLANK(F795), \"\", SUM(F794:F795))","v":""},"Dalies biudžetas su PVM: 133,88 Eur"]
[]
[]
[]
["65. DALIS","DIASMINUM/HESPERIDINUM 500MG"]
[]
["Tiekėjo pasiūlymas:"]
["Nr.","Pavadinimas","Kiekis","Mato vienetas","Įkainis be PVM, Eur","Suma be PVM, Eur","Siūlomo produkto pavadinimas, dozė, kiekis pakuotėje, gamintojas. Būtina pažymėti, kuris vaistas yra  vardinis"]
["65.","Diasminum/hesperidinum 500mg"]
["65.1.","Diasminum/hesperidinum 500mg",180,"tab.",null,{"$f":"IF(ISBLANK(E805),\"\", PRODUCT(C805,E805))","v":""}]
[null,null,null,null,"Suma be PVM",{"$f":"IF(F805=\"\",\"\",SUM(F805:F805))","v":""},{"$f":"IF(F805=\"\",\"Neužpildytos visos objektų kainos\",\"\")","v":"Neužpildytos visos objektų kainos"}]
[null,null,null,null,"PVM suma"]
[null,null,null,null,"Suma su PVM",{"$f":"IF(ISBLANK(F807), \"\", SUM(F806:F807))","v":""},"Dalies biudžetas su PVM: 73,5 Eur"]
[]
[]
[]
["66. DALIS","DIAZEPAMAS 10MG/2,5ML REKTALINIS TIRPALAS KLIZMUTĖS"]
[]
["Tiekėjo pasiūlymas:"]
["Nr.","Pavadinimas","Kiekis","Mato vienetas","Įkainis be PVM, Eur","Suma be PVM, Eur","Siūlomo produkto pavadinimas, dozė, kiekis pakuotėje, gamintojas. Būtina pažymėti, kuris vaistas yra  vardinis"]
["66.","Diazepamas 10mg/2,5ml rektalinis tirpalas klizmutės"]
["66.1.","Diazepamas 10mg/2,5ml rektalinis tirpalas klizmutės",20,"vnt.",null,{"$f":"IF(ISBLANK(E817),\"\", PRODUCT(C817,E817))","v":""}]
[null,null,null,null,"Suma be PVM",{"$f":"IF(F817=\"\",\"\",SUM(F817:F817))","v":""},{"$f":"IF(F817=\"\",\"Neužpildytos visos objektų kainos\",\"\")","v":"Neužpildytos visos objektų kainos"}]
[null,null,null,null,"PVM suma"]
[null,null,null,null,"Suma su PVM",{"$f":"IF(ISBLANK(F819), \"\", SUM(F818:F819))","v":""},"Dalies biudžetas su PVM: 115,5 Eur"]
[]
[]
[]
["67. DALIS","DIAZEPAMAS 2MG/5ML GERIAMOJI SUSPENSIJA"]
[]
["Tiekėjo pasiūlymas:"]
["Nr.","Pavadinimas","Kiekis","Mato vienetas","Įkainis be PVM, Eur","Suma be PVM, Eur","Siūlomo produkto pavadinimas, dozė, kiekis pakuotėje, gamintojas. Būtina pažymėti, kuris vaistas yra  vardinis"]
["67.","Diazepamas 2mg/5ml geriamoji suspensija"]
["67.1.","Diazepamas 2mg/5ml geriamoji suspensija",500,"ml",null,{"$f":"IF(ISBLANK(E829),\"\", PRODUCT(C829,E829))","v":""}]
[null,null,null,null,"Suma be PVM",{"$f":"IF(F829=\"\",\"\",SUM(F829:F829))","v":""},{"$f":"IF(F829=\"\",\"Neužpildytos visos objektų kainos\",\"\")","v":"Neužpildytos visos objektų kainos"}]
[null,null,null,null,"PVM suma"]
[null,null,null,null,"Suma su PVM",{"$f":"IF(ISBLANK(F831), \"\", SUM(F830:F831))","v":""},"Dalies biudžetas su PVM: 262,5 Eur"]
[]
[]
[]
["68. DALIS","DIAZEPAMAS 5MG/2,5ML REKTALINIS TIRPALAS KLIZMUTĖS"]
[]
["Tiekėjo pasiūlymas:"]
["Nr.","Pavadinimas","Kiekis","Mato vienetas","Įkainis be PVM, Eur","Suma be PVM, Eur","Siūlomo produkto pavadinimas, dozė, kiekis pakuotėje, gamintojas. Būtina pažymėti, kuris vaistas yra  vardinis"]
["68.","Diazepamas 5mg/2,5ml rektalinis tirpalas klizmutės"]
["68.1.","Diazepamas 5mg/2,5ml rektalinis tirpalas klizmutės",10,"vnt.",null,{"$f":"IF(ISBLANK(E841),\"\", PRODUCT(C841,E841))","v":""}]
[null,null,null,null,"Suma be PVM",{"$f":"IF(F841=\"\",\"\",SUM(F841:F841))","v":""},{"$f":"IF(F841=\"\",\"Neužpildytos visos objektų kainos\",\"\")","v":"Neužpildytos visos objektų kainos"}]
[null,null,null,null,"PVM suma"]
[null,null,null,null,"Suma su PVM",{"$f":"IF(ISBLANK(F843), \"\", SUM(F842:F843))","v":""},"Dalies biudžetas su PVM: 52,5 Eur"]
[]
[]
[]
["69. DALIS","DIFTERIJOS ANTITOKSINAS 10000IU 10ML"]
[]
["Tiekėjo pasiūlymas:"]
["Nr.","Pavadinimas","Kiekis","Mato vienetas","Įkainis be PVM, Eur","Suma be PVM, Eur","Siūlomo produkto pavadinimas, dozė, kiekis pakuotėje, gamintojas. Būtina pažymėti, kuris vaistas yra  vardinis"]
["69.","Difterijos antitoksinas 10000IU 10ml"]
["69.1.","Difterijos antitoksinas 10000IU 10ml",10,"fl.",null,{"$f":"IF(ISBLANK(E853),\"\", PRODUCT(C853,E853))","v":""}]
[null,null,null,null,"Suma be PVM",{"$f":"IF(F853=\"\",\"\",SUM(F853:F853))","v":""},{"$f":"IF(F853=\"\",\"Neužpildytos visos objektų kainos\",\"\")","v":"Neužpildytos visos objektų kainos"}]
[null,null,null,null,"PVM suma"]
[null,null,null,null,"Suma su PVM",{"$f":"IF(ISBLANK(F855), \"\", SUM(F854:F855))","v":""},"Dalies biudžetas su PVM: 4725 Eur"]
[]
[]
[]
["70. DALIS","DIGOKSINAS 0,25MG/ML "]
[]
["Tiekėjo pasiūlymas:"]
["Nr.","Pavadinimas","Kiekis","Mato vienetas","Įkainis be PVM, Eur","Suma be PVM, Eur","Siūlomo produkto pavadinimas, dozė, kiekis pakuotėje, gamintojas. Būtina pažymėti, kuris vaistas yra  vardinis"]
["70.","Digoksinas 0,25mg/ml "]
["70.1.","Digoksinas 0,25mg/ml ",800,"amp.",null,{"$f":"IF(ISBLANK(E865),\"\", PRODUCT(C865,E865))","v":""}]
[null,null,null,null,"Suma be PVM",{"$f":"IF(F865=\"\",\"\",SUM(F865:F865))","v":""},{"$f":"IF(F865=\"\",\"Neužpildytos visos objektų kainos\",\"\")","v":"Neužpildytos visos objektų kainos"}]
[null,null,null,null,"PVM suma"]
[null,null,null,null,"Suma su PVM",{"$f":"IF(ISBLANK(F867), \"\", SUM(F866:F867))","v":""},"Dalies biudžetas su PVM: 1200 Eur"]
[]
[]
[]
["71. DALIS","DISTILIUOTAS VANDUO IRIGACIJOMS 500ML"]
[]
["Tiekėjo pasiūlymas:"]
["Nr.","Pavadinimas","Kiekis","Mato vienetas","Įkainis be PVM, Eur","Suma be PVM, Eur","Siūlomo produkto pavadinimas, dozė, kiekis pakuotėje, gamintojas. Būtina pažymėti, kuris vaistas yra  vardinis"]
["71.","Distiliuotas vanduo irigacijoms 500ml"]
["71.1.","Distiliuotas vanduo irigacijoms 500ml",100,"fl.",null,{"$f":"IF(ISBLANK(E877),\"\", PRODUCT(C877,E877))","v":""}]
[null,null,null,null,"Suma be PVM",{"$f":"IF(F877=\"\",\"\",SUM(F877:F877))","v":""},{"$f":"IF(F877=\"\",\"Neužpildytos visos objektų kainos\",\"\")","v":"Neužpildytos visos objektų kainos"}]
[null,null,null,null,"PVM suma"]
[null,null,null,null,"Suma su PVM",{"$f":"IF(ISBLANK(F879), \"\", SUM(F878:F879))","v":""},"Dalies biudžetas su PVM: 315 Eur"]
[]
[]
[]
["72. DALIS","DORIPENEMAS 500MG MILT. INFUZ. TIRP."]
[]
["Tiekėjo pasiūlymas:"]
["Nr.","Pavadinimas","Kiekis","Mato vienetas","Įkainis be PVM, Eur","Suma be PVM, Eur","Siūlomo produkto pavadinimas, dozė, kiekis pakuotėje, gamintojas. Būtina pažymėti, kuris vaistas yra  vardinis"]
["72.","Doripenemas 500mg milt. infuz. tirp."]
["72.1.","Doripenemas 500mg milt. infuz. tirp.",20,"fl.",null,{"$f":"IF(ISBLANK(E889),\"\", PRODUCT(C889,E889))","v":""}]
[null,null,null,null,"Suma be PVM",{"$f":"IF(F889=\"\",\"\",SUM(F889:F889))","v":""},{"$f":"IF(F889=\"\",\"Neužpildytos visos objektų kainos\",\"\")","v":"Neužpildytos visos objektų kainos"}]
[null,null,null,null,"PVM suma"]
[null,null,null,null,"Suma su PVM",{"$f":"IF(ISBLANK(F891), \"\", SUM(F890:F891))","v":""},"Dalies biudžetas su PVM: 19530 Eur"]
[]
[]
[]
["73. DALIS","DOXEPINAS 25 MG "]
[]
["Tiekėjo pasiūlymas:"]
["Nr.","Pavadinimas","Kiekis","Mato vienetas","Įkainis be PVM, Eur","Suma be PVM, Eur","Siūlomo produkto pavadinimas, dozė, kiekis pakuotėje, gamintojas. Būtina pažymėti, kuris vaistas yra  vardinis"]
["73.","Doxepinas 25 mg "]
["73.1.","Doxepinas 25 mg ",210,"kaps.",null,{"$f":"IF(ISBLANK(E901),\"\", PRODUCT(C901,E901))","v":""}]
[null,null,null,null,"Suma be PVM",{"$f":"IF(F901=\"\",\"\",SUM(F901:F901))","v":""},{"$f":"IF(F901=\"\",\"Neužpildytos visos objektų kainos\",\"\")","v":"Neužpildytos visos objektų kainos"}]
[null,null,null,null,"PVM suma"]
[null,null,null,null,"Suma su PVM",{"$f":"IF(ISBLANK(F903), \"\", SUM(F902:F903))","v":""},"Dalies biudžetas su PVM: 110,25 Eur"]
[]
[]
[]
["74. DALIS","EFEDRINO HIDROCHLORIDAS 25MG/ML."]
[]
["Tiekėjo pasiūlymas:"]
["Nr.","Pavadinimas","Kiekis","Mato vienetas","Įkainis be PVM, Eur","Suma be PVM, Eur","Siūlomo produkto pavadinimas, dozė, kiekis pakuotėje, gamintojas. Būtina pažymėti, kuris vaistas yra  vardinis"]
["74.","Efedrino hidrochloridas 25mg/ml."]
["74.1.","Efedrino hidrochloridas 25mg/ml",1000,"amp.",null,{"$f":"IF(ISBLANK(E913),\"\", PRODUCT(C913,E913))","v":""}]
[null,null,null,null,"Suma be PVM",{"$f":"IF(F913=\"\",\"\",SUM(F913:F913))","v":""},{"$f":"IF(F913=\"\",\"Neužpildytos visos objektų kainos\",\"\")","v":"Neužpildytos visos objektų kainos"}]
[null,null,null,null,"PVM suma"]
[null,null,null,null,"Suma su PVM",{"$f":"IF(ISBLANK(F915), \"\", SUM(F914:F915))","v":""},"Dalies biudžetas su PVM: 1995 Eur"]
[]
[]
[]
["75. DALIS","ERITROMICINAS 500MG"]
[]
["Tiekėjo pasiūlymas:"]
["Nr.","Pavadinimas","Kiekis","Mato vienetas","Įkainis be PVM, Eur","Suma be PVM, Eur","Siūlomo produkto pavadinimas, dozė, kiekis pakuotėje, gamintojas. Būtina pažymėti, kuris vaistas yra  vardinis"]
["75.","Eritromicinas 500mg"]
["75.1.","Eritromicinas 500mg",20,"amp.",null,{"$f":"IF(ISBLANK(E925),\"\", PRODUCT(C925,E925))","v":""}]
[null,null,null,null,"Suma be PVM",{"$f":"IF(F925=\"\",\"\",SUM(F925:F925))","v":""},{"$f":"IF(F925=\"\",\"Neužpildytos visos objektų kainos\",\"\")","v":"Neužpildytos visos objektų kainos"}]
[null,null,null,null,"PVM suma"]
[null,null,null,null,"Suma su PVM",{"$f":"IF(ISBLANK(F927), \"\", SUM(F926:F927))","v":""},"Dalies biudžetas su PVM: 420 Eur"]
[]
[]
[]
["76. DALIS","ERTAPANEMAS 1000MG INJEKCIJOMS"]
[]
["Tiekėjo pasiūlymas:"]
["Nr.","Pavadinimas","Kiekis","Mato vienetas","Įkainis be PVM, Eur","Suma be PVM, Eur","Siūlomo produkto pavadinimas, dozė, kiekis pakuotėje, gamintojas. Būtina pažymėti, kuris vaistas yra  vardinis"]
["76.","Ertapanemas 1000mg injekcijoms"]
["76.1.","Ertapanemas 1000mg injekcijoms",10,"amp.",null,{"$f":"IF(ISBLANK(E937),\"\", PRODUCT(C937,E937))","v":""}]
[null,null,null,null,"Suma be PVM",{"$f":"IF(F937=\"\",\"\",SUM(F937:F937))","v":""},{"$f":"IF(F937=\"\",\"Neužpildytos visos objektų kainos\",\"\")","v":"Neužpildytos visos objektų kainos"}]
[null,null,null,null,"PVM suma"]
[null,null,null,null,"Suma su PVM",{"$f":"IF(ISBLANK(F939), \"\", SUM(F938:F939))","v":""},"Dalies biudžetas su PVM: 1050 Eur"]
[]
[]
[]
["77. DALIS","ESTAZOLAMUM 2MG"]
[]
["Tiekėjo pasiūlymas:"]
["Nr.","Pavadinimas","Kiekis","Mato vienetas","Įkainis be PVM, Eur","Suma be PVM, Eur","Siūlomo produkto pavadinimas, dozė, kiekis pakuotėje, gamintojas. Būtina pažymėti, kuris vaistas yra  vardinis"]
["77.","Estazolamum 2mg"]
["77.1.","Estazolamum 2mg",40,"tab.",null,{"$f":"IF(ISBLANK(E949),\"\", PRODUCT(C949,E949))","v":""}]
[null,null,null,null,"Suma be PVM",{"$f":"IF(F949=\"\",\"\",SUM(F949:F949))","v":""},{"$f":"IF(F949=\"\",\"Neužpildytos visos objektų kainos\",\"\")","v":"Neužpildytos visos objektų kainos"}]
[null,null,null,null,"PVM suma"]
[null,null,null,null,"Suma su PVM",{"$f":"IF(ISBLANK(F951), \"\", SUM(F950:F951))","v":""},"Dalies biudžetas su PVM: 15,75 Eur"]
[]
[]
[]
["78. DALIS","ETAMBUTOLIS 1,0 G"]
[]
["Tiekėjo pasiūlymas:"]
["Nr.","Pavadinimas","Kiekis","Mato vienetas","Įkainis be PVM, Eur","Suma be PVM, Eur","Siūlomo produkto pavadinimas, dozė, kiekis pakuotėje, gamintojas. Būtina pažymėti, kuris vaistas yra  vardinis"]
["78.","Etambutolis 1,0 g"]
["78.1.","Etambutolis 1,0 g",200,"fl.",null,{"$f":"IF(ISBLANK(E961),\"\", PRODUCT(C961,E961))","v":""}]
[null,null,null,null,"Suma be PVM",{"$f":"IF(F961=\"\",\"\",SUM(F961:F961))","v":""},{"$f":"IF(F961=\"\",\"Neužpildytos visos objektų kainos\",\"\")","v":"Neužpildytos visos objektų kainos"}]
[null,null,null,null,"PVM suma"]
[null,null,null,null,"Suma su PVM",{"$f":"IF(ISBLANK(F963), \"\", SUM(F962:F963))","v":""},"Dalies biudžetas su PVM: 1260 Eur"]
[]
[]
[]
["79. DALIS","ETAMSILATAS 250MG/2ML"]
[]
["Tiekėjo pasiūlymas:"]
["Nr.","Pavadinimas","Kiekis","Mato vienetas","Įkainis be PVM, Eur","Suma be PVM, Eur","Siūlomo produkto pavadinimas, dozė, kiekis pakuotėje, gamintojas. Būtina pažymėti, kuris vaistas yra  vardinis"]
["79.","Etamsilatas 250mg/2ml"]
["79.1.","Etamsilatas 250mg/2ml",3000,"amp.",null,{"$f":"IF(ISBLANK(E973),\"\", PRODUCT(C973,E973))","v":""}]
[null,null,null,null,"Suma be PVM",{"$f":"IF(F973=\"\",\"\",SUM(F973:F973))","v":""},{"$f":"IF(F973=\"\",\"Neužpildytos visos objektų kainos\",\"\")","v":"Neužpildytos visos objektų kainos"}]
[null,null,null,null,"PVM suma"]
[null,null,null,null,"Suma su PVM",{"$f":"IF(ISBLANK(F975), \"\", SUM(F974:F975))","v":""},"Dalies biudžetas su PVM: 840 Eur"]
[]
[]
[]
["80. DALIS","ETILO SPIRITAS 96%"]
[]
["Tiekėjo pasiūlymas:"]
["Nr.","Pavadinimas","Kiekis","Mato vienetas","Įkainis be PVM, Eur","Suma be PVM, Eur","Siūlomo produkto pavadinimas, dozė, kiekis pakuotėje, gamintojas. Būtina pažymėti, kuris vaistas yra  vardinis"]
["80.","Etilo spiritas 96%"]
["80.1.","Etilo spiritas 96%",3440,"L",null,{"$f":"IF(ISBLANK(E985),\"\", PRODUCT(C985,E985))","v":""}]
[null,null,null,null,"Suma be PVM",{"$f":"IF(F985=\"\",\"\",SUM(F985:F985))","v":""},{"$f":"IF(F985=\"\",\"Neužpildytos visos objektų kainos\",\"\")","v":"Neužpildytos visos objektų kainos"}]
[null,null,null,null,"PVM suma"]
[null,null,null,null,"Suma su PVM",{"$f":"IF(ISBLANK(F987), \"\", SUM(F986:F987))","v":""},"Dalies biudžetas su PVM: 7826 Eur"]
[]
[]
[]
["81. DALIS","EUPHRASIA OFFICINALIS D5/COCHLEARIA OFFICINALIS D5/PILOCARPUS D5/ECHINACEA D5 0.45 ML AKIŲ LAŠAI"]
[]
["Tiekėjo pasiūlymas:"]
["Nr.","Pavadinimas","Kiekis","Mato vienetas","Įkainis be PVM, Eur","Suma be PVM, Eur","Siūlomo produkto pavadinimas, dozė, kiekis pakuotėje, gamintojas. Būtina pažymėti, kuris vaistas yra  vardinis"]
["81.","Euphrasia officinalis D5/Cochlearia officinalis D5/Pilocarpus D5/Echinacea D5 0.45 ml akių lašai"]
["81.1.","Euphrasia officinalis D5/Cochlearia officinalis D5/Pilocarpus D5/Echinacea D5 0.45 ml akių lašai",30,"vienadozė talpyklė",null,{"$f":"IF(ISBLANK(E997),\"\", PRODUCT(C997,E997))","v":""}]
[null,null,null,null,"Suma be PVM",{"$f":"IF(F997=\"\",\"\",SUM(F997:F997))","v":""},{"$f":"IF(F997=\"\",\"Neužpildytos visos objektų kainos\",\"\")","v":"Neužpildytos visos objektų kainos"}]
[null,null,null,null,"PVM suma"]
[null,null,null,null,"Suma su PVM",{"$f":"IF(ISBLANK(F999), \"\", SUM(F998:F999))","v":""},"Dalies biudžetas su PVM: 25,2 Eur"]
[]
[]
[]
["82. DALIS","FENILEFRINAS 10%  AKIŲ LAŠAI"]
[]
["Tiekėjo pasiūlymas:"]
["Nr.","Pavadinimas","Kiekis","Mato vienetas","Įkainis be PVM, Eur","Suma be PVM, Eur","Siūlomo produkto pavadinimas, dozė, kiekis pakuotėje, gamintojas. Būtina pažymėti, kuris vaistas yra  vardinis"]
["82.","Fenilefrinas 10%  akių lašai"]
["82.1.","Fenilefrinas 10%  akių lašai",120,"ml",null,{"$f":"IF(ISBLANK(E1009),\"\", PRODUCT(C1009,E1009))","v":""}]
[null,null,null,null,"Suma be PVM",{"$f":"IF(F1009=\"\",\"\",SUM(F1009:F1009))","v":""},{"$f":"IF(F1009=\"\",\"Neužpildytos visos objektų kainos\",\"\")","v":"Neužpildytos visos objektų kainos"}]
[null,null,null,null,"PVM suma"]
[null,null,null,null,"Suma su PVM",{"$f":"IF(ISBLANK(F1011), \"\", SUM(F1010:F1011))","v":""},"Dalies biudžetas su PVM: 75,6 Eur"]
[]
[]
[]
["83. DALIS","FENITOINAS 250MG"]
[]
["Tiekėjo pasiūlymas:"]
["Nr.","Pavadinimas","Kiekis","Mato vienetas","Įkainis be PVM, Eur","Suma be PVM, Eur","Siūlomo produkto pavadinimas, dozė, kiekis pakuotėje, gamintojas. Būtina pažymėti, kuris vaistas yra  vardinis"]
["83.","Fenitoinas 250mg"]
["83.1.","Fenitoinas 250mg",10,"amp.",null,{"$f":"IF(ISBLANK(E1021),\"\", PRODUCT(C1021,E1021))","v":""}]
[null,null,null,null,"Suma be PVM",{"$f":"IF(F1021=\"\",\"\",SUM(F1021:F1021))","v":""},{"$f":"IF(F1021=\"\",\"Neužpildytos visos objektų kainos\",\"\")","v":"Neužpildytos visos objektų kainos"}]
[null,null,null,null,"PVM suma"]
[null,null,null,null,"Suma su PVM",{"$f":"IF(ISBLANK(F1023), \"\", SUM(F1022:F1023))","v":""},"Dalies biudžetas su PVM: 115,5 Eur"]
[]
[]
[]
["84. DALIS","FENOBARBITALIS 100MG"]
[]
["Tiekėjo pasiūlymas:"]
["Nr.","Pavadinimas","Kiekis","Mato vienetas","Įkainis be PVM, Eur","Suma be PVM, Eur","Siūlomo produkto pavadinimas, dozė, kiekis pakuotėje, gamintojas. Būtina pažymėti, kuris vaistas yra  vardinis"]
["84.","Fenobarbitalis 100mg"]
["84.1.","Fenobarbitalis 100mg",100,"tab.",null,{"$f":"IF(ISBLANK(E1033),\"\", PRODUCT(C1033,E1033))","v":""}]
[null,null,null,null,"Suma be PVM",{"$f":"IF(F1033=\"\",\"\",SUM(F1033:F1033))","v":""},{"$f":"IF(F1033=\"\",\"Neužpildytos visos objektų kainos\",\"\")","v":"Neužpildytos visos objektų kainos"}]
[null,null,null,null,"PVM suma"]
[null,null,null,null,"Suma su PVM",{"$f":"IF(ISBLANK(F1035), \"\", SUM(F1034:F1035))","v":""},"Dalies biudžetas su PVM: 31,5 Eur"]
[]
[]
[]
["85. DALIS","FENOBARBITALIS 200MG"]
[]
["Tiekėjo pasiūlymas:"]
["Nr.","Pavadinimas","Kiekis","Mato vienetas","Įkainis be PVM, Eur","Suma be PVM, Eur","Siūlomo produkto pavadinimas, dozė, kiekis pakuotėje, gamintojas. Būtina pažymėti, kuris vaistas yra  vardinis"]
["85.","Fenobarbitalis 200mg"]
["85.1.","Fenobarbitalis 200mg",20,"amp.",null,{"$f":"IF(ISBLANK(E1045),\"\", PRODUCT(C1045,E1045))","v":""}]
[null,null,null,null,"Suma be PVM",{"$f":"IF(F1045=\"\",\"\",SUM(F1045:F1045))","v":""},{"$f":"IF(F1045=\"\",\"Neužpildytos visos objektų kainos\",\"\")","v":"Neužpildytos visos objektų kainos"}]
[null,null,null,null,"PVM suma"]
[null,null,null,null,"Suma su PVM",{"$f":"IF(ISBLANK(F1047), \"\", SUM(F1046:F1047))","v":""},"Dalies biudžetas su PVM: 210 Eur"]
[]
[]
[]
["86. DALIS","FENOFIBRATAS 200 MG"]
[]
["Tiekėjo pasiūlymas:"]
["Nr.","Pavadinimas","Kiekis","Mato vienetas","Įkainis be PVM, Eur","Suma be PVM, Eur","Siūlomo produkto pavadinimas, dozė, kiekis pakuotėje, gamintojas. Būtina pažymėti, kuris vaistas yra  vardinis"]
["86.","Fenofibratas 200 mg"]
["86.1.","Fenofibratas 200 mg",60,"tab.",null,{"$f":"IF(ISBLANK(E1057),\"\", PRODUCT(C1057,E1057))","v":""}]
[null,null,null,null,"Suma be PVM",{"$f":"IF(F1057=\"\",\"\",SUM(F1057:F1057))","v":""},{"$f":"IF(F1057=\"\",\"Neužpildytos visos objektų kainos\",\"\")","v":"Neužpildytos visos objektų kainos"}]
[null,null,null,null,"PVM suma"]
[null,null,null,null,"Suma su PVM",{"$f":"IF(ISBLANK(F1059), \"\", SUM(F1058:F1059))","v":""},"Dalies biudžetas su PVM: 18,9 Eur"]
[]
[]
[]
["87. DALIS","FITOMENADIONAS 10MG INJEKCIJOMS"]
[]
["Tiekėjo pasiūlymas:"]
["Nr.","Pavadinimas","Kiekis","Mato vienetas","Įkainis be PVM, Eur","Suma be PVM, Eur","Siūlomo produkto pavadinimas, dozė, kiekis pakuotėje, gamintojas. Būtina pažymėti, kuris vaistas yra  vardinis"]
["87.","Fitomenadionas 10mg injekcijoms"]
["87.1.","Fitomenadionas 10mg injekcijoms",3600,"amp.",null,{"$f":"IF(ISBLANK(E1069),\"\", PRODUCT(C1069,E1069))","v":""}]
[null,null,null,null,"Suma be PVM",{"$f":"IF(F1069=\"\",\"\",SUM(F1069:F1069))","v":""},{"$f":"IF(F1069=\"\",\"Neužpildytos visos objektų kainos\",\"\")","v":"Neužpildytos visos objektų kainos"}]
[null,null,null,null,"PVM suma"]
[null,null,null,null,"Suma su PVM",{"$f":"IF(ISBLANK(F1071), \"\", SUM(F1070:F1071))","v":""},"Dalies biudžetas su PVM: 2016 Eur"]
[]
[]
[]
["88. DALIS","FUCHSINUM BASIC"]
[]
["Tiekėjo pasiūlymas:"]
["Nr.","Pavadinimas","Kiekis","Mato vienetas","Įkainis be PVM, Eur","Suma be PVM, Eur","Siūlomo produkto pavadinimas, dozė, kiekis pakuotėje, gamintojas. Būtina pažymėti, kuris vaistas yra  vardinis"]
["88.","Fuchsinum basic"]
["88.1.","Fuchsinum basic",150,"g",null,{"$f":"IF(ISBLANK(E1081),\"\", PRODUCT(C1081,E1081))","v":""}]
[null,null,null,null,"Suma be PVM",{"$f":"IF(F1081=\"\",\"\",SUM(F1081:F1081))","v":""},{"$f":"IF(F1081=\"\",\"Neužpildytos visos objektų kainos\",\"\")","v":"Neužpildytos visos objektų kainos"}]
[null,null,null,null,"PVM suma"]
[null,null,null,null,"Suma su PVM",{"$f":"IF(ISBLANK(F1083), \"\", SUM(F1082:F1083))","v":""},"Dalies biudžetas su PVM: 105 Eur"]
[]
[]
[]
["89. DALIS","FURACILLINUM"]
[]
["Tiekėjo pasiūlymas:"]
["Nr.","Pavadinimas","Kiekis","Mato vienetas","Įkainis be PVM, Eur","Suma be PVM, Eur","Siūlomo produkto pavadinimas, dozė, kiekis pakuotėje, gamintojas. Būtina pažymėti, kuris vaistas yra  vardinis"]
["89.","Furacillinum"]
["89.1.","Furacillinum",1,"kg",null,{"$f":"IF(ISBLANK(E1093),\"\", PRODUCT(C1093,E1093))","v":""}]
[null,null,null,null,"Suma be PVM",{"$f":"IF(F1093=\"\",\"\",SUM(F1093:F1093))","v":""},{"$f":"IF(F1093=\"\",\"Neužpildytos visos objektų kainos\",\"\")","v":"Neužpildytos visos objektų kainos"}]
[null,null,null,null,"PVM suma"]
[null,null,null,null,"Suma su PVM",{"$f":"IF(ISBLANK(F1095), \"\", SUM(F1094:F1095))","v":""},"Dalies biudžetas su PVM: 105 Eur"]
[]
[]
[]
["90. DALIS","FUROZEMIDAS 60 MG"]
[]
["Tiekėjo pasiūlymas:"]
["Nr.","Pavadinimas","Kiekis","Mato vienetas","Įkainis be PVM, Eur","Suma be PVM, Eur","Siūlomo produkto pavadinimas, dozė, kiekis pakuotėje, gamintojas. Būtina pažymėti, kuris vaistas yra  vardinis"]
["90.","Furozemidas 60 mg"]
["90.1.","Furozemidas 60 mg",900,"kaps.",null,{"$f":"IF(ISBLANK(E1105),\"\", PRODUCT(C1105,E1105))","v":""}]
[null,null,null,null,"Suma be PVM",{"$f":"IF(F1105=\"\",\"\",SUM(F1105:F1105))","v":""},{"$f":"IF(F1105=\"\",\"Neužpildytos visos objektų kainos\",\"\")","v":"Neužpildytos visos objektų kainos"}]
[null,null,null,null,"PVM suma"]
[null,null,null,null,"Suma su PVM",{"$f":"IF(ISBLANK(F1107), \"\", SUM(F1106:F1107))","v":""},"Dalies biudžetas su PVM: 231 Eur"]
[]
[]
[]
["91. DALIS","FUZIDO RŪGŠTIES 20MG/G TEPALAS"]
[]
["Tiekėjo pasiūlymas:"]
["Nr.","Pavadinimas","Kiekis","Mato vienetas","Įkainis be PVM, Eur","Suma be PVM, Eur","Siūlomo produkto pavadinimas, dozė, kiekis pakuotėje, gamintojas. Būtina pažymėti, kuris vaistas yra  vardinis"]
["91.","Fuzido rūgšties 20mg/g tepalas"]
["91.1.","Fuzido rūgšties 20mg/g tepalas",750,"g",null,{"$f":"IF(ISBLANK(E1117),\"\", PRODUCT(C1117,E1117))","v":""}]
[null,null,null,null,"Suma be PVM",{"$f":"IF(F1117=\"\",\"\",SUM(F1117:F1117))","v":""},{"$f":"IF(F1117=\"\",\"Neužpildytos visos objektų kainos\",\"\")","v":"Neužpildytos visos objektų kainos"}]
[null,null,null,null,"PVM suma"]
[null,null,null,null,"Suma su PVM",{"$f":"IF(ISBLANK(F1119), \"\", SUM(F1118:F1119))","v":""},"Dalies biudžetas su PVM: 341,25 Eur"]
[]
[]
[]
["92. DALIS","GANCIKLOVIRAS 500MG INJEKCIJOMS"]
[]
["Tiekėjo pasiūlymas:"]
["Nr.","Pavadinimas","Kiekis","Mato vienetas","Įkainis be PVM, Eur","Suma be PVM, Eur","Siūlomo produkto pavadinimas, dozė, kiekis pakuotėje, gamintojas. Būtina pažymėti, kuris vaistas yra  vardinis"]
["92.","Gancikloviras 500mg injekcijoms"]
["92.1.","Gancikloviras 500mg injekcijoms",30,"fl.",null,{"$f":"IF(ISBLANK(E1129),\"\", PRODUCT(C1129,E1129))","v":""}]
[null,null,null,null,"Suma be PVM",{"$f":"IF(F1129=\"\",\"\",SUM(F1129:F1129))","v":""},{"$f":"IF(F1129=\"\",\"Neužpildytos visos objektų kainos\",\"\")","v":"Neužpildytos visos objektų kainos"}]
[null,null,null,null,"PVM suma"]
[null,null,null,null,"Suma su PVM",{"$f":"IF(ISBLANK(F1131), \"\", SUM(F1130:F1131))","v":""},"Dalies biudžetas su PVM: 1627,5 Eur"]
[]
[]
[]
["93. DALIS","GELEŽIES (III) HIDROKSIDO – POLIMALTOZĖS KOMPLEKSO PAVIDALU 100MG/2ML"]
[]
["Tiekėjo pasiūlymas:"]
["Nr.","Pavadinimas","Kiekis","Mato vienetas","Įkainis be PVM, Eur","Suma be PVM, Eur","Siūlomo produkto pavadinimas, dozė, kiekis pakuotėje, gamintojas. Būtina pažymėti, kuris vaistas yra  vardinis"]
["93.","Geležies (III) hidroksido – polimaltozės komplekso pavidalu 100mg/2ml "]
["93.1.","Geležies (III) hidroksido – polimaltozės komplekso pavidalu 100mg/2ml ",100,"amp.",null,{"$f":"IF(ISBLANK(E1141),\"\", PRODUCT(C1141,E1141))","v":""}]
[null,null,null,null,"Suma be PVM",{"$f":"IF(F1141=\"\",\"\",SUM(F1141:F1141))","v":""},{"$f":"IF(F1141=\"\",\"Neužpildytos visos objektų kainos\",\"\")","v":"Neužpildytos visos objektų kainos"}]
[null,null,null,null,"PVM suma"]
[null,null,null,null,"Suma su PVM",{"$f":"IF(ISBLANK(F1143), \"\", SUM(F1142:F1143))","v":""},"Dalies biudžetas su PVM: 157,5 Eur"]
[]
[]
[]
["94. DALIS","GLYCERINUM"]
[]
["Tiekėjo pasiūlymas:"]
["Nr.","Pavadinimas","Kiekis","Mato vienetas","Įkainis be PVM, Eur","Suma be PVM, Eur","Siūlomo produkto pavadinimas, dozė, kiekis pakuotėje, gamintojas. Būtina pažymėti, kuris vaistas yra  vardinis"]
["94.","Glycerinum"]
["94.1.","Glycerinum",1,"kg",null,{"$f":"IF(ISBLANK(E1153),\"\", PRODUCT(C1153,E1153))","v":""}]
[null,null,null,null,"Suma be PVM",{"$f":"IF(F1153=\"\",\"\",SUM(F1153:F1153))","v":""},{"$f":"IF(F1153=\"\",\"Neužpildytos visos objektų kainos\",\"\")","v":"Neužpildytos visos objektų kainos"}]
[null,null,null,null,"PVM suma"]
[null,null,null,null,"Suma su PVM",{"$f":"IF(ISBLANK(F1155), \"\", SUM(F1154:F1155))","v":""},"Dalies biudžetas su PVM: 21 Eur"]
[]
[]
[]
["95. DALIS","GLICEROLIO TRINITRATAS 5MG "]
[]
["Tiekėjo pasiūlymas:"]
["Nr.","Pavadinimas","Kiekis","Mato vienetas","Įkainis be PVM, Eur","Suma be PVM, Eur","Siūlomo produkto pavadinimas, dozė, kiekis pakuotėje, gamintojas. Būtina pažymėti, kuris vaistas yra  vardinis"]
["95.","Glicerolio trinitratas 5mg "]
["95.1.","Glicerolio trinitratas 5mg ",900,"amp.",null,{"$f":"IF(ISBLANK(E1165),\"\", PRODUCT(C1165,E1165))","v":""}]
[null,null,null,null,"Suma be PVM",{"$f":"IF(F1165=\"\",\"\",SUM(F1165:F1165))","v":""},{"$f":"IF(F1165=\"\",\"Neužpildytos visos objektų kainos\",\"\")","v":"Neužpildytos visos objektų kainos"}]
[null,null,null,null,"PVM suma"]
[null,null,null,null,"Suma su PVM",{"$f":"IF(ISBLANK(F1167), \"\", SUM(F1166:F1167))","v":""},"Dalies biudžetas su PVM: 1470 Eur"]
[]
[]
[]
["96. DALIS","GLIUKOZĖ BEVANDENĖ + NATRIO CHLORIDAS+NATRIO CITRATAS + KALIO CHLORIDAS 6,75G+1,3G+1,45G+0,75G"]
[]
["Tiekėjo pasiūlymas:"]
["Nr.","Pavadinimas","Kiekis","Mato vienetas","Įkainis be PVM, Eur","Suma be PVM, Eur","Siūlomo produkto pavadinimas, dozė, kiekis pakuotėje, gamintojas. Būtina pažymėti, kuris vaistas yra  vardinis"]
["96.","Gliukozė bevandenė + Natrio chloridas+Natrio citratas + kalio chloridas 6,75g+1,3g+1,45g+0,75g"]
["96.1.","Gliukozė bevandenė + Natrio chloridas+Natrio citratas + kalio chloridas 6,75g+1,3g+1,45g+0,75g",940,"milt.",null,{"$f":"IF(ISBLANK(E1177),\"\", PRODUCT(C1177,E1177))","v":""}]
[null,null,null,null,"Suma be PVM",{"$f":"IF(F1177=\"\",\"\",SUM(F1177:F1177))","v":""},{"$f":"IF(F1177=\"\",\"Neužpildytos visos objektų kainos\",\"\")","v":"Neužpildytos visos objektų kainos"}]
[null,null,null,null,"PVM suma"]
[null,null,null,null,"Suma su PVM",{"$f":"IF(ISBLANK(F1179), \"\", SUM(F1178:F1179))","v":""},"Dalies biudžetas su PVM: 1316 Eur"]
[]
[]
[]
["97. DALIS","GLIUKOZĖS INJ. TIRP. 40% 10 ML "]
[]
["Tiekėjo pasiūlymas:"]
["Nr.","Pavadinimas","Kiekis","Mato vienetas","Įkainis be PVM, Eur","Suma be PVM, Eur","Siūlomo produkto pavadinimas, dozė, kiekis pakuotėje, gamintojas. Būtina pažymėti, kuris vaistas yra  vardinis"]
["97.","Gliukozės inj. tirp. 40% 10 ml "]
["97.1.","Gliukozės inj. tirp. 40% 10 ml ",400,"amp.",null,{"$f":"IF(ISBLANK(E1189),\"\", PRODUCT(C1189,E1189))","v":""}]
[null,null,null,null,"Suma be PVM",{"$f":"IF(F1189=\"\",\"\",SUM(F1189:F1189))","v":""},{"$f":"IF(F1189=\"\",\"Neužpildytos visos objektų kainos\",\"\")","v":"Neužpildytos visos objektų kainos"}]
[null,null,null,null,"PVM suma"]
[null,null,null,null,"Suma su PVM",{"$f":"IF(ISBLANK(F1191), \"\", SUM(F1190:F1191))","v":""},"Dalies biudžetas su PVM: 273 Eur"]
[]
[]
[]
["98. DALIS","GLIUKOZĖS TAB 40,0 (ĮVAIRIŲ SKONIŲ)"]
[]
["Tiekėjo pasiūlymas:"]
["Nr.","Pavadinimas","Kiekis","Mato vienetas","Įkainis be PVM, Eur","Suma be PVM, Eur","Siūlomo produkto pavadinimas, dozė, kiekis pakuotėje, gamintojas. Būtina pažymėti, kuris vaistas yra  vardinis"]
["98.","Gliukozės tabletės 40,0 (įvairių skonių)"]
["98.1.","Gliukozės tabletės 40,0 (įvairių skonių)",1500,"tab.",null,{"$f":"IF(ISBLANK(E1201),\"\", PRODUCT(C1201,E1201))","v":""}]
[null,null,null,null,"Suma be PVM",{"$f":"IF(F1201=\"\",\"\",SUM(F1201:F1201))","v":""},{"$f":"IF(F1201=\"\",\"Neužpildytos visos objektų kainos\",\"\")","v":"Neužpildytos visos objektų kainos"}]
[null,null,null,null,"PVM suma"]
[null,null,null,null,"Suma su PVM",{"$f":"IF(ISBLANK(F1203), \"\", SUM(F1202:F1203))","v":""},"Dalies biudžetas su PVM: 157,5 Eur"]
[]
[]
[]
["99. DALIS","GLUCOSUM"]
[]
["Tiekėjo pasiūlymas:"]
["Nr.","Pavadinimas","Kiekis","Mato vienetas","Įkainis be PVM, Eur","Suma be PVM, Eur","Siūlomo produkto pavadinimas, dozė, kiekis pakuotėje, gamintojas. Būtina pažymėti, kuris vaistas yra  vardinis"]
["99.","Glucosum"]
["99.1.","Glucosum",9,"kg",null,{"$f":"IF(ISBLANK(E1213),\"\", PRODUCT(C1213,E1213))","v":""}]
[null,null,null,null,"Suma be PVM",{"$f":"IF(F1213=\"\",\"\",SUM(F1213:F1213))","v":""},{"$f":"IF(F1213=\"\",\"Neužpildytos visos objektų kainos\",\"\")","v":"Neužpildytos visos objektų kainos"}]
[null,null,null,null,"PVM suma"]
[null,null,null,null,"Suma su PVM",{"$f":"IF(ISBLANK(F1215), \"\", SUM(F1214:F1215))","v":""},"Dalies biudžetas su PVM: 118,13 Eur"]
[]
[]
[]
["100. DALIS","HEXOPRENALINUM 10 MCG/2 ML 2 ML "]
[]
["Tiekėjo pasiūlymas:"]
["Nr.","Pavadinimas","Kiekis","Mato vienetas","Įkainis be PVM, Eur","Suma be PVM, Eur","Siūlomo produkto pavadinimas, dozė, kiekis pakuotėje, gamintojas. Būtina pažymėti, kuris vaistas yra  vardinis"]
["100.","Hexoprenalinum 10 mcg/2 ml 2 ml "]
["100.1.","Hexoprenalinum 10 mcg/2 ml 2 ml ",5,"amp.",null,{"$f":"IF(ISBLANK(E1225),\"\", PRODUCT(C1225,E1225))","v":""}]
[null,null,null,null,"Suma be PVM",{"$f":"IF(F1225=\"\",\"\",SUM(F1225:F1225))","v":""},{"$f":"IF(F1225=\"\",\"Neužpildytos visos objektų kainos\",\"\")","v":"Neužpildytos visos objektų kainos"}]
[null,null,null,null,"PVM suma"]
[null,null,null,null,"Suma su PVM",{"$f":"IF(ISBLANK(F1227), \"\", SUM(F1226:F1227))","v":""},"Dalies biudžetas su PVM: 6,93 Eur"]
[]
[]
[]
["101. DALIS","HIDROCHLOROTIAZIDAS 25MG"]
[]
["Tiekėjo pasiūlymas:"]
["Nr.","Pavadinimas","Kiekis","Mato vienetas","Įkainis be PVM, Eur","Suma be PVM, Eur","Siūlomo produkto pavadinimas, dozė, kiekis pakuotėje, gamintojas. Būtina pažymėti, kuris vaistas yra  vardinis"]
["101.","Hidrochlorotiazidas 25mg"]
["101.1.","Hidrochlorotiazidas 25mg",1100,"tab.",null,{"$f":"IF(ISBLANK(E1237),\"\", PRODUCT(C1237,E1237))","v":""}]
[null,null,null,null,"Suma be PVM",{"$f":"IF(F1237=\"\",\"\",SUM(F1237:F1237))","v":""},{"$f":"IF(F1237=\"\",\"Neužpildytos visos objektų kainos\",\"\")","v":"Neužpildytos visos objektų kainos"}]
[null,null,null,null,"PVM suma"]
[null,null,null,null,"Suma su PVM",{"$f":"IF(ISBLANK(F1239), \"\", SUM(F1238:F1239))","v":""},"Dalies biudžetas su PVM: 192,5 Eur"]
[]
[]
[]
["102. DALIS","HIDROKORTIZONAS + LIDOKAINAS 125MG/25MG"]
[]
["Tiekėjo pasiūlymas:"]
["Nr.","Pavadinimas","Kiekis","Mato vienetas","Įkainis be PVM, Eur","Suma be PVM, Eur","Siūlomo produkto pavadinimas, dozė, kiekis pakuotėje, gamintojas. Būtina pažymėti, kuris vaistas yra  vardinis"]
["102.","Hidrokortizonas + Lidokainas 125mg/25mg"]
["102.1.","Hidrokortizonas + Lidokainas 125mg/25mg",100,"fl.",null,{"$f":"IF(ISBLANK(E1249),\"\", PRODUCT(C1249,E1249))","v":""}]
[null,null,null,null,"Suma be PVM",{"$f":"IF(F1249=\"\",\"\",SUM(F1249:F1249))","v":""},{"$f":"IF(F1249=\"\",\"Neužpildytos visos objektų kainos\",\"\")","v":"Neužpildytos visos objektų kainos"}]
[null,null,null,null,"PVM suma"]
[null,null,null,null,"Suma su PVM",{"$f":"IF(ISBLANK(F1251), \"\", SUM(F1250:F1251))","v":""},"Dalies biudžetas su PVM: 735 Eur"]
[]
[]
[]
["103. DALIS","HIDROKORTIZONO 10MG/G GELIS"]
[]
["Tiekėjo pasiūlymas:"]
["Nr.","Pavadinimas","Kiekis","Mato vienetas","Įkainis be PVM, Eur","Suma be PVM, Eur","Siūlomo produkto pavadinimas, dozė, kiekis pakuotėje, gamintojas. Būtina pažymėti, kuris vaistas yra  vardinis"]
["103.","Hidrokortizono 10mg/g gelis"]
["103.1.","Hidrokortizono 10mg/g gelis",450,"g",null,{"$f":"IF(ISBLANK(E1261),\"\", PRODUCT(C1261,E1261))","v":""}]
[null,null,null,null,"Suma be PVM",{"$f":"IF(F1261=\"\",\"\",SUM(F1261:F1261))","v":""},{"$f":"IF(F1261=\"\",\"Neužpildytos visos objektų kainos\",\"\")","v":"Neužpildytos visos objektų kainos"}]
[null,null,null,null,"PVM suma"]
[null,null,null,null,"Suma su PVM",{"$f":"IF(ISBLANK(F1263), \"\", SUM(F1262:F1263))","v":""},"Dalies biudžetas su PVM: 189 Eur"]
[]
[]
[]
["104. DALIS","HIOSCINO BUTILBROMIDAS 20MG/ML"]
[]
["Tiekėjo pasiūlymas:"]
["Nr.","Pavadinimas","Kiekis","Mato vienetas","Įkainis be PVM, Eur","Suma be PVM, Eur","Siūlomo produkto pavadinimas, dozė, kiekis pakuotėje, gamintojas. Būtina pažymėti, kuris vaistas yra  vardinis"]
["104.","Hioscino butilbromidas 20mg/ml"]
["104.1.","Hioscino butilbromidas 20mg/ml",250,"amp.",null,{"$f":"IF(ISBLANK(E1273),\"\", PRODUCT(C1273,E1273))","v":""}]
[null,null,null,null,"Suma be PVM",{"$f":"IF(F1273=\"\",\"\",SUM(F1273:F1273))","v":""},{"$f":"IF(F1273=\"\",\"Neužpildytos visos objektų kainos\",\"\")","v":"Neužpildytos visos objektų kainos"}]
[null,null,null,null,"PVM suma"]
[null,null,null,null,"Suma su PVM",{"$f":"IF(ISBLANK(F1275), \"\", SUM(F1274:F1275))","v":""},"Dalies biudžetas su PVM: 262,5 Eur"]
[]
[]
[]
["105. DALIS","IMUNOGLOBULINAS NUO STABLIGĖS ARKLIŲ (ANTITETANINIS SERUMAS) 1500T  INJEKCIJOMS"]
[]
["Tiekėjo pasiūlymas:"]
["Nr.","Pavadinimas","Kiekis","Mato vienetas","Įkainis be PVM, Eur","Suma be PVM, Eur","Siūlomo produkto pavadinimas, dozė, kiekis pakuotėje, gamintojas. Būtina pažymėti, kuris vaistas yra  vardinis"]
["105.","Imunoglobulinas nuo stabligės arklių (antitetaninis serumas) 1500T  injekcijoms"]
["105.1.","Imunoglobulinas nuo stabligės arklių (antitetaninis serumas) 1500T  injekcijoms",5,"užtaisas",null,{"$f":"IF(ISBLANK(E1285),\"\", PRODUCT(C1285,E1285))","v":""}]
[null,null,null,null,"Suma be PVM",{"$f":"IF(F1285=\"\",\"\",SUM(F1285:F1285))","v":""},{"$f":"IF(F1285=\"\",\"Neužpildytos visos objektų kainos\",\"\")","v":"Neužpildytos visos objektų kainos"}]
[null,null,null,null,"PVM suma"]
[null,null,null,null,"Suma su PVM",{"$f":"IF(ISBLANK(F1287), \"\", SUM(F1286:F1287))","v":""},"Dalies biudžetas su PVM: 525 Eur"]
[]
[]
[]
["106. DALIS","INDAPAMIDAS/AMLODIPINAS 1,5/10MG "]
[]
["Tiekėjo pasiūlymas:"]
["Nr.","Pavadinimas","Kiekis","Mato vienetas","Įkainis be PVM, Eur","Suma be PVM, Eur","Siūlomo produkto pavadinimas, dozė, kiekis pakuotėje, gamintojas. Būtina pažymėti, kuris vaistas yra  vardinis"]
["106.","indapamidas/amlodipinas 1,5/10mg "]
["106.1.","indapamidas/amlodipinas 1,5/10mg ",180,"tab.",null,{"$f":"IF(ISBLANK(E1297),\"\", PRODUCT(C1297,E1297))","v":""}]
[null,null,null,null,"Suma be PVM",{"$f":"IF(F1297=\"\",\"\",SUM(F1297:F1297))","v":""},{"$f":"IF(F1297=\"\",\"Neužpildytos visos objektų kainos\",\"\")","v":"Neužpildytos visos objektų kainos"}]
[null,null,null,null,"PVM suma"]
[null,null,null,null,"Suma su PVM",{"$f":"IF(ISBLANK(F1299), \"\", SUM(F1298:F1299))","v":""},"Dalies biudžetas su PVM: 47,25 Eur"]
[]
[]
[]
["107. DALIS","INDAPAMIDAS/AMLODIPINAS 1,5/5MG "]
[]
["Tiekėjo pasiūlymas:"]
["Nr.","Pavadinimas","Kiekis","Mato vienetas","Įkainis be PVM, Eur","Suma be PVM, Eur","Siūlomo produkto pavadinimas, dozė, kiekis pakuotėje, gamintojas. Būtina pažymėti, kuris vaistas yra  vardinis"]
["107.","indapamidas/amlodipinas 1,5/5mg "]
["107.1.","indapamidas/amlodipinas 1,5/5mg",600,"tab.",null,{"$f":"IF(ISBLANK(E1309),\"\", PRODUCT(C1309,E1309))","v":""}]
[null,null,null,null,"Suma be PVM",{"$f":"IF(F1309=\"\",\"\",SUM(F1309:F1309))","v":""},{"$f":"IF(F1309=\"\",\"Neužpildytos visos objektų kainos\",\"\")","v":"Neužpildytos visos objektų kainos"}]
[null,null,null,null,"PVM suma"]
[null,null,null,null,"Suma su PVM",{"$f":"IF(ISBLANK(F1311), \"\", SUM(F1310:F1311))","v":""},"Dalies biudžetas su PVM: 157,5 Eur"]
[]
[]
[]
["108. DALIS","INFUZINĖ EMULSIJA 3-Ų KAMERŲ MAIŠE PARENTERINEI MITYBAI"]
[]
["Tiekėjo pasiūlymas:"]
["Nr.","Pavadinimas","Kiekis","Mato vienetas","Įkainis be PVM, Eur","Suma be PVM, Eur","Siūlomo produkto pavadinimas, dozė, kiekis pakuotėje, gamintojas. Būtina pažymėti, kuris vaistas yra  vardinis"]
["108.","Infuzinė emulsija 3-ų kamerų maiše parenterinei mitybai:Energetinė vertė 800-1000 kcal. Parenterinio tirpalo sudėtis: Gliukozė - ne daugiau nei 90g/1000ml; Amino rūgštys  - ne mažiau nei 65g/1000ml, sudėtyje turi būti amino rūgšties taurino; Lipidai - 4 riebalų emulsija (sojų aliejus, vidutinės grandies trigliceridai, alyvuogių aliejus, žuvų taukai su emega - 3); Su elektrolitais"]
["108.1.","Infuzinė emulsija 3-ų kamerų maiše parenterinei mitybai:Energetinė vertė 800-1000 kcal. Parenterinio tirpalo sudėtis: Gliukozė - ne daugiau nei 90g/1000ml; Amino rūgštys  - ne mažiau nei 65g/1000ml, sudėtyje turi būti amino rūgšties taurino; Lipidai - 4 riebalų emulsija (sojų aliejus, vidutinės grandies trigliceridai, alyvuogių aliejus, žuvų taukai su emega - 3); Su elektrolitais",100,"vnt.",38.99,{"$f":"IF(ISBLANK(E1321),\"\", PRODUCT(C1321,E1321))","v":3899},"SmofKabiven Extra Nitrogen 1012ml, N4, Fresenius Kabi AB, Švedija"]
[null,null,null,null,"Suma be PVM",{"$f":"IF(F1321=\"\",\"\",SUM(F1321:F1321))","v":3899},{"$f":"IF(F1321=\"\",\"Neužpildytos visos objektų kainos\",\"\")","v":""}]
[null,null,null,null,"PVM suma",{"$f":"F1322*0.05","v":194.95000000000002}]
[null,null,null,null,"Suma su PVM",{"$f":"IF(ISBLANK(F1323), \"\", SUM(F1322:F1323))","v":4093.95},"Dalies biudžetas su PVM: 5355 Eur"]
[]
[]
[]
["109. DALIS","INJEKCINIS (IRIGACINIS TIRPALAS DISTILIUOTAS) VANDUO PRAPLOVIMUI 1000ML"]
[]
["Tiekėjo pasiūlymas:"]
["Nr.","Pavadinimas","Kiekis","Mato vienetas","Įkainis be PVM, Eur","Suma be PVM, Eur","Siūlomo produkto pavadinimas, dozė, kiekis pakuotėje, gamintojas. Būtina pažymėti, kuris vaistas yra  vardinis"]
["109.","Injekcinis (irigacinis tirpalas distiliuotas) vanduo praplovimui 1000ml"]
["109.1.","Injekcinis (irigacinis tirpalas distiliuotas) vanduo praplovimui 1000ml",4500,"fl.",1.54,{"$f":"IF(ISBLANK(E1333),\"\", PRODUCT(C1333,E1333))","v":6930},"Vanduo irigacijoms\nVersylene 1000ml, N6,\nFresenius Kabi France"]
[null,null,null,null,"Suma be PVM",{"$f":"IF(F1333=\"\",\"\",SUM(F1333:F1333))","v":6930},{"$f":"IF(F1333=\"\",\"Neužpildytos visos objektų kainos\",\"\")","v":""}]
[null,null,null,null,"PVM suma",{"$f":"F1334*0.05","v":346.5}]
[null,null,null,null,"Suma su PVM",{"$f":"IF(ISBLANK(F1335), \"\", SUM(F1334:F1335))","v":7276.5},"Dalies biudžetas su PVM: 9975 Eur"]
[]
[]
[]
["110. DALIS","INTRAOKULINIO DRĖKINIMO TIRPALAS (LYGIAVERTIS B.S.S) 500 ML"]
[]
["Tiekėjo pasiūlymas:"]
["Nr.","Pavadinimas","Kiekis","Mato vienetas","Įkainis be PVM, Eur","Suma be PVM, Eur","Siūlomo produkto pavadinimas, dozė, kiekis pakuotėje, gamintojas. Būtina pažymėti, kuris vaistas yra  vardinis"]
["110.","Intraokulinio drėkinimo tirpalas (lygiavertis B.S.S) 500 ml"]
["110.1.","Intraokulinio drėkinimo tirpalas (lygiavertis B.S.S) 500 ml",100,"fl.",null,{"$f":"IF(ISBLANK(E1345),\"\", PRODUCT(C1345,E1345))","v":""}]
[null,null,null,null,"Suma be PVM",{"$f":"IF(F1345=\"\",\"\",SUM(F1345:F1345))","v":""},{"$f":"IF(F1345=\"\",\"Neužpildytos visos objektų kainos\",\"\")","v":"Neužpildytos visos objektų kainos"}]
[null,null,null,null,"PVM suma"]
[null,null,null,null,"Suma su PVM",{"$f":"IF(ISBLANK(F1347), \"\", SUM(F1346:F1347))","v":""},"Dalies biudžetas su PVM: 313,95 Eur"]
[]
[]
[]
["111. DALIS","IODUM"]
[]
["Tiekėjo pasiūlymas:"]
["Nr.","Pavadinimas","Kiekis","Mato vienetas","Įkainis be PVM, Eur","Suma be PVM, Eur","Siūlomo produkto pavadinimas, dozė, kiekis pakuotėje, gamintojas. Būtina pažymėti, kuris vaistas yra  vardinis"]
["111.","Iodum"]
["111.1.","Iodum",1,"kg",null,{"$f":"IF(ISBLANK(E1357),\"\", PRODUCT(C1357,E1357))","v":""}]
[null,null,null,null,"Suma be PVM",{"$f":"IF(F1357=\"\",\"\",SUM(F1357:F1357))","v":""},{"$f":"IF(F1357=\"\",\"Neužpildytos visos objektų kainos\",\"\")","v":"Neužpildytos visos objektų kainos"}]
[null,null,null,null,"PVM suma"]
[null,null,null,null,"Suma su PVM",{"$f":"IF(ISBLANK(F1359), \"\", SUM(F1358:F1359))","v":""},"Dalies biudžetas su PVM: 105 Eur"]
[]
[]
[]
["112. DALIS","IPRATROPIJAUS BROMIDAS/ FENOTEROLIS 250MCG/ 500MCG/ML"]
[]
["Tiekėjo pasiūlymas:"]
["Nr.","Pavadinimas","Kiekis","Mato vienetas","Įkainis be PVM, Eur","Suma be PVM, Eur","Siūlomo produkto pavadinimas, dozė, kiekis pakuotėje, gamintojas. Būtina pažymėti, kuris vaistas yra  vardinis"]
["112.","Ipratropijaus bromidas/ Fenoterolis 250mcg/ 500mcg/ml"]
["112.1.","Ipratropijaus bromidas/ Fenoterolis 250mcg/ 500mcg/ml",600,"ml",null,{"$f":"IF(ISBLANK(E1369),\"\", PRODUCT(C1369,E1369))","v":""}]
[null,null,null,null,"Suma be PVM",{"$f":"IF(F1369=\"\",\"\",SUM(F1369:F1369))","v":""},{"$f":"IF(F1369=\"\",\"Neužpildytos visos objektų kainos\",\"\")","v":"Neužpildytos visos objektų kainos"}]
[null,null,null,null,"PVM suma"]
[null,null,null,null,"Suma su PVM",{"$f":"IF(ISBLANK(F1371), \"\", SUM(F1370:F1371))","v":""},"Dalies biudžetas su PVM: 630 Eur"]
[]
[]
[]
["113. DALIS","IZONIAZIDAS 100MG"]
[]
["Tiekėjo pasiūlymas:"]
["Nr.","Pavadinimas","Kiekis","Mato vienetas","Įkainis be PVM, Eur","Suma be PVM, Eur","Siūlomo produkto pavadinimas, dozė, kiekis pakuotėje, gamintojas. Būtina pažymėti, kuris vaistas yra  vardinis"]
["113.","Izoniazidas 100mg"]
["113.1.","Izoniazidas 100mg",100,"tab.",null,{"$f":"IF(ISBLANK(E1381),\"\", PRODUCT(C1381,E1381))","v":""}]
[null,null,null,null,"Suma be PVM",{"$f":"IF(F1381=\"\",\"\",SUM(F1381:F1381))","v":""},{"$f":"IF(F1381=\"\",\"Neužpildytos visos objektų kainos\",\"\")","v":"Neužpildytos visos objektų kainos"}]
[null,null,null,null,"PVM suma"]
[null,null,null,null,"Suma su PVM",{"$f":"IF(ISBLANK(F1383), \"\", SUM(F1382:F1383))","v":""},"Dalies biudžetas su PVM: 10,5 Eur"]
[]
[]
[]
["114. DALIS","IZONIAZIDAS 300MG"]
[]
["Tiekėjo pasiūlymas:"]
["Nr.","Pavadinimas","Kiekis","Mato vienetas","Įkainis be PVM, Eur","Suma be PVM, Eur","Siūlomo produkto pavadinimas, dozė, kiekis pakuotėje, gamintojas. Būtina pažymėti, kuris vaistas yra  vardinis"]
["114.","Izoniazidas 300mg"]
["114.1.","Izoniazidas 300mg",100,"tab.",null,{"$f":"IF(ISBLANK(E1393),\"\", PRODUCT(C1393,E1393))","v":""}]
[null,null,null,null,"Suma be PVM",{"$f":"IF(F1393=\"\",\"\",SUM(F1393:F1393))","v":""},{"$f":"IF(F1393=\"\",\"Neužpildytos visos objektų kainos\",\"\")","v":"Neužpildytos visos objektų kainos"}]
[null,null,null,null,"PVM suma"]
[null,null,null,null,"Suma su PVM",{"$f":"IF(ISBLANK(F1395), \"\", SUM(F1394:F1395))","v":""},"Dalies biudžetas su PVM: 21 Eur"]
[]
[]
[]
["115. DALIS","IZONIAZIDAS 500MG MILTELIAI INJEKCINIAM TIRPALUI"]
[]
["Tiekėjo pasiūlymas:"]
["Nr.","Pavadinimas","Kiekis","Mato vienetas","Įkainis be PVM, Eur","Suma be PVM, Eur","Siūlomo produkto pavadinimas, dozė, kiekis pakuotėje, gamintojas. Būtina pažymėti, kuris vaistas yra  vardinis"]
["115.","Izoniazidas 500mg milteliai injekciniam tirpalui"]
["115.1.","Izoniazidas 500mg milteliai injekciniam tirpalui",150,"amp.",null,{"$f":"IF(ISBLANK(E1405),\"\", PRODUCT(C1405,E1405))","v":""}]
[null,null,null,null,"Suma be PVM",{"$f":"IF(F1405=\"\",\"\",SUM(F1405:F1405))","v":""},{"$f":"IF(F1405=\"\",\"Neužpildytos visos objektų kainos\",\"\")","v":"Neužpildytos visos objektų kainos"}]
[null,null,null,null,"PVM suma"]
[null,null,null,null,"Suma su PVM",{"$f":"IF(ISBLANK(F1407), \"\", SUM(F1406:F1407))","v":""},"Dalies biudžetas su PVM: 1496,25 Eur"]
[]
[]
[]
["116. DALIS","KALCIO FOLINATAS 10MG/ML 10ML"]
[]
["Tiekėjo pasiūlymas:"]
["Nr.","Pavadinimas","Kiekis","Mato vienetas","Įkainis be PVM, Eur","Suma be PVM, Eur","Siūlomo produkto pavadinimas, dozė, kiekis pakuotėje, gamintojas. Būtina pažymėti, kuris vaistas yra  vardinis"]
["116.","Kalcio folinatas 10mg/ml 10ml"]
["116.1.","Kalcio folinatas 10mg/ml 10ml",50,"amp.",null,{"$f":"IF(ISBLANK(E1417),\"\", PRODUCT(C1417,E1417))","v":""}]
[null,null,null,null,"Suma be PVM",{"$f":"IF(F1417=\"\",\"\",SUM(F1417:F1417))","v":""},{"$f":"IF(F1417=\"\",\"Neužpildytos visos objektų kainos\",\"\")","v":"Neužpildytos visos objektų kainos"}]
[null,null,null,null,"PVM suma"]
[null,null,null,null,"Suma su PVM",{"$f":"IF(ISBLANK(F1419), \"\", SUM(F1418:F1419))","v":""},"Dalies biudžetas su PVM: 945 Eur"]
[]
[]
[]
["117. DALIS","KALCIO GLUKONATAS 10% 10 ML "]
[]
["Tiekėjo pasiūlymas:"]
["Nr.","Pavadinimas","Kiekis","Mato vienetas","Įkainis be PVM, Eur","Suma be PVM, Eur","Siūlomo produkto pavadinimas, dozė, kiekis pakuotėje, gamintojas. Būtina pažymėti, kuris vaistas yra  vardinis"]
["117.","Kalcio glukonatas 10% 10 ml "]
["117.1.","Kalcio glukonatas 10% 10 ml ",600,"amp.",null,{"$f":"IF(ISBLANK(E1429),\"\", PRODUCT(C1429,E1429))","v":""}]
[null,null,null,null,"Suma be PVM",{"$f":"IF(F1429=\"\",\"\",SUM(F1429:F1429))","v":""},{"$f":"IF(F1429=\"\",\"Neužpildytos visos objektų kainos\",\"\")","v":"Neužpildytos visos objektų kainos"}]
[null,null,null,null,"PVM suma"]
[null,null,null,null,"Suma su PVM",{"$f":"IF(ISBLANK(F1431), \"\", SUM(F1430:F1431))","v":""},"Dalies biudžetas su PVM: 296,1 Eur"]
[]
[]
[]
["118. DALIS","KALII CHLORIDUM"]
[]
["Tiekėjo pasiūlymas:"]
["Nr.","Pavadinimas","Kiekis","Mato vienetas","Įkainis be PVM, Eur","Suma be PVM, Eur","Siūlomo produkto pavadinimas, dozė, kiekis pakuotėje, gamintojas. Būtina pažymėti, kuris vaistas yra  vardinis"]
["118.","Kalii chloridum"]
["118.1.","Kalii chloridum",15,"kg",null,{"$f":"IF(ISBLANK(E1441),\"\", PRODUCT(C1441,E1441))","v":""}]
[null,null,null,null,"Suma be PVM",{"$f":"IF(F1441=\"\",\"\",SUM(F1441:F1441))","v":""},{"$f":"IF(F1441=\"\",\"Neužpildytos visos objektų kainos\",\"\")","v":"Neužpildytos visos objektų kainos"}]
[null,null,null,null,"PVM suma"]
[null,null,null,null,"Suma su PVM",{"$f":"IF(ISBLANK(F1443), \"\", SUM(F1442:F1443))","v":""},"Dalies biudžetas su PVM: 262,5 Eur"]
[]
[]
[]
["119. DALIS","KALII IODIDUM"]
[]
["Tiekėjo pasiūlymas:"]
["Nr.","Pavadinimas","Kiekis","Mato vienetas","Įkainis be PVM, Eur","Suma be PVM, Eur","Siūlomo produkto pavadinimas, dozė, kiekis pakuotėje, gamintojas. Būtina pažymėti, kuris vaistas yra  vardinis"]
["119.","Kalii iodidum"]
["119.1.","Kalii iodidum",16,"kg",null,{"$f":"IF(ISBLANK(E1453),\"\", PRODUCT(C1453,E1453))","v":""}]
[null,null,null,null,"Suma be PVM",{"$f":"IF(F1453=\"\",\"\",SUM(F1453:F1453))","v":""},{"$f":"IF(F1453=\"\",\"Neužpildytos visos objektų kainos\",\"\")","v":"Neužpildytos visos objektų kainos"}]
[null,null,null,null,"PVM suma"]
[null,null,null,null,"Suma su PVM",{"$f":"IF(ISBLANK(F1455), \"\", SUM(F1454:F1455))","v":""},"Dalies biudžetas su PVM: 78,75 Eur"]
[]
[]
[]
["120. DALIS","KALII PERMANGANAS"]
[]
["Tiekėjo pasiūlymas:"]
["Nr.","Pavadinimas","Kiekis","Mato vienetas","Įkainis be PVM, Eur","Suma be PVM, Eur","Siūlomo produkto pavadinimas, dozė, kiekis pakuotėje, gamintojas. Būtina pažymėti, kuris vaistas yra  vardinis"]
["120.","Kalii permanganas"]
["120.1.","Kalii permanganas",2,"kg",null,{"$f":"IF(ISBLANK(E1465),\"\", PRODUCT(C1465,E1465))","v":""}]
[null,null,null,null,"Suma be PVM",{"$f":"IF(F1465=\"\",\"\",SUM(F1465:F1465))","v":""},{"$f":"IF(F1465=\"\",\"Neužpildytos visos objektų kainos\",\"\")","v":"Neužpildytos visos objektų kainos"}]
[null,null,null,null,"PVM suma"]
[null,null,null,null,"Suma su PVM",{"$f":"IF(ISBLANK(F1467), \"\", SUM(F1466:F1467))","v":""},"Dalies biudžetas su PVM: 31,5 Eur"]
[]
[]
[]
["121. DALIS","KARVEDILOLIS/IVABRADINAS 6,25G/5MG "]
[]
["Tiekėjo pasiūlymas:"]
["Nr.","Pavadinimas","Kiekis","Mato vienetas","Įkainis be PVM, Eur","Suma be PVM, Eur","Siūlomo produkto pavadinimas, dozė, kiekis pakuotėje, gamintojas. Būtina pažymėti, kuris vaistas yra  vardinis"]
["121.","Karvedilolis/ivabradinas 6,25g/5mg "]
["121.1.","Karvedilolis/ivabradinas 6,25g/5mg ",196,"tab.",null,{"$f":"IF(ISBLANK(E1477),\"\", PRODUCT(C1477,E1477))","v":""}]
[null,null,null,null,"Suma be PVM",{"$f":"IF(F1477=\"\",\"\",SUM(F1477:F1477))","v":""},{"$f":"IF(F1477=\"\",\"Neužpildytos visos objektų kainos\",\"\")","v":"Neužpildytos visos objektų kainos"}]
[null,null,null,null,"PVM suma"]
[null,null,null,null,"Suma su PVM",{"$f":"IF(ISBLANK(F1479), \"\", SUM(F1478:F1479))","v":""},"Dalies biudžetas su PVM: 44,45 Eur"]
[]
[]
[]
["122. DALIS","KARVEDILOLIS/IVABRADINAS 12,5/5MG "]
[]
["Tiekėjo pasiūlymas:"]
["Nr.","Pavadinimas","Kiekis","Mato vienetas","Įkainis be PVM, Eur","Suma be PVM, Eur","Siūlomo produkto pavadinimas, dozė, kiekis pakuotėje, gamintojas. Būtina pažymėti, kuris vaistas yra  vardinis"]
["122.","Karvedilolis/ivabradinas 12,5/5mg "]
["122.1.","Karvedilolis/ivabradinas 12,5/5mg ",168,"tab.",null,{"$f":"IF(ISBLANK(E1489),\"\", PRODUCT(C1489,E1489))","v":""}]
[null,null,null,null,"Suma be PVM",{"$f":"IF(F1489=\"\",\"\",SUM(F1489:F1489))","v":""},{"$f":"IF(F1489=\"\",\"Neužpildytos visos objektų kainos\",\"\")","v":"Neužpildytos visos objektų kainos"}]
[null,null,null,null,"PVM suma"]
[null,null,null,null,"Suma su PVM",{"$f":"IF(ISBLANK(F1491), \"\", SUM(F1490:F1491))","v":""},"Dalies biudžetas su PVM: 38,1 Eur"]
[]
[]
[]
["123. DALIS","KETAMINAS 50MG/ML 5ML"]
[]
["Tiekėjo pasiūlymas:"]
["Nr.","Pavadinimas","Kiekis","Mato vienetas","Įkainis be PVM, Eur","Suma be PVM, Eur","Siūlomo produkto pavadinimas, dozė, kiekis pakuotėje, gamintojas. Būtina pažymėti, kuris vaistas yra  vardinis"]
["123.","Ketaminas 50mg/ml 5ml"]
["123.1.","Ketaminas 50mg/ml 5ml",270,"amp.",null,{"$f":"IF(ISBLANK(E1501),\"\", PRODUCT(C1501,E1501))","v":""}]
[null,null,null,null,"Suma be PVM",{"$f":"IF(F1501=\"\",\"\",SUM(F1501:F1501))","v":""},{"$f":"IF(F1501=\"\",\"Neužpildytos visos objektų kainos\",\"\")","v":"Neužpildytos visos objektų kainos"}]
[null,null,null,null,"PVM suma"]
[null,null,null,null,"Suma su PVM",{"$f":"IF(ISBLANK(F1503), \"\", SUM(F1502:F1503))","v":""},"Dalies biudžetas su PVM: 1667,65 Eur"]
[]
[]
[]
["124. DALIS","KOLISTINAS 1000000 TV INJEKCIJOMS"]
[]
["Tiekėjo pasiūlymas:"]
["Nr.","Pavadinimas","Kiekis","Mato vienetas","Įkainis be PVM, Eur","Suma be PVM, Eur","Siūlomo produkto pavadinimas, dozė, kiekis pakuotėje, gamintojas. Būtina pažymėti, kuris vaistas yra  vardinis"]
["124.","Kolistinas 1000000 TV injekcijoms"]
["124.1.","Kolistinas 1000000 TV injekcijoms",2300,"fl.",null,{"$f":"IF(ISBLANK(E1513),\"\", PRODUCT(C1513,E1513))","v":""}]
[null,null,null,null,"Suma be PVM",{"$f":"IF(F1513=\"\",\"\",SUM(F1513:F1513))","v":""},{"$f":"IF(F1513=\"\",\"Neužpildytos visos objektų kainos\",\"\")","v":"Neužpildytos visos objektų kainos"}]
[null,null,null,null,"PVM suma"]
[null,null,null,null,"Suma su PVM",{"$f":"IF(ISBLANK(F1515), \"\", SUM(F1514:F1515))","v":""},"Dalies biudžetas su PVM: 6574,17 Eur"]
[]
[]
[]
["125. DALIS","KVINAPRILIS 20 MG "]
[]
["Tiekėjo pasiūlymas:"]
["Nr.","Pavadinimas","Kiekis","Mato vienetas","Įkainis be PVM, Eur","Suma be PVM, Eur","Siūlomo produkto pavadinimas, dozė, kiekis pakuotėje, gamintojas. Būtina pažymėti, kuris vaistas yra  vardinis"]
["125.","Kvinaprilis 20 mg "]
["125.1.","Kvinaprilis 20 mg ",50,"tab.",null,{"$f":"IF(ISBLANK(E1525),\"\", PRODUCT(C1525,E1525))","v":""}]
[null,null,null,null,"Suma be PVM",{"$f":"IF(F1525=\"\",\"\",SUM(F1525:F1525))","v":""},{"$f":"IF(F1525=\"\",\"Neužpildytos visos objektų kainos\",\"\")","v":"Neužpildytos visos objektų kainos"}]
[null,null,null,null,"PVM suma"]
[null,null,null,null,"Suma su PVM",{"$f":"IF(ISBLANK(F1527), \"\", SUM(F1526:F1527))","v":""},"Dalies biudžetas su PVM: 5,25 Eur"]
[]
[]
[]
["126. DALIS","KVININO DIHIDROCHLORIDAS 250MG/2ML"]
[]
["Tiekėjo pasiūlymas:"]
["Nr.","Pavadinimas","Kiekis","Mato vienetas","Įkainis be PVM, Eur","Suma be PVM, Eur","Siūlomo produkto pavadinimas, dozė, kiekis pakuotėje, gamintojas. Būtina pažymėti, kuris vaistas yra  vardinis"]
["126.","Kvinino dihidrochloridas 250mg/2ml"]
["126.1.","Kvinino dihidrochloridas 250mg/2ml",50,"amp.",null,{"$f":"IF(ISBLANK(E1537),\"\", PRODUCT(C1537,E1537))","v":""}]
[null,null,null,null,"Suma be PVM",{"$f":"IF(F1537=\"\",\"\",SUM(F1537:F1537))","v":""},{"$f":"IF(F1537=\"\",\"Neužpildytos visos objektų kainos\",\"\")","v":"Neužpildytos visos objektų kainos"}]
[null,null,null,null,"PVM suma"]
[null,null,null,null,"Suma su PVM",{"$f":"IF(ISBLANK(F1539), \"\", SUM(F1538:F1539))","v":""},"Dalies biudžetas su PVM: 1575 Eur"]
[]
[]
[]
["127. DALIS","KVININO DIHIDROCHLORIDAS 600MG/2ML"]
[]
["Tiekėjo pasiūlymas:"]
["Nr.","Pavadinimas","Kiekis","Mato vienetas","Įkainis be PVM, Eur","Suma be PVM, Eur","Siūlomo produkto pavadinimas, dozė, kiekis pakuotėje, gamintojas. Būtina pažymėti, kuris vaistas yra  vardinis"]
["127.","Kvinino dihidrochloridas 600mg/2ml"]
["127.1.","Kvinino dihidrochloridas 600mg/2ml",50,"amp.",null,{"$f":"IF(ISBLANK(E1549),\"\", PRODUCT(C1549,E1549))","v":""}]
[null,null,null,null,"Suma be PVM",{"$f":"IF(F1549=\"\",\"\",SUM(F1549:F1549))","v":""},{"$f":"IF(F1549=\"\",\"Neužpildytos visos objektų kainos\",\"\")","v":"Neužpildytos visos objektų kainos"}]
[null,null,null,null,"PVM suma"]
[null,null,null,null,"Suma su PVM",{"$f":"IF(ISBLANK(F1551), \"\", SUM(F1550:F1551))","v":""},"Dalies biudžetas su PVM: 2100 Eur"]
[]
[]
[]
["128. DALIS","KVININO SULFATAS 300MG "]
[]
["Tiekėjo pasiūlymas:"]
["Nr.","Pavadinimas","Kiekis","Mato vienetas","Įkainis be PVM, Eur","Suma be PVM, Eur","Siūlomo produkto pavadinimas, dozė, kiekis pakuotėje, gamintojas. Būtina pažymėti, kuris vaistas yra  vardinis"]
["128.","Kvinino sulfatas 300mg "]
["128.1.","Kvinino sulfatas 300mg ",60,"tab.",null,{"$f":"IF(ISBLANK(E1561),\"\", PRODUCT(C1561,E1561))","v":""}]
[null,null,null,null,"Suma be PVM",{"$f":"IF(F1561=\"\",\"\",SUM(F1561:F1561))","v":""},{"$f":"IF(F1561=\"\",\"Neužpildytos visos objektų kainos\",\"\")","v":"Neužpildytos visos objektų kainos"}]
[null,null,null,null,"PVM suma"]
[null,null,null,null,"Suma su PVM",{"$f":"IF(ISBLANK(F1563), \"\", SUM(F1562:F1563))","v":""},"Dalies biudžetas su PVM: 315 Eur"]
[]
[]
[]
["129. DALIS","LABETALOLIS 100MG"]
[]
["Tiekėjo pasiūlymas:"]
["Nr.","Pavadinimas","Kiekis","Mato vienetas","Įkainis be PVM, Eur","Suma be PVM, Eur","Siūlomo produkto pavadinimas, dozė, kiekis pakuotėje, gamintojas. Būtina pažymėti, kuris vaistas yra  vardinis"]
["129.","Labetalolis 100mg"]
["129.1.","Labetalolis 100mg",120,"tab.",null,{"$f":"IF(ISBLANK(E1573),\"\", PRODUCT(C1573,E1573))","v":""}]
[null,null,null,null,"Suma be PVM",{"$f":"IF(F1573=\"\",\"\",SUM(F1573:F1573))","v":""},{"$f":"IF(F1573=\"\",\"Neužpildytos visos objektų kainos\",\"\")","v":"Neužpildytos visos objektų kainos"}]
[null,null,null,null,"PVM suma"]
[null,null,null,null,"Suma su PVM",{"$f":"IF(ISBLANK(F1575), \"\", SUM(F1574:F1575))","v":""},"Dalies biudžetas su PVM: 63 Eur"]
[]
[]
[]
["130. DALIS","LABETALOLIS 5MG/ML   20 ML"]
[]
["Tiekėjo pasiūlymas:"]
["Nr.","Pavadinimas","Kiekis","Mato vienetas","Įkainis be PVM, Eur","Suma be PVM, Eur","Siūlomo produkto pavadinimas, dozė, kiekis pakuotėje, gamintojas. Būtina pažymėti, kuris vaistas yra  vardinis"]
["130.","Labetalolis 5mg/ml   20 ml"]
["130.1.","Labetalolis 5mg/ml   20 ml",15,"amp.",null,{"$f":"IF(ISBLANK(E1585),\"\", PRODUCT(C1585,E1585))","v":""}]
[null,null,null,null,"Suma be PVM",{"$f":"IF(F1585=\"\",\"\",SUM(F1585:F1585))","v":""},{"$f":"IF(F1585=\"\",\"Neužpildytos visos objektų kainos\",\"\")","v":"Neužpildytos visos objektų kainos"}]
[null,null,null,null,"PVM suma"]
[null,null,null,null,"Suma su PVM",{"$f":"IF(ISBLANK(F1587), \"\", SUM(F1586:F1587))","v":""},"Dalies biudžetas su PVM: 94,5 Eur"]
[]
[]
[]
["131. DALIS","LACTOBACILLUS RHAMNOSUS 10.46 MG, LACTOBACILUS ACIDOFILUS 0.69 MG; LACTOBACILUS DELBUECKI ASP., BULGARICUS 0.62 MG; STREPTOCOCCUS THERMOPHILUS 0.36 MG,    BE LAKTOZĖS IR GLIUTENO (LYGIAVERTIS YOUGURT CAPS)"]
[]
["Tiekėjo pasiūlymas:"]
["Nr.","Pavadinimas","Kiekis","Mato vienetas","Įkainis be PVM, Eur","Suma be PVM, Eur","Siūlomo produkto pavadinimas, dozė, kiekis pakuotėje, gamintojas. Būtina pažymėti, kuris vaistas yra  vardinis"]
["131.","Lactobacillus rhamnosus 10.46 mg, lactobacilus acidofilus 0.69 mg; lactobacilus delbuecki asp., bulgaricus 0.62 mg; Streptococcus thermophilus 0.36 mg,    be laktozės ir gliuteno (lygiavertis Yougurt caps)"]
["131.1.","Lactobacillus rhamnosus 10.46 mg, lactobacilus acidofilus 0.69 mg; lactobacilus delbuecki asp., bulgaricus 0.62 mg; Streptococcus thermophilus 0.36 mg,    be laktozės ir gliuteno (lygiavertis Yougurt caps)",5100,"kaps./tab.",null,{"$f":"IF(ISBLANK(E1597),\"\", PRODUCT(C1597,E1597))","v":""}]
[null,null,null,null,"Suma be PVM",{"$f":"IF(F1597=\"\",\"\",SUM(F1597:F1597))","v":""},{"$f":"IF(F1597=\"\",\"Neužpildytos visos objektų kainos\",\"\")","v":"Neužpildytos visos objektų kainos"}]
[null,null,null,null,"PVM suma"]
[null,null,null,null,"Suma su PVM",{"$f":"IF(ISBLANK(F1599), \"\", SUM(F1598:F1599))","v":""},"Dalies biudžetas su PVM: 595 Eur"]
[]
[]
[]
["132. DALIS","LACTOBACILLUS RHAMNOSUS GG (5 X 109)  BE LAKTOZĖS IR GLIUTENO"]
[]
["Tiekėjo pasiūlymas:"]
["Nr.","Pavadinimas","Kiekis","Mato vienetas","Įkainis be PVM, Eur","Suma be PVM, Eur","Siūlomo produkto pavadinimas, dozė, kiekis pakuotėje, gamintojas. Būtina pažymėti, kuris vaistas yra  vardinis"]
["132.","Lactobacillus rhamnosus GG (5 x 109)  be laktozės ir gliuteno"]
["132.1.","Lactobacillus rhamnosus GG (5 x 109)  be laktozės ir gliuteno",800,"kaps.",null,{"$f":"IF(ISBLANK(E1609),\"\", PRODUCT(C1609,E1609))","v":""}]
[null,null,null,null,"Suma be PVM",{"$f":"IF(F1609=\"\",\"\",SUM(F1609:F1609))","v":""},{"$f":"IF(F1609=\"\",\"Neužpildytos visos objektų kainos\",\"\")","v":"Neužpildytos visos objektų kainos"}]
[null,null,null,null,"PVM suma"]
[null,null,null,null,"Suma su PVM",{"$f":"IF(ISBLANK(F1611), \"\", SUM(F1610:F1611))","v":""},"Dalies biudžetas su PVM: 378 Eur"]
[]
[]
[]
["133. DALIS","LACTOBACILLUS RHAMNOSUS GG (5 X 109)  BE LAKTOZĖS IR GLIUTENO LAŠAI +VIT. D3"]
[]
["Tiekėjo pasiūlymas:"]
["Nr.","Pavadinimas","Kiekis","Mato vienetas","Įkainis be PVM, Eur","Suma be PVM, Eur","Siūlomo produkto pavadinimas, dozė, kiekis pakuotėje, gamintojas. Būtina pažymėti, kuris vaistas yra  vardinis"]
["133.","Lactobacillus rhamnosus GG (5 x 109)  be laktozės ir gliuteno lašai +Vit. D3"]
["133.1.","Lactobacillus rhamnosus GG (5 x 109)  be laktozės ir gliuteno lašai +Vit. D4",600,"ml",null,{"$f":"IF(ISBLANK(E1621),\"\", PRODUCT(C1621,E1621))","v":""}]
[null,null,null,null,"Suma be PVM",{"$f":"IF(F1621=\"\",\"\",SUM(F1621:F1621))","v":""},{"$f":"IF(F1621=\"\",\"Neužpildytos visos objektų kainos\",\"\")","v":"Neužpildytos visos objektų kainos"}]
[null,null,null,null,"PVM suma"]
[null,null,null,null,"Suma su PVM",{"$f":"IF(ISBLANK(F1623), \"\", SUM(F1622:F1623))","v":""},"Dalies biudžetas su PVM: 1470 Eur"]
[]
[]
[]
["134. DALIS","LANOLINUM ANHYDRICUM"]
[]
["Tiekėjo pasiūlymas:"]
["Nr.","Pavadinimas","Kiekis","Mato vienetas","Įkainis be PVM, Eur","Suma be PVM, Eur","Siūlomo produkto pavadinimas, dozė, kiekis pakuotėje, gamintojas. Būtina pažymėti, kuris vaistas yra  vardinis"]
["134.","Lanolinum anhydricum"]
["134.1.","Lanolinum anhydricum",60,"kg",null,{"$f":"IF(ISBLANK(E1633),\"\", PRODUCT(C1633,E1633))","v":""}]
[null,null,null,null,"Suma be PVM",{"$f":"IF(F1633=\"\",\"\",SUM(F1633:F1633))","v":""},{"$f":"IF(F1633=\"\",\"Neužpildytos visos objektų kainos\",\"\")","v":"Neužpildytos visos objektų kainos"}]
[null,null,null,null,"PVM suma"]
[null,null,null,null,"Suma su PVM",{"$f":"IF(ISBLANK(F1635), \"\", SUM(F1634:F1635))","v":""},"Dalies biudžetas su PVM: 2415 Eur"]
[]
[]
[]
["135. DALIS","LEVODOPA/KARBIDOPA 200 MG/50 MG "]
[]
["Tiekėjo pasiūlymas:"]
["Nr.","Pavadinimas","Kiekis","Mato vienetas","Įkainis be PVM, Eur","Suma be PVM, Eur","Siūlomo produkto pavadinimas, dozė, kiekis pakuotėje, gamintojas. Būtina pažymėti, kuris vaistas yra  vardinis"]
["135.","Levodopa/Karbidopa 200 mg/50 mg "]
["135.1.","Levodopa/Karbidopa 200 mg/50 mg ",200,"tab.",null,{"$f":"IF(ISBLANK(E1645),\"\", PRODUCT(C1645,E1645))","v":""}]
[null,null,null,null,"Suma be PVM",{"$f":"IF(F1645=\"\",\"\",SUM(F1645:F1645))","v":""},{"$f":"IF(F1645=\"\",\"Neužpildytos visos objektų kainos\",\"\")","v":"Neužpildytos visos objektų kainos"}]
[null,null,null,null,"PVM suma"]
[null,null,null,null,"Suma su PVM",{"$f":"IF(ISBLANK(F1647), \"\", SUM(F1646:F1647))","v":""},"Dalies biudžetas su PVM: 94,5 Eur"]
[]
[]
[]
["136. DALIS","LEVOSIMENDAN 2,5MG/ML "]
[]
["Tiekėjo pasiūlymas:"]
["Nr.","Pavadinimas","Kiekis","Mato vienetas","Įkainis be PVM, Eur","Suma be PVM, Eur","Siūlomo produkto pavadinimas, dozė, kiekis pakuotėje, gamintojas. Būtina pažymėti, kuris vaistas yra  vardinis"]
["136.","Levosimendan 2,5mg/ml "]
["136.1.","Levosimendan 2,5mg/ml ",2,"fl.",null,{"$f":"IF(ISBLANK(E1657),\"\", PRODUCT(C1657,E1657))","v":""}]
[null,null,null,null,"Suma be PVM",{"$f":"IF(F1657=\"\",\"\",SUM(F1657:F1657))","v":""},{"$f":"IF(F1657=\"\",\"Neužpildytos visos objektų kainos\",\"\")","v":"Neužpildytos visos objektų kainos"}]
[null,null,null,null,"PVM suma"]
[null,null,null,null,"Suma su PVM",{"$f":"IF(ISBLANK(F1659), \"\", SUM(F1658:F1659))","v":""},"Dalies biudžetas su PVM: 819 Eur"]
[]
[]
[]
["137. DALIS","LIČIO KARBONATAS 450 MG "]
[]
["Tiekėjo pasiūlymas:"]
["Nr.","Pavadinimas","Kiekis","Mato vienetas","Įkainis be PVM, Eur","Suma be PVM, Eur","Siūlomo produkto pavadinimas, dozė, kiekis pakuotėje, gamintojas. Būtina pažymėti, kuris vaistas yra  vardinis"]
["137.","Ličio karbonatas 450 mg "]
["137.1.","Ličio karbonatas 450 mg ",200,"tab.",null,{"$f":"IF(ISBLANK(E1669),\"\", PRODUCT(C1669,E1669))","v":""}]
[null,null,null,null,"Suma be PVM",{"$f":"IF(F1669=\"\",\"\",SUM(F1669:F1669))","v":""},{"$f":"IF(F1669=\"\",\"Neužpildytos visos objektų kainos\",\"\")","v":"Neužpildytos visos objektų kainos"}]
[null,null,null,null,"PVM suma"]
[null,null,null,null,"Suma su PVM",{"$f":"IF(ISBLANK(F1671), \"\", SUM(F1670:F1671))","v":""},"Dalies biudžetas su PVM: 31,5 Eur"]
[]
[]
[]
["138. DALIS","LORATADINUM 1 MG/ML  SUSPENSIJA"]
[]
["Tiekėjo pasiūlymas:"]
["Nr.","Pavadinimas","Kiekis","Mato vienetas","Įkainis be PVM, Eur","Suma be PVM, Eur","Siūlomo produkto pavadinimas, dozė, kiekis pakuotėje, gamintojas. Būtina pažymėti, kuris vaistas yra  vardinis"]
["138.","Loratadinum 1 mg/ml  suspensija"]
["138.1.","Loratadinum 1 mg/ml  suspensija",180,"ml",null,{"$f":"IF(ISBLANK(E1681),\"\", PRODUCT(C1681,E1681))","v":""}]
[null,null,null,null,"Suma be PVM",{"$f":"IF(F1681=\"\",\"\",SUM(F1681:F1681))","v":""},{"$f":"IF(F1681=\"\",\"Neužpildytos visos objektų kainos\",\"\")","v":"Neužpildytos visos objektų kainos"}]
[null,null,null,null,"PVM suma"]
[null,null,null,null,"Suma su PVM",{"$f":"IF(ISBLANK(F1683), \"\", SUM(F1682:F1683))","v":""},"Dalies biudžetas su PVM: 94,5 Eur"]
[]
[]
[]
["139. DALIS","MAGNESII SULFAS"]
[]
["Tiekėjo pasiūlymas:"]
["Nr.","Pavadinimas","Kiekis","Mato vienetas","Įkainis be PVM, Eur","Suma be PVM, Eur","Siūlomo produkto pavadinimas, dozė, kiekis pakuotėje, gamintojas. Būtina pažymėti, kuris vaistas yra  vardinis"]
["139.","Magnesii sulfas"]
["139.1.","Magnesii sulfas",10,"kg",null,{"$f":"IF(ISBLANK(E1693),\"\", PRODUCT(C1693,E1693))","v":""}]
[null,null,null,null,"Suma be PVM",{"$f":"IF(F1693=\"\",\"\",SUM(F1693:F1693))","v":""},{"$f":"IF(F1693=\"\",\"Neužpildytos visos objektų kainos\",\"\")","v":"Neužpildytos visos objektų kainos"}]
[null,null,null,null,"PVM suma"]
[null,null,null,null,"Suma su PVM",{"$f":"IF(ISBLANK(F1695), \"\", SUM(F1694:F1695))","v":""},"Dalies biudžetas su PVM: 105 Eur"]
[]
[]
[]
["140. DALIS","MAGNIO LAKTATAS 295,7/5 MG (MILTELIAI GERIAMĄJAM TIRPALUI)"]
[]
["Tiekėjo pasiūlymas:"]
["Nr.","Pavadinimas","Kiekis","Mato vienetas","Įkainis be PVM, Eur","Suma be PVM, Eur","Siūlomo produkto pavadinimas, dozė, kiekis pakuotėje, gamintojas. Būtina pažymėti, kuris vaistas yra  vardinis"]
["140.","Magnio laktatas 295,7/5 mg (milteliai geriamąjam tirpalui)"]
["140.1.","Magnio laktatas 295,7/5 mg (milteliai geriamąjam tirpalui)",800,"pak.",null,{"$f":"IF(ISBLANK(E1705),\"\", PRODUCT(C1705,E1705))","v":""}]
[null,null,null,null,"Suma be PVM",{"$f":"IF(F1705=\"\",\"\",SUM(F1705:F1705))","v":""},{"$f":"IF(F1705=\"\",\"Neužpildytos visos objektų kainos\",\"\")","v":"Neužpildytos visos objektų kainos"}]
[null,null,null,null,"PVM suma"]
[null,null,null,null,"Suma su PVM",{"$f":"IF(ISBLANK(F1707), \"\", SUM(F1706:F1707))","v":""},"Dalies biudžetas su PVM: 336 Eur"]
[]
[]
[]
["141. DALIS","MEDAZEPAMAS 10 MG"]
[]
["Tiekėjo pasiūlymas:"]
["Nr.","Pavadinimas","Kiekis","Mato vienetas","Įkainis be PVM, Eur","Suma be PVM, Eur","Siūlomo produkto pavadinimas, dozė, kiekis pakuotėje, gamintojas. Būtina pažymėti, kuris vaistas yra  vardinis"]
["141.","Medazepamas 10 mg"]
["141.1.","Medazepamas 10 mg",400,"tab.",null,{"$f":"IF(ISBLANK(E1717),\"\", PRODUCT(C1717,E1717))","v":""}]
[null,null,null,null,"Suma be PVM",{"$f":"IF(F1717=\"\",\"\",SUM(F1717:F1717))","v":""},{"$f":"IF(F1717=\"\",\"Neužpildytos visos objektų kainos\",\"\")","v":"Neužpildytos visos objektų kainos"}]
[null,null,null,null,"PVM suma"]
[null,null,null,null,"Suma su PVM",{"$f":"IF(ISBLANK(F1719), \"\", SUM(F1718:F1719))","v":""},"Dalies biudžetas su PVM: 42 Eur"]
[]
[]
[]
["142. DALIS","MEDETKŲ ALIEJUS 50 ML"]
[]
["Tiekėjo pasiūlymas:"]
["Nr.","Pavadinimas","Kiekis","Mato vienetas","Įkainis be PVM, Eur","Suma be PVM, Eur","Siūlomo produkto pavadinimas, dozė, kiekis pakuotėje, gamintojas. Būtina pažymėti, kuris vaistas yra  vardinis"]
["142.","Medetkų aliejus 50 ml"]
["142.1.","Medetkų aliejus 50 ml",5,"fl.",null,{"$f":"IF(ISBLANK(E1729),\"\", PRODUCT(C1729,E1729))","v":""}]
[null,null,null,null,"Suma be PVM",{"$f":"IF(F1729=\"\",\"\",SUM(F1729:F1729))","v":""},{"$f":"IF(F1729=\"\",\"Neužpildytos visos objektų kainos\",\"\")","v":"Neužpildytos visos objektų kainos"}]
[null,null,null,null,"PVM suma"]
[null,null,null,null,"Suma su PVM",{"$f":"IF(ISBLANK(F1731), \"\", SUM(F1730:F1731))","v":""},"Dalies biudžetas su PVM: 18,38 Eur"]
[]
[]
[]
["143. DALIS","MENTOLIO TIRPALAS IZOVALERIJONO RŪGŠTIES METILO ESTERYJE 60MG"]
[]
["Tiekėjo pasiūlymas:"]
["Nr.","Pavadinimas","Kiekis","Mato vienetas","Įkainis be PVM, Eur","Suma be PVM, Eur","Siūlomo produkto pavadinimas, dozė, kiekis pakuotėje, gamintojas. Būtina pažymėti, kuris vaistas yra  vardinis"]
["143.","Mentolio tirpalas izovalerijono rūgšties metilo esteryje 60mg"]
["143.1.","Mentolio tirpalas izovalerijono rūgšties metilo esteryje 60mg",400,"tab.",null,{"$f":"IF(ISBLANK(E1741),\"\", PRODUCT(C1741,E1741))","v":""}]
[null,null,null,null,"Suma be PVM",{"$f":"IF(F1741=\"\",\"\",SUM(F1741:F1741))","v":""},{"$f":"IF(F1741=\"\",\"Neužpildytos visos objektų kainos\",\"\")","v":"Neužpildytos visos objektų kainos"}]
[null,null,null,null,"PVM suma"]
[null,null,null,null,"Suma su PVM",{"$f":"IF(ISBLANK(F1743), \"\", SUM(F1742:F1743))","v":""},"Dalies biudžetas su PVM: 105 Eur"]
[]
[]
[]
["144. DALIS","METACHLONE CHLORIDUM 100 MG/ML 10 ML "]
[]
["Tiekėjo pasiūlymas:"]
["Nr.","Pavadinimas","Kiekis","Mato vienetas","Įkainis be PVM, Eur","Suma be PVM, Eur","Siūlomo produkto pavadinimas, dozė, kiekis pakuotėje, gamintojas. Būtina pažymėti, kuris vaistas yra  vardinis"]
["144.","Metachlone chloridum 100 mg/ml 10 ml "]
["144.1.","Metachlone chloridum 100 mg/ml 10 ml ",6,"amp.",null,{"$f":"IF(ISBLANK(E1753),\"\", PRODUCT(C1753,E1753))","v":""}]
[null,null,null,null,"Suma be PVM",{"$f":"IF(F1753=\"\",\"\",SUM(F1753:F1753))","v":""},{"$f":"IF(F1753=\"\",\"Neužpildytos visos objektų kainos\",\"\")","v":"Neužpildytos visos objektų kainos"}]
[null,null,null,null,"PVM suma"]
[null,null,null,null,"Suma su PVM",{"$f":"IF(ISBLANK(F1755), \"\", SUM(F1754:F1755))","v":""},"Dalies biudžetas su PVM: 63 Eur"]
[]
[]
[]
["145. DALIS","METAMIZOLUM NATRICUM "]
[]
["Tiekėjo pasiūlymas:"]
["Nr.","Pavadinimas","Kiekis","Mato vienetas","Įkainis be PVM, Eur","Suma be PVM, Eur","Siūlomo produkto pavadinimas, dozė, kiekis pakuotėje, gamintojas. Būtina pažymėti, kuris vaistas yra  vardinis"]
["145.","Metamizolum natricum "]
["145.1.","Metamizolum natricum ",2,"kg",null,{"$f":"IF(ISBLANK(E1765),\"\", PRODUCT(C1765,E1765))","v":""}]
[null,null,null,null,"Suma be PVM",{"$f":"IF(F1765=\"\",\"\",SUM(F1765:F1765))","v":""},{"$f":"IF(F1765=\"\",\"Neužpildytos visos objektų kainos\",\"\")","v":"Neužpildytos visos objektų kainos"}]
[null,null,null,null,"PVM suma"]
[null,null,null,null,"Suma su PVM",{"$f":"IF(ISBLANK(F1767), \"\", SUM(F1766:F1767))","v":""},"Dalies biudžetas su PVM: 577,5 Eur"]
[]
[]
[]
["146. DALIS","METHYLERGOMETRINAS 0,2MG/ML 1 ML"]
[]
["Tiekėjo pasiūlymas:"]
["Nr.","Pavadinimas","Kiekis","Mato vienetas","Įkainis be PVM, Eur","Suma be PVM, Eur","Siūlomo produkto pavadinimas, dozė, kiekis pakuotėje, gamintojas. Būtina pažymėti, kuris vaistas yra  vardinis"]
["146.","Methylergometrinas 0,2mg/ml 1 ml"]
["146.1.","Methylergometrinas 0,2mg/ml 1 ml",20,"amp.",null,{"$f":"IF(ISBLANK(E1777),\"\", PRODUCT(C1777,E1777))","v":""}]
[null,null,null,null,"Suma be PVM",{"$f":"IF(F1777=\"\",\"\",SUM(F1777:F1777))","v":""},{"$f":"IF(F1777=\"\",\"Neužpildytos visos objektų kainos\",\"\")","v":"Neužpildytos visos objektų kainos"}]
[null,null,null,null,"PVM suma"]
[null,null,null,null,"Suma su PVM",{"$f":"IF(ISBLANK(F1779), \"\", SUM(F1778:F1779))","v":""},"Dalies biudžetas su PVM: 84 Eur"]
[]
[]
[]
["147. DALIS","METILENO MĖLIS 10MG/ML"]
[]
["Tiekėjo pasiūlymas:"]
["Nr.","Pavadinimas","Kiekis","Mato vienetas","Įkainis be PVM, Eur","Suma be PVM, Eur","Siūlomo produkto pavadinimas, dozė, kiekis pakuotėje, gamintojas. Būtina pažymėti, kuris vaistas yra  vardinis"]
["147.","Metileno mėlis 10mg/ml"]
["147.1.","Metileno mėlis 10mg/ml",140,"amp.",null,{"$f":"IF(ISBLANK(E1789),\"\", PRODUCT(C1789,E1789))","v":""}]
[null,null,null,null,"Suma be PVM",{"$f":"IF(F1789=\"\",\"\",SUM(F1789:F1789))","v":""},{"$f":"IF(F1789=\"\",\"Neužpildytos visos objektų kainos\",\"\")","v":"Neužpildytos visos objektų kainos"}]
[null,null,null,null,"PVM suma"]
[null,null,null,null,"Suma su PVM",{"$f":"IF(ISBLANK(F1791), \"\", SUM(F1790:F1791))","v":""},"Dalies biudžetas su PVM: 661,5 Eur"]
[]
[]
[]
["148. DALIS","METILPREDNIZOLONAS 500 MG INJEKCIJOMS"]
[]
["Tiekėjo pasiūlymas:"]
["Nr.","Pavadinimas","Kiekis","Mato vienetas","Įkainis be PVM, Eur","Suma be PVM, Eur","Siūlomo produkto pavadinimas, dozė, kiekis pakuotėje, gamintojas. Būtina pažymėti, kuris vaistas yra  vardinis"]
["148.","Metilprednizolonas 500 mg injekcijoms"]
["148.1.","Metilprednizolonas 500 mg injekcijoms",5,"fl.",null,{"$f":"IF(ISBLANK(E1801),\"\", PRODUCT(C1801,E1801))","v":""}]
[null,null,null,null,"Suma be PVM",{"$f":"IF(F1801=\"\",\"\",SUM(F1801:F1801))","v":""},{"$f":"IF(F1801=\"\",\"Neužpildytos visos objektų kainos\",\"\")","v":"Neužpildytos visos objektų kainos"}]
[null,null,null,null,"PVM suma"]
[null,null,null,null,"Suma su PVM",{"$f":"IF(ISBLANK(F1803), \"\", SUM(F1802:F1803))","v":""},"Dalies biudžetas su PVM: 262,5 Eur"]
[]
[]
[]
["149. DALIS","METOTREKSATAS 10MG"]
[]
["Tiekėjo pasiūlymas:"]
["Nr.","Pavadinimas","Kiekis","Mato vienetas","Įkainis be PVM, Eur","Suma be PVM, Eur","Siūlomo produkto pavadinimas, dozė, kiekis pakuotėje, gamintojas. Būtina pažymėti, kuris vaistas yra  vardinis"]
["149.","Metotreksatas 10mg"]
["149.1.","Metotreksatas 10mg",300,"tab.",null,{"$f":"IF(ISBLANK(E1813),\"\", PRODUCT(C1813,E1813))","v":""}]
[null,null,null,null,"Suma be PVM",{"$f":"IF(F1813=\"\",\"\",SUM(F1813:F1813))","v":""},{"$f":"IF(F1813=\"\",\"Neužpildytos visos objektų kainos\",\"\")","v":"Neužpildytos visos objektų kainos"}]
[null,null,null,null,"PVM suma"]
[null,null,null,null,"Suma su PVM",{"$f":"IF(ISBLANK(F1815), \"\", SUM(F1814:F1815))","v":""},"Dalies biudžetas su PVM: 73,5 Eur"]
[]
[]
[]
["150. DALIS","MIDAZOLAMAS 7,5 MG "]
[]
["Tiekėjo pasiūlymas:"]
["Nr.","Pavadinimas","Kiekis","Mato vienetas","Įkainis be PVM, Eur","Suma be PVM, Eur","Siūlomo produkto pavadinimas, dozė, kiekis pakuotėje, gamintojas. Būtina pažymėti, kuris vaistas yra  vardinis"]
["150.","Midazolamas 7,5 mg "]
["150.1.","Midazolamas 7,5 mg ",200,"tab.",null,{"$f":"IF(ISBLANK(E1825),\"\", PRODUCT(C1825,E1825))","v":""}]
[null,null,null,null,"Suma be PVM",{"$f":"IF(F1825=\"\",\"\",SUM(F1825:F1825))","v":""},{"$f":"IF(F1825=\"\",\"Neužpildytos visos objektų kainos\",\"\")","v":"Neužpildytos visos objektų kainos"}]
[null,null,null,null,"PVM suma"]
[null,null,null,null,"Suma su PVM",{"$f":"IF(ISBLANK(F1827), \"\", SUM(F1826:F1827))","v":""},"Dalies biudžetas su PVM: 105 Eur"]
[]
[]
[]
["151. DALIS","MIDODRINO HIDROCHLORIDAS 2,5MG"]
[]
["Tiekėjo pasiūlymas:"]
["Nr.","Pavadinimas","Kiekis","Mato vienetas","Įkainis be PVM, Eur","Suma be PVM, Eur","Siūlomo produkto pavadinimas, dozė, kiekis pakuotėje, gamintojas. Būtina pažymėti, kuris vaistas yra  vardinis"]
["151.","Midodrino hidrochloridas 2,5mg"]
["151.1.","Midodrino hidrochloridas 2,5mg",100,"tab.",null,{"$f":"IF(ISBLANK(E1837),\"\", PRODUCT(C1837,E1837))","v":""}]
[null,null,null,null,"Suma be PVM",{"$f":"IF(F1837=\"\",\"\",SUM(F1837:F1837))","v":""},{"$f":"IF(F1837=\"\",\"Neužpildytos visos objektų kainos\",\"\")","v":"Neužpildytos visos objektų kainos"}]
[null,null,null,null,"PVM suma"]
[null,null,null,null,"Suma su PVM",{"$f":"IF(ISBLANK(F1839), \"\", SUM(F1838:F1839))","v":""},"Dalies biudžetas su PVM: 105 Eur"]
[]
[]
[]
["152. DALIS","MINKŠTINANTIS IR DRĖKINANTIS ODĄ KREMAS (LYGIAVERTIS BASALIS KREMUI) 350 G  ± 10G"]
[]
["Tiekėjo pasiūlymas:"]
["Nr.","Pavadinimas","Kiekis","Mato vienetas","Įkainis be PVM, Eur","Suma be PVM, Eur","Siūlomo produkto pavadinimas, dozė, kiekis pakuotėje, gamintojas. Būtina pažymėti, kuris vaistas yra  vardinis"]
["152.","Minkštinantis ir drėkinantis odą kremas (lygiavertis Basalis kremui) 350 g  ± 10g"]
["152.1.","Minkštinantis ir drėkinantis odą kremas (lygiavertis Basalis kremui) 350 g  ± 10g",10,"fl.",null,{"$f":"IF(ISBLANK(E1849),\"\", PRODUCT(C1849,E1849))","v":""}]
[null,null,null,null,"Suma be PVM",{"$f":"IF(F1849=\"\",\"\",SUM(F1849:F1849))","v":""},{"$f":"IF(F1849=\"\",\"Neužpildytos visos objektų kainos\",\"\")","v":"Neužpildytos visos objektų kainos"}]
[null,null,null,null,"PVM suma"]
[null,null,null,null,"Suma su PVM",{"$f":"IF(ISBLANK(F1851), \"\", SUM(F1850:F1851))","v":""},"Dalies biudžetas su PVM: 126 Eur"]
[]
[]
[]
["153. DALIS","MISOPROSTOLIS 0,2MG"]
[]
["Tiekėjo pasiūlymas:"]
["Nr.","Pavadinimas","Kiekis","Mato vienetas","Įkainis be PVM, Eur","Suma be PVM, Eur","Siūlomo produkto pavadinimas, dozė, kiekis pakuotėje, gamintojas. Būtina pažymėti, kuris vaistas yra  vardinis"]
["153.","Misoprostolis 0,2mg"]
["153.1.","Misoprostolis 0,2mg",2000,"tab.",null,{"$f":"IF(ISBLANK(E1861),\"\", PRODUCT(C1861,E1861))","v":""}]
[null,null,null,null,"Suma be PVM",{"$f":"IF(F1861=\"\",\"\",SUM(F1861:F1861))","v":""},{"$f":"IF(F1861=\"\",\"Neužpildytos visos objektų kainos\",\"\")","v":"Neužpildytos visos objektų kainos"}]
[null,null,null,null,"PVM suma"]
[null,null,null,null,"Suma su PVM",{"$f":"IF(ISBLANK(F1863), \"\", SUM(F1862:F1863))","v":""},"Dalies biudžetas su PVM: 1050 Eur"]
[]
[]
[]
["154. DALIS","MOKSIFLOKSACINAS 400MG INFUZIJOMS 250ML "]
[]
["Tiekėjo pasiūlymas:"]
["Nr.","Pavadinimas","Kiekis","Mato vienetas","Įkainis be PVM, Eur","Suma be PVM, Eur","Siūlomo produkto pavadinimas, dozė, kiekis pakuotėje, gamintojas. Būtina pažymėti, kuris vaistas yra  vardinis"]
["154.","Moksifloksacinas 400mg infuzijoms 250ml "]
["154.1.","Moksifloksacinas 400mg infuzijoms 250ml ",10,"fl.",null,{"$f":"IF(ISBLANK(E1873),\"\", PRODUCT(C1873,E1873))","v":""}]
[null,null,null,null,"Suma be PVM",{"$f":"IF(F1873=\"\",\"\",SUM(F1873:F1873))","v":""},{"$f":"IF(F1873=\"\",\"Neužpildytos visos objektų kainos\",\"\")","v":"Neužpildytos visos objektų kainos"}]
[null,null,null,null,"PVM suma"]
[null,null,null,null,"Suma su PVM",{"$f":"IF(ISBLANK(F1875), \"\", SUM(F1874:F1875))","v":""},"Dalies biudžetas su PVM: 682,5 Eur"]
[]
[]
[]
["155. DALIS","MORFINO SULFATAS 1MG/ML TINKANTIS INTRATEKALINĖMS INJEKCIJOMS"]
[]
["Tiekėjo pasiūlymas:"]
["Nr.","Pavadinimas","Kiekis","Mato vienetas","Įkainis be PVM, Eur","Suma be PVM, Eur","Siūlomo produkto pavadinimas, dozė, kiekis pakuotėje, gamintojas. Būtina pažymėti, kuris vaistas yra  vardinis"]
["155.","Morfino sulfatas 1mg/ml tinkantis intratekalinėms injekcijoms"]
["155.1.","Morfino sulfatas 1mg/ml tinkantis intratekalinėms injekcijoms",300,"amp.",null,{"$f":"IF(ISBLANK(E1885),\"\", PRODUCT(C1885,E1885))","v":""}]
[null,null,null,null,"Suma be PVM",{"$f":"IF(F1885=\"\",\"\",SUM(F1885:F1885))","v":""},{"$f":"IF(F1885=\"\",\"Neužpildytos visos objektų kainos\",\"\")","v":"Neužpildytos visos objektų kainos"}]
[null,null,null,null,"PVM suma"]
[null,null,null,null,"Suma su PVM",{"$f":"IF(ISBLANK(F1887), \"\", SUM(F1886:F1887))","v":""},"Dalies biudžetas su PVM: 840 Eur"]
[]
[]
[]
["156. DALIS","NATRII BROMIDUM"]
[]
["Tiekėjo pasiūlymas:"]
["Nr.","Pavadinimas","Kiekis","Mato vienetas","Įkainis be PVM, Eur","Suma be PVM, Eur","Siūlomo produkto pavadinimas, dozė, kiekis pakuotėje, gamintojas. Būtina pažymėti, kuris vaistas yra  vardinis"]
["156.","Natrii bromidum"]
["156.1.","Natrii bromidum",6,"kg",null,{"$f":"IF(ISBLANK(E1897),\"\", PRODUCT(C1897,E1897))","v":""}]
[null,null,null,null,"Suma be PVM",{"$f":"IF(F1897=\"\",\"\",SUM(F1897:F1897))","v":""},{"$f":"IF(F1897=\"\",\"Neužpildytos visos objektų kainos\",\"\")","v":"Neužpildytos visos objektų kainos"}]
[null,null,null,null,"PVM suma"]
[null,null,null,null,"Suma su PVM",{"$f":"IF(ISBLANK(F1899), \"\", SUM(F1898:F1899))","v":""},"Dalies biudžetas su PVM: 157,5 Eur"]
[]
[]
[]
["157. DALIS","NATRII CHLORIDUM"]
[]
["Tiekėjo pasiūlymas:"]
["Nr.","Pavadinimas","Kiekis","Mato vienetas","Įkainis be PVM, Eur","Suma be PVM, Eur","Siūlomo produkto pavadinimas, dozė, kiekis pakuotėje, gamintojas. Būtina pažymėti, kuris vaistas yra  vardinis"]
["157.","Natrii chloridum"]
["157.1.","Natrii chloridum",60,"Kg",null,{"$f":"IF(ISBLANK(E1909),\"\", PRODUCT(C1909,E1909))","v":""}]
[null,null,null,null,"Suma be PVM",{"$f":"IF(F1909=\"\",\"\",SUM(F1909:F1909))","v":""},{"$f":"IF(F1909=\"\",\"Neužpildytos visos objektų kainos\",\"\")","v":"Neužpildytos visos objektų kainos"}]
[null,null,null,null,"PVM suma"]
[null,null,null,null,"Suma su PVM",{"$f":"IF(ISBLANK(F1911), \"\", SUM(F1910:F1911))","v":""},"Dalies biudžetas su PVM: 682,5 Eur"]
[]
[]
[]
["158. DALIS","NATRII CITRAS"]
[]
["Tiekėjo pasiūlymas:"]
["Nr.","Pavadinimas","Kiekis","Mato vienetas","Įkainis be PVM, Eur","Suma be PVM, Eur","Siūlomo produkto pavadinimas, dozė, kiekis pakuotėje, gamintojas. Būtina pažymėti, kuris vaistas yra  vardinis"]
["158.","Natrii citras"]
["158.1.","Natrii citras",1,"Kg",null,{"$f":"IF(ISBLANK(E1921),\"\", PRODUCT(C1921,E1921))","v":""}]
[null,null,null,null,"Suma be PVM",{"$f":"IF(F1921=\"\",\"\",SUM(F1921:F1921))","v":""},{"$f":"IF(F1921=\"\",\"Neužpildytos visos objektų kainos\",\"\")","v":"Neužpildytos visos objektų kainos"}]
[null,null,null,null,"PVM suma"]
[null,null,null,null,"Suma su PVM",{"$f":"IF(ISBLANK(F1923), \"\", SUM(F1922:F1923))","v":""},"Dalies biudžetas su PVM: 52,5 Eur"]
[]
[]
[]
["159. DALIS","NATRII HYDROCARBONAS"]
[]
["Tiekėjo pasiūlymas:"]
["Nr.","Pavadinimas","Kiekis","Mato vienetas","Įkainis be PVM, Eur","Suma be PVM, Eur","Siūlomo produkto pavadinimas, dozė, kiekis pakuotėje, gamintojas. Būtina pažymėti, kuris vaistas yra  vardinis"]
["159.","Natrii hydrocarbonas"]
["159.1.","Natrii hydrocarbonas",1,"Kg",null,{"$f":"IF(ISBLANK(E1933),\"\", PRODUCT(C1933,E1933))","v":""}]
[null,null,null,null,"Suma be PVM",{"$f":"IF(F1933=\"\",\"\",SUM(F1933:F1933))","v":""},{"$f":"IF(F1933=\"\",\"Neužpildytos visos objektų kainos\",\"\")","v":"Neužpildytos visos objektų kainos"}]
[null,null,null,null,"PVM suma"]
[null,null,null,null,"Suma su PVM",{"$f":"IF(ISBLANK(F1935), \"\", SUM(F1934:F1935))","v":""},"Dalies biudžetas su PVM: 21 Eur"]
[]
[]
[]
["160. DALIS","NATRIO CHLORIDAS  0,9% 3000ML (TURI BŪTI GALIMYBĖ PAKUOTĖS KAMŠTELYJE ĮVESTI 2 ADATAS. KAMŠTIS TURI BŪTI TVIRTAS, DURIANT NEGALI ĮLINKTI Į VIDŲ, TURI TURĖTI CENTRO ŽYMENĮ)"]
[]
["Tiekėjo pasiūlymas:"]
["Nr.","Pavadinimas","Kiekis","Mato vienetas","Įkainis be PVM, Eur","Suma be PVM, Eur","Siūlomo produkto pavadinimas, dozė, kiekis pakuotėje, gamintojas. Būtina pažymėti, kuris vaistas yra  vardinis"]
["160.","Natrio chloridas  0,9% 3000ml (turi būti galimybė pakuotės kamštelyje įvesti 2 adatas. Kamštis turi būti tvirtas, duriant negali įlinkti į vidų, turi turėti centro žymenį)"]
["160.1.","Natrio chloridas  0,9% 3000ml (turi būti galimybė pakuotės kamštelyje įvesti 2 adatas. Kamštis turi būti tvirtas, duriant negali įlinkti į vidų, turi turėti centro žymenį)",4100,"fl.",3.12,{"$f":"IF(ISBLANK(E1945),\"\", PRODUCT(C1945,E1945))","v":12792},"Natrii chloridum 0.9% tirp. 3000ml, Fresenius Kabi Deutchland GmbH"]
["160.1.1.","Pateikti dokumentus (gali būti prekės katalogas, aprašas) įrodymui, ar siūlomas pirkimo objektas atitinka techninėje specifikacijoje nurodytus reikalavimus. Prašome pažymėti prekės kataloge vietas įrodančias siūlomo parametro reikšmę."]
[null,null,null,null,"Suma be PVM",{"$f":"IF((COUNT(C1945:C1946)<>COUNT(F1945:F1946)),\"\", SUM(F1945:F1946))","v":12792},{"$f":"IF((COUNT(C1945:C1946)<>COUNT(F1945:F1946)),\"Neužpildytos visų objektų kainos\", \"\")","v":""}]
[null,null,null,null,"PVM suma",{"$f":"F1947*0.05","v":639.6}]
[null,null,null,null,"Suma su PVM",{"$f":"IF(ISBLANK(F1948), \"\", SUM(F1947:F1948))","v":13431.6},"Dalies biudžetas su PVM: 18942 Eur"]
[]
[]
[]
["161. DALIS","NATRIO CHLORIDAS  9 MG/ML 500 ML FLAKONUOSE  (SKIRTAS ŽAIZDŲ PRAPLOVIMAMS IR CHIRURGINIŲ INTERVENCIJŲ METU. STERILIOJE MINKŠTOJE PAKUOTĖJE. STERILUS PE PAKUOTĖS PAVIRŠIUS TINKAMAS NAUDOTI OPERACINĖJE)"]
[]
["Tiekėjo pasiūlymas:"]
["Nr.","Pavadinimas","Kiekis","Mato vienetas","Įkainis be PVM, Eur","Suma be PVM, Eur","Siūlomo produkto pavadinimas, dozė, kiekis pakuotėje, gamintojas. Būtina pažymėti, kuris vaistas yra  vardinis"]
["161.","Natrio chloridas  9 mg/ml 500 ml flakonuose  (skirtas žaizdų praplovimams ir chirurginių intervencijų metu. Sterilioje minkštoje pakuotėje. Sterilus PE pakuotės paviršius tinkamas naudoti operacinėje)"]
["161.1.","Natrio chloridas  9 mg/ml 500 ml flakonuose  (skirtas žaizdų praplovimams ir chirurginių intervencijų metu. Sterilioje minkštoje pakuotėje. Sterilus PE pakuotės paviršius tinkamas naudoti operacinėje)",700,"fl.",0.72,{"$f":"IF(ISBLANK(E1958),\"\", PRODUCT(C1958,E1958))","v":504},"Sodium chloride 0,9%  500ml irigacinis, N12, Fresenius Kabi France"]
["161.1.2.","Pateikti dokumentus (gali būti prekės katalogas, aprašas) įrodymui, ar siūlomas pirkimo objektas atitinka techninėje specifikacijoje nurodytus reikalavimus. Prašome pažymėti prekės kataloge vietas įrodančias siūlomo parametro reikšmę.",null,null,null,null,"Natrio Chloridas irigacijai 500ml,\nIrigaciniai tirpalai_katalogas"]
[null,null,null,null,"Suma be PVM",{"$f":"IF(F1958=\"\",\"\",SUM(F1958:F1958))","v":504},{"$f":"IF(F1958=\"\",\"Neužpildytos visos objektų kainos\",\"\")","v":""}]
[null,null,null,null,"PVM suma",{"$f":"F1960*0.05","v":25.200000000000003}]
[null,null,null,null,"Suma su PVM",{"$f":"IF(ISBLANK(F1961), \"\", SUM(F1960:F1961))","v":529.20000000000005},"Dalies biudžetas su PVM: 1396,5 Eur"]
[]
[]
[]
["162. DALIS","NATRIO CHLORIDAS 3 % 150ML"]
[]
["Tiekėjo pasiūlymas:"]
["Nr.","Pavadinimas","Kiekis","Mato vienetas","Įkainis be PVM, Eur","Suma be PVM, Eur","Siūlomo produkto pavadinimas, dozė, kiekis pakuotėje, gamintojas. Būtina pažymėti, kuris vaistas yra  vardinis"]
["162.","Natrio chloridas 3 % 150ml"]
["162.1.","Natrio chloridas 3 %  150ml",20,"fl.",null,{"$f":"IF(ISBLANK(E1971),\"\", PRODUCT(C1971,E1971))","v":""}]
[null,null,null,null,"Suma be PVM",{"$f":"IF(F1971=\"\",\"\",SUM(F1971:F1971))","v":""},{"$f":"IF(F1971=\"\",\"Neužpildytos visos objektų kainos\",\"\")","v":"Neužpildytos visos objektų kainos"}]
[null,null,null,null,"PVM suma"]
[null,null,null,null,"Suma su PVM",{"$f":"IF(ISBLANK(F1973), \"\", SUM(F1972:F1973))","v":""},"Dalies biudžetas su PVM: 105 Eur"]
[]
[]
[]
["163. DALIS","NATRIO CHLORIDAS 4,5 MG/ML 500 ML "]
[]
["Tiekėjo pasiūlymas:"]
["Nr.","Pavadinimas","Kiekis","Mato vienetas","Įkainis be PVM, Eur","Suma be PVM, Eur","Siūlomo produkto pavadinimas, dozė, kiekis pakuotėje, gamintojas. Būtina pažymėti, kuris vaistas yra  vardinis"]
["163.","Natrio chloridas 4,5 mg/ml 500 ml "]
["163.1.","Natrio chloridas 4,5 mg/ml 500 ml ",5500,"fl.",null,{"$f":"IF(ISBLANK(E1983),\"\", PRODUCT(C1983,E1983))","v":""}]
[null,null,null,null,"Suma be PVM",{"$f":"IF(F1983=\"\",\"\",SUM(F1983:F1983))","v":""},{"$f":"IF(F1983=\"\",\"Neužpildytos visos objektų kainos\",\"\")","v":"Neužpildytos visos objektų kainos"}]
[null,null,null,null,"PVM suma"]
[null,null,null,null,"Suma su PVM",{"$f":"IF(ISBLANK(F1985), \"\", SUM(F1984:F1985))","v":""},"Dalies biudžetas su PVM: 12993,75 Eur"]
[]
[]
[]
["164. DALIS","NATRIO CHLORIDAS 9 MG/ML 1000 ML IRIGACIJOMS (SU UŽSUKAMU KAMŠTELIU, PRAPLOVIMAMS)"]
[]
["Tiekėjo pasiūlymas:"]
["Nr.","Pavadinimas","Kiekis","Mato vienetas","Įkainis be PVM, Eur","Suma be PVM, Eur","Siūlomo produkto pavadinimas, dozė, kiekis pakuotėje, gamintojas. Būtina pažymėti, kuris vaistas yra  vardinis"]
["164.","Natrio chloridas 9 mg/ml 1000 ml irigacijoms (su užsukamu kamšteliu, praplovimams)"]
["164.1.","Natrio chloridas 9 mg/ml 1000 ml irigacijoms (su užsukamu kamšteliu, praplovimams)",800,"fl.",null,{"$f":"IF(ISBLANK(E1995),\"\", PRODUCT(C1995,E1995))","v":""}]
[null,null,null,null,"Suma be PVM",{"$f":"IF(F1995=\"\",\"\",SUM(F1995:F1995))","v":""},{"$f":"IF(F1995=\"\",\"Neužpildytos visos objektų kainos\",\"\")","v":"Neužpildytos visos objektų kainos"}]
[null,null,null,null,"PVM suma"]
[null,null,null,null,"Suma su PVM",{"$f":"IF(ISBLANK(F1997), \"\", SUM(F1996:F1997))","v":""},"Dalies biudžetas su PVM: 1142,4 Eur"]
[]
[]
[]
["165. DALIS","NATRIO CHLORIDAS/KALIO CHLORIDAS/MAGNIO CHLORIDAS HEKSAHIDRATAS/NATRIO ACETATAS TRIHIDRATAS/NATRIO GLIUKONATAS 5,26 G/0,37 G/0,3 G/3,68 G/5,02 G/1000 ML INFUZINIS TIRPALAS, LEISTI Į VENĄ"]
[]
["Tiekėjo pasiūlymas:"]
["Nr.","Pavadinimas","Kiekis","Mato vienetas","Įkainis be PVM, Eur","Suma be PVM, Eur","Siūlomo produkto pavadinimas, dozė, kiekis pakuotėje, gamintojas. Būtina pažymėti, kuris vaistas yra  vardinis"]
["165.","Natrio chloridas/Kalio chloridas/Magnio chloridas heksahidratas/Natrio acetatas trihidratas/Natrio gliukonatas 5,26 g/0,37 g/0,3 g/3,68 g/5,02 g/1000 ml infuzinis tirpalas, leisti į veną"]
["165.1.","Natrio chloridas/Kalio chloridas/Magnio chloridas heksahidratas/Natrio acetatas trihidratas/Natrio gliukonatas 5,26 g/0,37 g/0,3 g/3,68 g/5,02 g/1000 ml infuzinis tirpalas, leisti į veną",250,"fl.",null,{"$f":"IF(ISBLANK(E2007),\"\", PRODUCT(C2007,E2007))","v":""}]
[null,null,null,null,"Suma be PVM",{"$f":"IF(F2007=\"\",\"\",SUM(F2007:F2007))","v":""},{"$f":"IF(F2007=\"\",\"Neužpildytos visos objektų kainos\",\"\")","v":"Neužpildytos visos objektų kainos"}]
[null,null,null,null,"PVM suma"]
[null,null,null,null,"Suma su PVM",{"$f":"IF(ISBLANK(F2009), \"\", SUM(F2008:F2009))","v":""},"Dalies biudžetas su PVM: 1701 Eur"]
[]
[]
[]
["166. DALIS","NATRIO CHLORIDO 7MG/ML, KALIO CHLORIDO, MAGNIO CHLORIDO, PAPRASTŲJŲ AKIŠVIEČIŲ TINKRŪRA, POLISORBATO, NATRIO TETRABORATO, DINATRIO EDETATO DIHIDROKSIDO, BENZALKONIO CHLORIDO. AKIŲ LAŠAI"]
[]
["Tiekėjo pasiūlymas:"]
["Nr.","Pavadinimas","Kiekis","Mato vienetas","Įkainis be PVM, Eur","Suma be PVM, Eur","Siūlomo produkto pavadinimas, dozė, kiekis pakuotėje, gamintojas. Būtina pažymėti, kuris vaistas yra  vardinis"]
["166.","Natrio chlorido 7mg/ml, kalio chlorido, magnio chlorido, paprastųjų akišviečių tinkrūra, polisorbato, natrio tetraborato, dinatrio edetato dihidroksido, benzalkonio chlorido. Akių lašai"]
["166.1.","Natrio chlorido 7mg/ml, kalio chlorido, magnio chlorido, paprastųjų akišviečių tinkrūra, polisorbato, natrio tetraborato, dinatrio edetato dihidroksido, benzalkonio chlorido. Akių lašai",500,"ml",null,{"$f":"IF(ISBLANK(E2019),\"\", PRODUCT(C2019,E2019))","v":""}]
[null,null,null,null,"Suma be PVM",{"$f":"IF(F2019=\"\",\"\",SUM(F2019:F2019))","v":""},{"$f":"IF(F2019=\"\",\"Neužpildytos visos objektų kainos\",\"\")","v":"Neužpildytos visos objektų kainos"}]
[null,null,null,null,"PVM suma"]
[null,null,null,null,"Suma su PVM",{"$f":"IF(ISBLANK(F2021), \"\", SUM(F2020:F2021))","v":""},"Dalies biudžetas su PVM: 105 Eur"]
[]
[]
[]
["167. DALIS","OCTEOTIDO ACETATAS 0.1 MG/ML "]
[]
["Tiekėjo pasiūlymas:"]
["Nr.","Pavadinimas","Kiekis","Mato vienetas","Įkainis be PVM, Eur","Suma be PVM, Eur","Siūlomo produkto pavadinimas, dozė, kiekis pakuotėje, gamintojas. Būtina pažymėti, kuris vaistas yra  vardinis"]
["167.","Octeotido acetatas 0.1 mg/ml "]
["167.1.","Octeotido acetatas 0.1 mg/ml ",30,"amp.",null,{"$f":"IF(ISBLANK(E2031),\"\", PRODUCT(C2031,E2031))","v":""}]
[null,null,null,null,"Suma be PVM",{"$f":"IF(F2031=\"\",\"\",SUM(F2031:F2031))","v":""},{"$f":"IF(F2031=\"\",\"Neužpildytos visos objektų kainos\",\"\")","v":"Neužpildytos visos objektų kainos"}]
[null,null,null,null,"PVM suma"]
[null,null,null,null,"Suma su PVM",{"$f":"IF(ISBLANK(F2033), \"\", SUM(F2032:F2033))","v":""},"Dalies biudžetas su PVM: 472,5 Eur"]
[]
[]
[]
["168. DALIS","OFTALMOLOGINĖ VISKOELASTINĖ MEDŽIAGA"]
[]
["Tiekėjo pasiūlymas:"]
["Nr.","Pavadinimas","Kiekis","Mato vienetas","Įkainis be PVM, Eur","Suma be PVM, Eur","Siūlomo produkto pavadinimas, dozė, kiekis pakuotėje, gamintojas. Būtina pažymėti, kuris vaistas yra  vardinis"]
["168.","Oftalmologinė viskoelastinė medžiaga"]
["168.1.","Oftalmologinė viskoelastinė medžiaga",500,"vnt.",null,{"$f":"IF(ISBLANK(E2043),\"\", PRODUCT(C2043,E2043))","v":""}]
["168.1.1.","Sterili, nepirogeninė 1ml"]
["168.1.2.","Klampumas 75,000±35,000 mPa"]
["168.1.3.","Sudėtis: 1 ml yra ne daugiau kaip 40mg natrio chondroitino sulfato, 17 mg natrio hialuronato, 0,45 mg monobazinio natrio fosfato monohidrato, 2 mg bevandenio dvibazinio natrio fosfato, 3,1 mg natrio chlorido (su vandeniu injekcijoms q.s.)"]
["168.1.4.","Osmoliariškumas 298 mOsm ±32mOsm, pH 7,2 ±0,4"]
["168.1.5.","Tiekiamas su sterilia vienkartine 27 dydžio kaniule"]
["168.1.6.","Pateikti dokumentus (gali būti prekės katalogas, aprašas) įrodymui, ar siūlomas pirkimo objektas atitinka techninėje specifikacijoje nurodytus reikalavimus. Prašome pažymėti prekės kataloge vietas įrodančias siūlomo parametro reikšmę."]
[null,null,null,null,"Suma be PVM",{"$f":"IF((COUNT(C2043:C2049)<>COUNT(F2043:F2049)),\"\", SUM(F2043:F2049))","v":""},{"$f":"IF((COUNT(C2043:C2049)<>COUNT(F2043:F2049)),\"Neužpildytos visų objektų kainos\", \"\")","v":"Neužpildytos visų objektų kainos"}]
[null,null,null,null,"PVM suma"]
[null,null,null,null,"Suma su PVM",{"$f":"IF(ISBLANK(F2051), \"\", SUM(F2050:F2051))","v":""},"Dalies biudžetas su PVM: 23100 Eur"]
[]
[]
[]
["169. DALIS","OKSACILINAS 1000MG MILTELIAI INJEKCINIAM TIRPALUI"]
[]
["Tiekėjo pasiūlymas:"]
["Nr.","Pavadinimas","Kiekis","Mato vienetas","Įkainis be PVM, Eur","Suma be PVM, Eur","Siūlomo produkto pavadinimas, dozė, kiekis pakuotėje, gamintojas. Būtina pažymėti, kuris vaistas yra  vardinis"]
["169.","Oksacilinas 1000mg milteliai injekciniam tirpalui"]
["169.1.","Oksacilinas 1000mg milteliai injekciniam tirpalui",3600,"fl.",null,{"$f":"IF(ISBLANK(E2061),\"\", PRODUCT(C2061,E2061))","v":""}]
[null,null,null,null,"Suma be PVM",{"$f":"IF(F2061=\"\",\"\",SUM(F2061:F2061))","v":""},{"$f":"IF(F2061=\"\",\"Neužpildytos visos objektų kainos\",\"\")","v":"Neužpildytos visos objektų kainos"}]
[null,null,null,null,"PVM suma"]
[null,null,null,null,"Suma su PVM",{"$f":"IF(ISBLANK(F2063), \"\", SUM(F2062:F2063))","v":""},"Dalies biudžetas su PVM: 2268 Eur"]
[]
[]
[]
["170. DALIS","OLEUM CALENDULEA 50 ML"]
[]
["Tiekėjo pasiūlymas:"]
["Nr.","Pavadinimas","Kiekis","Mato vienetas","Įkainis be PVM, Eur","Suma be PVM, Eur","Siūlomo produkto pavadinimas, dozė, kiekis pakuotėje, gamintojas. Būtina pažymėti, kuris vaistas yra  vardinis"]
["170.","Oleum Calendulea 50 ml"]
["170.1.","Oleum Calendulea 50 ml",5,"fl.",null,{"$f":"IF(ISBLANK(E2073),\"\", PRODUCT(C2073,E2073))","v":""}]
[null,null,null,null,"Suma be PVM",{"$f":"IF(F2073=\"\",\"\",SUM(F2073:F2073))","v":""},{"$f":"IF(F2073=\"\",\"Neužpildytos visos objektų kainos\",\"\")","v":"Neužpildytos visos objektų kainos"}]
[null,null,null,null,"PVM suma"]
[null,null,null,null,"Suma su PVM",{"$f":"IF(ISBLANK(F2075), \"\", SUM(F2074:F2075))","v":""},"Dalies biudžetas su PVM: 19,95 Eur"]
[]
[]
[]
["171. DALIS","OLEUM HELIANTHI"]
[]
["Tiekėjo pasiūlymas:"]
["Nr.","Pavadinimas","Kiekis","Mato vienetas","Įkainis be PVM, Eur","Suma be PVM, Eur","Siūlomo produkto pavadinimas, dozė, kiekis pakuotėje, gamintojas. Būtina pažymėti, kuris vaistas yra  vardinis"]
["171.","Oleum Helianthi"]
["171.1.","Oleum Helianthi",80,"kg",null,{"$f":"IF(ISBLANK(E2085),\"\", PRODUCT(C2085,E2085))","v":""}]
[null,null,null,null,"Suma be PVM",{"$f":"IF(F2085=\"\",\"\",SUM(F2085:F2085))","v":""},{"$f":"IF(F2085=\"\",\"Neužpildytos visos objektų kainos\",\"\")","v":"Neužpildytos visos objektų kainos"}]
[null,null,null,null,"PVM suma"]
[null,null,null,null,"Suma su PVM",{"$f":"IF(ISBLANK(F2087), \"\", SUM(F2086:F2087))","v":""},"Dalies biudžetas su PVM: 892,5 Eur"]
[]
[]
[]
["172. DALIS","OLEUM VASELINI"]
[]
["Tiekėjo pasiūlymas:"]
["Nr.","Pavadinimas","Kiekis","Mato vienetas","Įkainis be PVM, Eur","Suma be PVM, Eur","Siūlomo produkto pavadinimas, dozė, kiekis pakuotėje, gamintojas. Būtina pažymėti, kuris vaistas yra  vardinis"]
["172.","Oleum vaselini"]
["172.1.","Oleum vaselini",35,"kg",null,{"$f":"IF(ISBLANK(E2097),\"\", PRODUCT(C2097,E2097))","v":""}]
[null,null,null,null,"Suma be PVM",{"$f":"IF(F2097=\"\",\"\",SUM(F2097:F2097))","v":""},{"$f":"IF(F2097=\"\",\"Neužpildytos visos objektų kainos\",\"\")","v":"Neužpildytos visos objektų kainos"}]
[null,null,null,null,"PVM suma"]
[null,null,null,null,"Suma su PVM",{"$f":"IF(ISBLANK(F2099), \"\", SUM(F2098:F2099))","v":""},"Dalies biudžetas su PVM: 367,5 Eur"]
[]
[]
[]
["173. DALIS","OLMESARTANAS /AMLODIPINAS/HIDROCHLOROTIAZIDAS 40/10/12,5MG"]
[]
["Tiekėjo pasiūlymas:"]
["Nr.","Pavadinimas","Kiekis","Mato vienetas","Įkainis be PVM, Eur","Suma be PVM, Eur","Siūlomo produkto pavadinimas, dozė, kiekis pakuotėje, gamintojas. Būtina pažymėti, kuris vaistas yra  vardinis"]
["173.","Olmesartanas /amlodipinas/hidrochlorotiazidas 40/10/12,5mg"]
["173.1.","Olmesartanas /amlodipinas/hidrochlorotiazidas 40/10/12,5mg",56,"tab.",null,{"$f":"IF(ISBLANK(E2109),\"\", PRODUCT(C2109,E2109))","v":""}]
[null,null,null,null,"Suma be PVM",{"$f":"IF(F2109=\"\",\"\",SUM(F2109:F2109))","v":""},{"$f":"IF(F2109=\"\",\"Neužpildytos visos objektų kainos\",\"\")","v":"Neužpildytos visos objektų kainos"}]
[null,null,null,null,"PVM suma"]
[null,null,null,null,"Suma su PVM",{"$f":"IF(ISBLANK(F2111), \"\", SUM(F2110:F2111))","v":""},"Dalies biudžetas su PVM: 29,4 Eur"]
[]
[]
[]
["174. DALIS","OLMESARTANAS MEDOKSOMILIS / AMLODIPINAS / HIDROCHLOROTIAZIDAS  40/5/12,5 MG"]
[]
["Tiekėjo pasiūlymas:"]
["Nr.","Pavadinimas","Kiekis","Mato vienetas","Įkainis be PVM, Eur","Suma be PVM, Eur","Siūlomo produkto pavadinimas, dozė, kiekis pakuotėje, gamintojas. Būtina pažymėti, kuris vaistas yra  vardinis"]
["174.","Olmesartanas medoksomilis / Amlodipinas / Hidrochlorotiazidas  40/5/12,5 mg"]
["174.1.","Olmesartanas medoksomilis / Amlodipinas / Hidrochlorotiazidas  40/5/12,5 mg",56,"tab.",null,{"$f":"IF(ISBLANK(E2121),\"\", PRODUCT(C2121,E2121))","v":""}]
[null,null,null,null,"Suma be PVM",{"$f":"IF(F2121=\"\",\"\",SUM(F2121:F2121))","v":""},{"$f":"IF(F2121=\"\",\"Neužpildytos visos objektų kainos\",\"\")","v":"Neužpildytos visos objektų kainos"}]
[null,null,null,null,"PVM suma"]
[null,null,null,null,"Suma su PVM",{"$f":"IF(ISBLANK(F2123), \"\", SUM(F2122:F2123))","v":""},"Dalies biudžetas su PVM: 29,4 Eur"]
[]
[]
[]
["175. DALIS","OLMESARTANAS/AMLODIPINAS 40/5 MG"]
[]
["Tiekėjo pasiūlymas:"]
["Nr.","Pavadinimas","Kiekis","Mato vienetas","Įkainis be PVM, Eur","Suma be PVM, Eur","Siūlomo produkto pavadinimas, dozė, kiekis pakuotėje, gamintojas. Būtina pažymėti, kuris vaistas yra  vardinis"]
["175.","Olmesartanas/amlodipinas 40/5 mg"]
["175.1.","Olmesartanas/amlodipinas 40/5 mg",28,"tab.",null,{"$f":"IF(ISBLANK(E2133),\"\", PRODUCT(C2133,E2133))","v":""}]
[null,null,null,null,"Suma be PVM",{"$f":"IF(F2133=\"\",\"\",SUM(F2133:F2133))","v":""},{"$f":"IF(F2133=\"\",\"Neužpildytos visos objektų kainos\",\"\")","v":"Neužpildytos visos objektų kainos"}]
[null,null,null,null,"PVM suma"]
[null,null,null,null,"Suma su PVM",{"$f":"IF(ISBLANK(F2135), \"\", SUM(F2134:F2135))","v":""},"Dalies biudžetas su PVM: 8,82 Eur"]
[]
[]
[]
["176. DALIS","OSELTAMIVIRAS 45 MG "]
[]
["Tiekėjo pasiūlymas:"]
["Nr.","Pavadinimas","Kiekis","Mato vienetas","Įkainis be PVM, Eur","Suma be PVM, Eur","Siūlomo produkto pavadinimas, dozė, kiekis pakuotėje, gamintojas. Būtina pažymėti, kuris vaistas yra  vardinis"]
["176.","Oseltamiviras 45 mg "]
["176.1.","Oseltamiviras 45 mg ",28,"kaps.",null,{"$f":"IF(ISBLANK(E2145),\"\", PRODUCT(C2145,E2145))","v":""}]
[null,null,null,null,"Suma be PVM",{"$f":"IF(F2145=\"\",\"\",SUM(F2145:F2145))","v":""},{"$f":"IF(F2145=\"\",\"Neužpildytos visos objektų kainos\",\"\")","v":"Neužpildytos visos objektų kainos"}]
[null,null,null,null,"PVM suma"]
[null,null,null,null,"Suma su PVM",{"$f":"IF(ISBLANK(F2147), \"\", SUM(F2146:F2147))","v":""},"Dalies biudžetas su PVM: 8,23 Eur"]
[]
[]
[]
["177. DALIS","PERHYDROLUM 35-38%"]
[]
["Tiekėjo pasiūlymas:"]
["Nr.","Pavadinimas","Kiekis","Mato vienetas","Įkainis be PVM, Eur","Suma be PVM, Eur","Siūlomo produkto pavadinimas, dozė, kiekis pakuotėje, gamintojas. Būtina pažymėti, kuris vaistas yra  vardinis"]
["177.","Perhydrolum 35-38%"]
["177.1.","Perhydrolum 35-38% ",2,"kg",null,{"$f":"IF(ISBLANK(E2157),\"\", PRODUCT(C2157,E2157))","v":""}]
[null,null,null,null,"Suma be PVM",{"$f":"IF(F2157=\"\",\"\",SUM(F2157:F2157))","v":""},{"$f":"IF(F2157=\"\",\"Neužpildytos visos objektų kainos\",\"\")","v":"Neužpildytos visos objektų kainos"}]
[null,null,null,null,"PVM suma"]
[null,null,null,null,"Suma su PVM",{"$f":"IF(ISBLANK(F2159), \"\", SUM(F2158:F2159))","v":""},"Dalies biudžetas su PVM: 21 Eur"]
[]
[]
[]
["178. DALIS","PERINDOPRILIO ARGININAS/AMLODIPINAS 3,5/2,5MG "]
[]
["Tiekėjo pasiūlymas:"]
["Nr.","Pavadinimas","Kiekis","Mato vienetas","Įkainis be PVM, Eur","Suma be PVM, Eur","Siūlomo produkto pavadinimas, dozė, kiekis pakuotėje, gamintojas. Būtina pažymėti, kuris vaistas yra  vardinis"]
["178.","Perindoprilio argininas/Amlodipinas 3,5/2,5mg "]
["178.1.","Perindoprilio argininas/Amlodipinas 3,5/2,5mg ",90,"tab.",null,{"$f":"IF(ISBLANK(E2169),\"\", PRODUCT(C2169,E2169))","v":""}]
[null,null,null,null,"Suma be PVM",{"$f":"IF(F2169=\"\",\"\",SUM(F2169:F2169))","v":""},{"$f":"IF(F2169=\"\",\"Neužpildytos visos objektų kainos\",\"\")","v":"Neužpildytos visos objektų kainos"}]
[null,null,null,null,"PVM suma"]
[null,null,null,null,"Suma su PVM",{"$f":"IF(ISBLANK(F2171), \"\", SUM(F2170:F2171))","v":""},"Dalies biudžetas su PVM: 23,63 Eur"]
[]
[]
[]
["179. DALIS","PIRIDOKSINO HIDROCHLORIDAS 50MG"]
[]
["Tiekėjo pasiūlymas:"]
["Nr.","Pavadinimas","Kiekis","Mato vienetas","Įkainis be PVM, Eur","Suma be PVM, Eur","Siūlomo produkto pavadinimas, dozė, kiekis pakuotėje, gamintojas. Būtina pažymėti, kuris vaistas yra  vardinis"]
["179.","Piridoksino hidrochloridas 50mg"]
["179.1.","Piridoksino hidrochloridas 50mg",200,"tab.",null,{"$f":"IF(ISBLANK(E2181),\"\", PRODUCT(C2181,E2181))","v":""}]
[null,null,null,null,"Suma be PVM",{"$f":"IF(F2181=\"\",\"\",SUM(F2181:F2181))","v":""},{"$f":"IF(F2181=\"\",\"Neužpildytos visos objektų kainos\",\"\")","v":"Neužpildytos visos objektų kainos"}]
[null,null,null,null,"PVM suma"]
[null,null,null,null,"Suma su PVM",{"$f":"IF(ISBLANK(F2183), \"\", SUM(F2182:F2183))","v":""},"Dalies biudžetas su PVM: 210 Eur"]
[]
[]
[]
["180. DALIS","PIRIDOSTIGMINAS 60MG"]
[]
["Tiekėjo pasiūlymas:"]
["Nr.","Pavadinimas","Kiekis","Mato vienetas","Įkainis be PVM, Eur","Suma be PVM, Eur","Siūlomo produkto pavadinimas, dozė, kiekis pakuotėje, gamintojas. Būtina pažymėti, kuris vaistas yra  vardinis"]
["180.","Piridostigminas 60mg"]
["180.1.","Piridostigminas 60mg",100,"tab.",null,{"$f":"IF(ISBLANK(E2193),\"\", PRODUCT(C2193,E2193))","v":""}]
[null,null,null,null,"Suma be PVM",{"$f":"IF(F2193=\"\",\"\",SUM(F2193:F2193))","v":""},{"$f":"IF(F2193=\"\",\"Neužpildytos visos objektų kainos\",\"\")","v":"Neužpildytos visos objektų kainos"}]
[null,null,null,null,"PVM suma"]
[null,null,null,null,"Suma su PVM",{"$f":"IF(ISBLANK(F2195), \"\", SUM(F2194:F2195))","v":""},"Dalies biudžetas su PVM: 63 Eur"]
[]
[]
[]
["181. DALIS","PIRIMETAMINAS 25MG"]
[]
["Tiekėjo pasiūlymas:"]
["Nr.","Pavadinimas","Kiekis","Mato vienetas","Įkainis be PVM, Eur","Suma be PVM, Eur","Siūlomo produkto pavadinimas, dozė, kiekis pakuotėje, gamintojas. Būtina pažymėti, kuris vaistas yra  vardinis"]
["181.","Pirimetaminas 25mg"]
["181.1.","Pirimetaminas 25mg",100,"tab.",null,{"$f":"IF(ISBLANK(E2205),\"\", PRODUCT(C2205,E2205))","v":""}]
[null,null,null,null,"Suma be PVM",{"$f":"IF(F2205=\"\",\"\",SUM(F2205:F2205))","v":""},{"$f":"IF(F2205=\"\",\"Neužpildytos visos objektų kainos\",\"\")","v":"Neužpildytos visos objektų kainos"}]
[null,null,null,null,"PVM suma"]
[null,null,null,null,"Suma su PVM",{"$f":"IF(ISBLANK(F2207), \"\", SUM(F2206:F2207))","v":""},"Dalies biudžetas su PVM: 157,5 Eur"]
[]
[]
[]
["182. DALIS","POLIDOKANOLIS 10 MG/ML 2ML"]
[]
["Tiekėjo pasiūlymas:"]
["Nr.","Pavadinimas","Kiekis","Mato vienetas","Įkainis be PVM, Eur","Suma be PVM, Eur","Siūlomo produkto pavadinimas, dozė, kiekis pakuotėje, gamintojas. Būtina pažymėti, kuris vaistas yra  vardinis"]
["182.","Polidokanolis 10 mg/ml 2ml"]
["182.1.","Polidokanolis 10 mg/ml 2ml",20,"amp.",null,{"$f":"IF(ISBLANK(E2217),\"\", PRODUCT(C2217,E2217))","v":""}]
[null,null,null,null,"Suma be PVM",{"$f":"IF(F2217=\"\",\"\",SUM(F2217:F2217))","v":""},{"$f":"IF(F2217=\"\",\"Neužpildytos visos objektų kainos\",\"\")","v":"Neužpildytos visos objektų kainos"}]
[null,null,null,null,"PVM suma"]
[null,null,null,null,"Suma su PVM",{"$f":"IF(ISBLANK(F2219), \"\", SUM(F2218:F2219))","v":""},"Dalies biudžetas su PVM: 92,4 Eur"]
[]
[]
[]
["183. DALIS","POLIDOKANOLIS 30 MG/ML 2ML"]
[]
["Tiekėjo pasiūlymas:"]
["Nr.","Pavadinimas","Kiekis","Mato vienetas","Įkainis be PVM, Eur","Suma be PVM, Eur","Siūlomo produkto pavadinimas, dozė, kiekis pakuotėje, gamintojas. Būtina pažymėti, kuris vaistas yra  vardinis"]
["183.","Polidokanolis 30 mg/ml 2ml"]
["183.1.","Polidokanolis 30 mg/ml 2ml",70,"amp.",null,{"$f":"IF(ISBLANK(E2229),\"\", PRODUCT(C2229,E2229))","v":""}]
[null,null,null,null,"Suma be PVM",{"$f":"IF(F2229=\"\",\"\",SUM(F2229:F2229))","v":""},{"$f":"IF(F2229=\"\",\"Neužpildytos visos objektų kainos\",\"\")","v":"Neužpildytos visos objektų kainos"}]
[null,null,null,null,"PVM suma"]
[null,null,null,null,"Suma su PVM",{"$f":"IF(ISBLANK(F2231), \"\", SUM(F2230:F2231))","v":""},"Dalies biudžetas su PVM: 577,5 Eur"]
[]
[]
[]
["184. DALIS","PROCAINE HYDROCHLORIDUM PULV."]
[]
["Tiekėjo pasiūlymas:"]
["Nr.","Pavadinimas","Kiekis","Mato vienetas","Įkainis be PVM, Eur","Suma be PVM, Eur","Siūlomo produkto pavadinimas, dozė, kiekis pakuotėje, gamintojas. Būtina pažymėti, kuris vaistas yra  vardinis"]
["184.","Procaine Hydrochloridum pulv. "]
["184.1.","Procaine Hydrochloridum pulv.",4,"kg",null,{"$f":"IF(ISBLANK(E2241),\"\", PRODUCT(C2241,E2241))","v":""}]
[null,null,null,null,"Suma be PVM",{"$f":"IF(F2241=\"\",\"\",SUM(F2241:F2241))","v":""},{"$f":"IF(F2241=\"\",\"Neužpildytos visos objektų kainos\",\"\")","v":"Neužpildytos visos objektų kainos"}]
[null,null,null,null,"PVM suma"]
[null,null,null,null,"Suma su PVM",{"$f":"IF(ISBLANK(F2243), \"\", SUM(F2242:F2243))","v":""},"Dalies biudžetas su PVM: 140 Eur"]
[]
[]
[]
["185. DALIS","PROTAMINO SULFATAS 7000 ANTIHEPARINO TV/ML"]
[]
["Tiekėjo pasiūlymas:"]
["Nr.","Pavadinimas","Kiekis","Mato vienetas","Įkainis be PVM, Eur","Suma be PVM, Eur","Siūlomo produkto pavadinimas, dozė, kiekis pakuotėje, gamintojas. Būtina pažymėti, kuris vaistas yra  vardinis"]
["185.","Protamino sulfatas 7000 antiheparino TV/ml"]
["185.1.","Protamino sulfatas 7000 antiheparino TV/ml",75,"amp.",null,{"$f":"IF(ISBLANK(E2253),\"\", PRODUCT(C2253,E2253))","v":""}]
[null,null,null,null,"Suma be PVM",{"$f":"IF(F2253=\"\",\"\",SUM(F2253:F2253))","v":""},{"$f":"IF(F2253=\"\",\"Neužpildytos visos objektų kainos\",\"\")","v":"Neužpildytos visos objektų kainos"}]
[null,null,null,null,"PVM suma"]
[null,null,null,null,"Suma su PVM",{"$f":"IF(ISBLANK(F2255), \"\", SUM(F2254:F2255))","v":""},"Dalies biudžetas su PVM: 787,5 Eur"]
[]
[]
[]
["186. DALIS","RESORCINUM"]
[]
["Tiekėjo pasiūlymas:"]
["Nr.","Pavadinimas","Kiekis","Mato vienetas","Įkainis be PVM, Eur","Suma be PVM, Eur","Siūlomo produkto pavadinimas, dozė, kiekis pakuotėje, gamintojas. Būtina pažymėti, kuris vaistas yra  vardinis"]
["186.","Resorcinum"]
["186.1.","Resorcinum",1,"kg",null,{"$f":"IF(ISBLANK(E2265),\"\", PRODUCT(C2265,E2265))","v":""}]
[null,null,null,null,"Suma be PVM",{"$f":"IF(F2265=\"\",\"\",SUM(F2265:F2265))","v":""},{"$f":"IF(F2265=\"\",\"Neužpildytos visos objektų kainos\",\"\")","v":"Neužpildytos visos objektų kainos"}]
[null,null,null,null,"PVM suma"]
[null,null,null,null,"Suma su PVM",{"$f":"IF(ISBLANK(F2267), \"\", SUM(F2266:F2267))","v":""},"Dalies biudžetas su PVM: 210 Eur"]
[]
[]
[]
["187. DALIS","RETINOLI ACETAS 3.44% 10ML ALIEJINIS TIRPALAS"]
[]
["Tiekėjo pasiūlymas:"]
["Nr.","Pavadinimas","Kiekis","Mato vienetas","Įkainis be PVM, Eur","Suma be PVM, Eur","Siūlomo produkto pavadinimas, dozė, kiekis pakuotėje, gamintojas. Būtina pažymėti, kuris vaistas yra  vardinis"]
["187.","Retinoli acetas 3.44% 10ml aliejinis tirpalas"]
["187.1.","Retinoli acetas 3.44% 10ml aliejinis tirpalas",5,"fl.",null,{"$f":"IF(ISBLANK(E2277),\"\", PRODUCT(C2277,E2277))","v":""}]
[null,null,null,null,"Suma be PVM",{"$f":"IF(F2277=\"\",\"\",SUM(F2277:F2277))","v":""},{"$f":"IF(F2277=\"\",\"Neužpildytos visos objektų kainos\",\"\")","v":"Neužpildytos visos objektų kainos"}]
[null,null,null,null,"PVM suma"]
[null,null,null,null,"Suma su PVM",{"$f":"IF(ISBLANK(F2279), \"\", SUM(F2278:F2279))","v":""},"Dalies biudžetas su PVM: 14,7 Eur"]
[]
[]
[]
["188. DALIS","RIFAMPICINO 600MG/DOZ MILTELIAI INJEKCINIAM TIRPALUI"]
[]
["Tiekėjo pasiūlymas:"]
["Nr.","Pavadinimas","Kiekis","Mato vienetas","Įkainis be PVM, Eur","Suma be PVM, Eur","Siūlomo produkto pavadinimas, dozė, kiekis pakuotėje, gamintojas. Būtina pažymėti, kuris vaistas yra  vardinis"]
["188.","Rifampicino 600mg/doz milteliai injekciniam tirpalui"]
["188.1.","Rifampicino 600mg/doz milteliai injekciniam tirpalui",150,"fl.",null,{"$f":"IF(ISBLANK(E2289),\"\", PRODUCT(C2289,E2289))","v":""}]
[null,null,null,null,"Suma be PVM",{"$f":"IF(F2289=\"\",\"\",SUM(F2289:F2289))","v":""},{"$f":"IF(F2289=\"\",\"Neužpildytos visos objektų kainos\",\"\")","v":"Neužpildytos visos objektų kainos"}]
[null,null,null,null,"PVM suma"]
[null,null,null,null,"Suma su PVM",{"$f":"IF(ISBLANK(F2291), \"\", SUM(F2290:F2291))","v":""},"Dalies biudžetas su PVM: 2835 Eur"]
[]
[]
[]
["189. DALIS","ROPIVAKAINAS 5MG/ML"]
[]
["Tiekėjo pasiūlymas:"]
["Nr.","Pavadinimas","Kiekis","Mato vienetas","Įkainis be PVM, Eur","Suma be PVM, Eur","Siūlomo produkto pavadinimas, dozė, kiekis pakuotėje, gamintojas. Būtina pažymėti, kuris vaistas yra  vardinis"]
["189.","Ropivakainas 5mg/ml"]
["189.1.","Ropivakainas 5mg/ml",500,"amp.",null,{"$f":"IF(ISBLANK(E2301),\"\", PRODUCT(C2301,E2301))","v":""}]
[null,null,null,null,"Suma be PVM",{"$f":"IF(F2301=\"\",\"\",SUM(F2301:F2301))","v":""},{"$f":"IF(F2301=\"\",\"Neužpildytos visos objektų kainos\",\"\")","v":"Neužpildytos visos objektų kainos"}]
[null,null,null,null,"PVM suma"]
[null,null,null,null,"Suma su PVM",{"$f":"IF(ISBLANK(F2303), \"\", SUM(F2302:F2303))","v":""},"Dalies biudžetas su PVM: 1155 Eur"]
[]
[]
[]
["190. DALIS","SERUMAS NUO EUROPINIŲ GYVAČIŲ ĮKANDIMO 500UI UŽPILDYTAS ŠVIRKŠTAS"]
[]
["Tiekėjo pasiūlymas:"]
["Nr.","Pavadinimas","Kiekis","Mato vienetas","Įkainis be PVM, Eur","Suma be PVM, Eur","Siūlomo produkto pavadinimas, dozė, kiekis pakuotėje, gamintojas. Būtina pažymėti, kuris vaistas yra  vardinis"]
["190.","Serumas nuo europinių gyvačių įkandimo 500UI užpildytas švirkštas"]
["190.1.","Serumas nuo europinių gyvačių įkandimo 500UI užpildytas švirkštas",6,"vnt.",null,{"$f":"IF(ISBLANK(E2313),\"\", PRODUCT(C2313,E2313))","v":""}]
[null,null,null,null,"Suma be PVM",{"$f":"IF(F2313=\"\",\"\",SUM(F2313:F2313))","v":""},{"$f":"IF(F2313=\"\",\"Neužpildytos visos objektų kainos\",\"\")","v":"Neužpildytos visos objektų kainos"}]
[null,null,null,null,"PVM suma"]
[null,null,null,null,"Suma su PVM",{"$f":"IF(ISBLANK(F2315), \"\", SUM(F2314:F2315))","v":""},"Dalies biudžetas su PVM: 2940 Eur"]
[]
[]
[]
["191. DALIS","SORBITOLIS + MANITOLIS 20,0G/10,0G/1000ML, FLAKONAI PO 3000ML ± 100ML"]
[]
["Tiekėjo pasiūlymas:"]
["Nr.","Pavadinimas","Kiekis","Mato vienetas","Įkainis be PVM, Eur","Suma be PVM, Eur","Siūlomo produkto pavadinimas, dozė, kiekis pakuotėje, gamintojas. Būtina pažymėti, kuris vaistas yra  vardinis"]
["191.","Sorbitolis + Manitolis 20,0g/10,0g/1000ml, flakonai po 3000ml ± 100ml"]
["191.1.","Sorbitolis + Manitolis 20,0g/10,0g/1000ml, flakonai po 3000ml ± 100ml",1000,"fl.",4.0999999999999996,{"$f":"IF(ISBLANK(E2325),\"\", PRODUCT(C2325,E2325))","v":4100},"Purisole plovimo tirpalas, 3000ml, Fresenius Kabi Deutchland GmbH"]
[null,null,null,null,"Suma be PVM",{"$f":"IF(F2325=\"\",\"\",SUM(F2325:F2325))","v":4100},{"$f":"IF(F2325=\"\",\"Neužpildytos visos objektų kainos\",\"\")","v":""}]
[null,null,null,null,"PVM suma",{"$f":"F2326*0.05","v":205}]
[null,null,null,null,"Suma su PVM",{"$f":"IF(ISBLANK(F2327), \"\", SUM(F2326:F2327))","v":4305},"Dalies biudžetas su PVM: 5250 Eur"]
[]
[]
[]
["192. DALIS","SPECIALIOS MEDICININĖS PASKIRTIES MAITINIMO MIŠINYS. HIPOALERGINIS PILNAVERTIS MAISTO MIŠINYS KŪDIKIAMS, PAGAMINTAS AMINORŪGŠČIŲ PAGRINDU. SAVO SUDĖTYJE TURINTIS ILGOS GRANDINĖS POLINESOČIŲJŲ RŪGŠČIŲ (LCPS) IR NUKLEOTIDŲ. MAISTO MIŠINYS SKIRTAS KŪDIKIAMS NUO GIMIMO. SUDĖTYJE NĖRA KARVĖS PIENO BALTYMŲ, TODĖL TINKA MITYBOS REGULIAVIMUI ESANT ALERGIJAI KARVĖS PIENUI, SUDĖTINIAM BALTYMŲ NETOLERAVIMUI"]
[]
["Tiekėjo pasiūlymas:"]
["Nr.","Pavadinimas","Kiekis","Mato vienetas","Įkainis be PVM, Eur","Suma be PVM, Eur","Siūlomo produkto pavadinimas, dozė, kiekis pakuotėje, gamintojas. Būtina pažymėti, kuris vaistas yra  vardinis"]
["192.","Specialios medicininės paskirties maitinimo mišinys. Hipoalerginis pilnavertis maisto mišinys kūdikiams, pagamintas aminorūgščių pagrindu. Savo sudėtyje turintis ilgos grandinės polinesočiųjų rūgščių (LCPs) ir nukleotidų. Maisto mišinys skirtas kūdikiams nuo gimimo. Sudėtyje nėra karvės pieno baltymų, todėl tinka mitybos reguliavimui esant alergijai karvės pienui, sudėtiniam baltymų netoleravimui"]
["192.1.","Specialios medicininės paskirties maitinimo mišinys. Hipoalerginis pilnavertis maisto mišinys kūdikiams, pagamintas aminorūgščių pagrindu. Savo sudėtyje turintis ilgos grandinės polinesočiųjų rūgščių (LCPs) ir nukleotidų. Maisto mišinys skirtas kūdikiams nuo gimimo. Sudėtyje nėra karvės pieno baltymų, todėl tinka mitybos reguliavimui esant alergijai karvės pienui, sudėtiniam baltymų netoleravimui",4000,"g",null,{"$f":"IF(ISBLANK(E2337),\"\", PRODUCT(C2337,E2337))","v":""}]
["192.1.1.","Pateikti dokumentus (gali būti prekės katalogas, aprašas) įrodymui, ar siūlomas pirkimo objektas atitinka techninėje specifikacijoje nurodytus reikalavimus. Prašome pažymėti prekės kataloge vietas įrodančias siūlomo parametro reikšmę."]
[null,null,null,null,"Suma be PVM",{"$f":"IF((COUNT(C2337:C2338)<>COUNT(F2337:F2338)),\"\", SUM(F2337:F2338))","v":""},{"$f":"IF((COUNT(C2337:C2338)<>COUNT(F2337:F2338)),\"Neužpildytos visų objektų kainos\", \"\")","v":"Neužpildytos visų objektų kainos"}]
[null,null,null,null,"PVM suma"]
[null,null,null,null,"Suma su PVM",{"$f":"IF(ISBLANK(F2340), \"\", SUM(F2339:F2340))","v":""},"Dalies biudžetas su PVM: 840 Eur"]
[]
[]
[]
["193. DALIS","SULFADIAZINAS 500MG"]
[]
["Tiekėjo pasiūlymas:"]
["Nr.","Pavadinimas","Kiekis","Mato vienetas","Įkainis be PVM, Eur","Suma be PVM, Eur","Siūlomo produkto pavadinimas, dozė, kiekis pakuotėje, gamintojas. Būtina pažymėti, kuris vaistas yra  vardinis"]
["193.","Sulfadiazinas 500mg"]
["193.1.","Sulfadiazinas 500mg",200,"tab.",null,{"$f":"IF(ISBLANK(E2350),\"\", PRODUCT(C2350,E2350))","v":""}]
[null,null,null,null,"Suma be PVM",{"$f":"IF(F2350=\"\",\"\",SUM(F2350:F2350))","v":""},{"$f":"IF(F2350=\"\",\"Neužpildytos visos objektų kainos\",\"\")","v":"Neužpildytos visos objektų kainos"}]
[null,null,null,null,"PVM suma"]
[null,null,null,null,"Suma su PVM",{"$f":"IF(ISBLANK(F2352), \"\", SUM(F2351:F2352))","v":""},"Dalies biudžetas su PVM: 210 Eur"]
[]
[]
[]
["194. DALIS","SULFUR PRAECIPITARUM"]
[]
["Tiekėjo pasiūlymas:"]
["Nr.","Pavadinimas","Kiekis","Mato vienetas","Įkainis be PVM, Eur","Suma be PVM, Eur","Siūlomo produkto pavadinimas, dozė, kiekis pakuotėje, gamintojas. Būtina pažymėti, kuris vaistas yra  vardinis"]
["194.","Sulfur praecipitarum"]
["194.1.","Sulfur praecipitarum",2,"kg",null,{"$f":"IF(ISBLANK(E2362),\"\", PRODUCT(C2362,E2362))","v":""}]
[null,null,null,null,"Suma be PVM",{"$f":"IF(F2362=\"\",\"\",SUM(F2362:F2362))","v":""},{"$f":"IF(F2362=\"\",\"Neužpildytos visos objektų kainos\",\"\")","v":"Neužpildytos visos objektų kainos"}]
[null,null,null,null,"PVM suma"]
[null,null,null,null,"Suma su PVM",{"$f":"IF(ISBLANK(F2364), \"\", SUM(F2363:F2364))","v":""},"Dalies biudžetas su PVM: 105 Eur"]
[]
[]
[]
["195. DALIS","TALCUM"]
[]
["Tiekėjo pasiūlymas:"]
["Nr.","Pavadinimas","Kiekis","Mato vienetas","Įkainis be PVM, Eur","Suma be PVM, Eur","Siūlomo produkto pavadinimas, dozė, kiekis pakuotėje, gamintojas. Būtina pažymėti, kuris vaistas yra  vardinis"]
["195.","Talcum"]
["195.1.","Talcum",1,"kg",null,{"$f":"IF(ISBLANK(E2374),\"\", PRODUCT(C2374,E2374))","v":""}]
[null,null,null,null,"Suma be PVM",{"$f":"IF(F2374=\"\",\"\",SUM(F2374:F2374))","v":""},{"$f":"IF(F2374=\"\",\"Neužpildytos visos objektų kainos\",\"\")","v":"Neužpildytos visos objektų kainos"}]
[null,null,null,null,"PVM suma"]
[null,null,null,null,"Suma su PVM",{"$f":"IF(ISBLANK(F2376), \"\", SUM(F2375:F2376))","v":""},"Dalies biudžetas su PVM: 10,5 Eur"]
[]
[]
[]
["196. DALIS","TETAGAM P 250 VV/ML"]
[]
["Tiekėjo pasiūlymas:"]
["Nr.","Pavadinimas","Kiekis","Mato vienetas","Įkainis be PVM, Eur","Suma be PVM, Eur","Siūlomo produkto pavadinimas, dozė, kiekis pakuotėje, gamintojas. Būtina pažymėti, kuris vaistas yra  vardinis"]
["196.","Tetagam P 250 VV/ml"]
["196.1.","Tetagam P 250 VV/ml",24,"fl.",null,{"$f":"IF(ISBLANK(E2386),\"\", PRODUCT(C2386,E2386))","v":""}]
[null,null,null,null,"Suma be PVM",{"$f":"IF(F2386=\"\",\"\",SUM(F2386:F2386))","v":""},{"$f":"IF(F2386=\"\",\"Neužpildytos visos objektų kainos\",\"\")","v":"Neužpildytos visos objektų kainos"}]
[null,null,null,null,"PVM suma"]
[null,null,null,null,"Suma su PVM",{"$f":"IF(ISBLANK(F2388), \"\", SUM(F2387:F2388))","v":""},"Dalies biudžetas su PVM: 945 Eur"]
[]
[]
[]
["197. DALIS","TETRACAINUM"]
[]
["Tiekėjo pasiūlymas:"]
["Nr.","Pavadinimas","Kiekis","Mato vienetas","Įkainis be PVM, Eur","Suma be PVM, Eur","Siūlomo produkto pavadinimas, dozė, kiekis pakuotėje, gamintojas. Būtina pažymėti, kuris vaistas yra  vardinis"]
["197.","Tetracainum"]
["197.1.","Tetracainum",50,"g",null,{"$f":"IF(ISBLANK(E2398),\"\", PRODUCT(C2398,E2398))","v":""}]
[null,null,null,null,"Suma be PVM",{"$f":"IF(F2398=\"\",\"\",SUM(F2398:F2398))","v":""},{"$f":"IF(F2398=\"\",\"Neužpildytos visos objektų kainos\",\"\")","v":"Neužpildytos visos objektų kainos"}]
[null,null,null,null,"PVM suma"]
[null,null,null,null,"Suma su PVM",{"$f":"IF(ISBLANK(F2400), \"\", SUM(F2399:F2400))","v":""},"Dalies biudžetas su PVM: 210 Eur"]
[]
[]
[]
["198. DALIS","TIOPENTALIO NATRIO DRUSKA 1000MG"]
[]
["Tiekėjo pasiūlymas:"]
["Nr.","Pavadinimas","Kiekis","Mato vienetas","Įkainis be PVM, Eur","Suma be PVM, Eur","Siūlomo produkto pavadinimas, dozė, kiekis pakuotėje, gamintojas. Būtina pažymėti, kuris vaistas yra  vardinis"]
["198.","Tiopentalio natrio druska 1000mg"]
["198.1.","Tiopentalio natrio druska 1000mg",325,"fl.",null,{"$f":"IF(ISBLANK(E2410),\"\", PRODUCT(C2410,E2410))","v":""}]
[null,null,null,null,"Suma be PVM",{"$f":"IF(F2410=\"\",\"\",SUM(F2410:F2410))","v":""},{"$f":"IF(F2410=\"\",\"Neužpildytos visos objektų kainos\",\"\")","v":"Neužpildytos visos objektų kainos"}]
[null,null,null,null,"PVM suma"]
[null,null,null,null,"Suma su PVM",{"$f":"IF(ISBLANK(F2412), \"\", SUM(F2411:F2412))","v":""},"Dalies biudžetas su PVM: 3412,5 Eur"]
[]
[]
[]
["199. DALIS","TIRPALAS (INFUZIJOMS) 1000ML: 40G ŽELATINOS, + 5,55G NATRIO CHLORIDO, + 3,27G NATRIO ACETATO TRIHIDRATO, + 0,3G KALIO CHLORIDO, + 0,15G KALCIO CHLORIDO DIHIDRATO, + 0,2G MAGNIO CHLORIDO HEKSAHIDRATO. ELEKTROLITŲ KONCENTRACIJA: NA 151MMOL/L, CHLORIDAS 103 MMOL/L, KALIS 4 MMOL/L, KALCIS 1MMOL/L, MAGNIS 1 MMOL/L, ACETATAS 24 MMOL/L. 500 ML FLAKONAI"]
[]
["Tiekėjo pasiūlymas:"]
["Nr.","Pavadinimas","Kiekis","Mato vienetas","Įkainis be PVM, Eur","Suma be PVM, Eur","Siūlomo produkto pavadinimas, dozė, kiekis pakuotėje, gamintojas. Būtina pažymėti, kuris vaistas yra  vardinis"]
["199.","Tirpalas (infuzijoms) 1000ml: 40g Želatinos, + 5,55g Natrio chlorido, + 3,27g natrio acetato trihidrato, + 0,3g Kalio chlorido, + 0,15g Kalcio chlorido dihidrato, + 0,2g magnio chlorido heksahidrato. Elektrolitų koncentracija: Na 151mmol/l, Chloridas 103 mmol/l, Kalis 4 mmol/l, Kalcis 1mmol/l, Magnis 1 mmol/l, Acetatas 24 mmol/l. 500 ml flakonai"]
["199.1.","Tirpalas (infuzijoms) 1000ml: 40g Želatinos, + 5,55g Natrio chlorido, + 3,27g natrio acetato trihidrato, + 0,3g Kalio chlorido, + 0,15g Kalcio chlorido dihidrato, + 0,2g magnio chlorido heksahidrato. Elektrolitų koncentracija: Na 151mmol/l, Chloridas 103 mmol/l, Kalis 4 mmol/l, Kalcis 1mmol/l, Magnis 1 mmol/l, Acetatas 24 mmol/l. 500 ml flakonai",300,"fl.",null,{"$f":"IF(ISBLANK(E2422),\"\", PRODUCT(C2422,E2422))","v":""}]
[null,null,null,null,"Suma be PVM",{"$f":"IF(F2422=\"\",\"\",SUM(F2422:F2422))","v":""},{"$f":"IF(F2422=\"\",\"Neužpildytos visos objektų kainos\",\"\")","v":"Neužpildytos visos objektų kainos"}]
[null,null,null,null,"PVM suma"]
[null,null,null,null,"Suma su PVM",{"$f":"IF(ISBLANK(F2424), \"\", SUM(F2423:F2424))","v":""},"Dalies biudžetas su PVM: 2520 Eur"]
[]
[]
[]
["200. DALIS","TIRPALAS NEIGIAMAI ALERGENŲ KONTROLEI 2,5 ML ±0,5ML"]
[]
["Tiekėjo pasiūlymas:"]
["Nr.","Pavadinimas","Kiekis","Mato vienetas","Įkainis be PVM, Eur","Suma be PVM, Eur","Siūlomo produkto pavadinimas, dozė, kiekis pakuotėje, gamintojas. Būtina pažymėti, kuris vaistas yra  vardinis"]
["200.","Tirpalas neigiamai alergenų kontrolei 2,5 ml ±0,5ml"]
["200.1.","Tirpalas neigiamai alergenų kontrolei 2,5 ml ±0,5ml",2,"fl.",null,{"$f":"IF(ISBLANK(E2434),\"\", PRODUCT(C2434,E2434))","v":""}]
[null,null,null,null,"Suma be PVM",{"$f":"IF(F2434=\"\",\"\",SUM(F2434:F2434))","v":""},{"$f":"IF(F2434=\"\",\"Neužpildytos visos objektų kainos\",\"\")","v":"Neužpildytos visos objektų kainos"}]
[null,null,null,null,"PVM suma"]
[null,null,null,null,"Suma su PVM",{"$f":"IF(ISBLANK(F2436), \"\", SUM(F2435:F2436))","v":""},"Dalies biudžetas su PVM: 79,8 Eur"]
[]
[]
[]
["201. DALIS","TIRPALAS ODOS DŪRIMO TESTUI   3ML ± 0,5ML - POMIDORAS"]
[]
["Tiekėjo pasiūlymas:"]
["Nr.","Pavadinimas","Kiekis","Mato vienetas","Įkainis be PVM, Eur","Suma be PVM, Eur","Siūlomo produkto pavadinimas, dozė, kiekis pakuotėje, gamintojas. Būtina pažymėti, kuris vaistas yra  vardinis"]
["201.","Tirpalas odos dūrimo testui   3ml ± 0,5ml - Pomidoras"]
["201.1.","Tirpalas odos dūrimo testui   3ml ± 0,5ml - Pomidoras",1,"fl.",null,{"$f":"IF(ISBLANK(E2446),\"\", PRODUCT(C2446,E2446))","v":""}]
[null,null,null,null,"Suma be PVM",{"$f":"IF(F2446=\"\",\"\",SUM(F2446:F2446))","v":""},{"$f":"IF(F2446=\"\",\"Neužpildytos visos objektų kainos\",\"\")","v":"Neužpildytos visos objektų kainos"}]
[null,null,null,null,"PVM suma"]
[null,null,null,null,"Suma su PVM",{"$f":"IF(ISBLANK(F2448), \"\", SUM(F2447:F2448))","v":""},"Dalies biudžetas su PVM: 39,9 Eur"]
[]
[]
[]
["202. DALIS","TIRPALAS ODOS DŪRIMO TESTUI  3ML ±  0,5ML – FENOLINIS GLICEROLIS"]
[]
["Tiekėjo pasiūlymas:"]
["Nr.","Pavadinimas","Kiekis","Mato vienetas","Įkainis be PVM, Eur","Suma be PVM, Eur","Siūlomo produkto pavadinimas, dozė, kiekis pakuotėje, gamintojas. Būtina pažymėti, kuris vaistas yra  vardinis"]
["202.","Tirpalas odos dūrimo testui  3ml ±  0,5ml – Fenolinis glicerolis"]
["202.1.","Tirpalas odos dūrimo testui  3ml ±  0,5ml – Fenolinis glicerolis",1,"fl.",null,{"$f":"IF(ISBLANK(E2458),\"\", PRODUCT(C2458,E2458))","v":""}]
[null,null,null,null,"Suma be PVM",{"$f":"IF(F2458=\"\",\"\",SUM(F2458:F2458))","v":""},{"$f":"IF(F2458=\"\",\"Neužpildytos visos objektų kainos\",\"\")","v":"Neužpildytos visos objektų kainos"}]
[null,null,null,null,"PVM suma"]
[null,null,null,null,"Suma su PVM",{"$f":"IF(ISBLANK(F2460), \"\", SUM(F2459:F2460))","v":""},"Dalies biudžetas su PVM: 39,9 Eur"]
[]
[]
[]
["203. DALIS","TIRPALAS ODOS DŪRIMO TESTUI  3ML ± 0,5ML - 7-NIŲ GRŪDŲ MIŠINYS"]
[]
["Tiekėjo pasiūlymas:"]
["Nr.","Pavadinimas","Kiekis","Mato vienetas","Įkainis be PVM, Eur","Suma be PVM, Eur","Siūlomo produkto pavadinimas, dozė, kiekis pakuotėje, gamintojas. Būtina pažymėti, kuris vaistas yra  vardinis"]
["203.","Tirpalas odos dūrimo testui  3ml ± 0,5ml - 7-nių grūdų mišinys"]
["203.1.","Tirpalas odos dūrimo testui 3ml ± 0,5ml - 7-nių grūdų mišinys",1,"fl.",null,{"$f":"IF(ISBLANK(E2470),\"\", PRODUCT(C2470,E2470))","v":""}]
[null,null,null,null,"Suma be PVM",{"$f":"IF(F2470=\"\",\"\",SUM(F2470:F2470))","v":""},{"$f":"IF(F2470=\"\",\"Neužpildytos visos objektų kainos\",\"\")","v":"Neužpildytos visos objektų kainos"}]
[null,null,null,null,"PVM suma"]
[null,null,null,null,"Suma su PVM",{"$f":"IF(ISBLANK(F2472), \"\", SUM(F2471:F2472))","v":""},"Dalies biudžetas su PVM: 39,9 Eur"]
[]
[]
[]
["204. DALIS","TIRPALAS ODOS DŪRIMO TESTUI  3ML ± 0,5ML - ALFA AMILAZĖ"]
[]
["Tiekėjo pasiūlymas:"]
["Nr.","Pavadinimas","Kiekis","Mato vienetas","Įkainis be PVM, Eur","Suma be PVM, Eur","Siūlomo produkto pavadinimas, dozė, kiekis pakuotėje, gamintojas. Būtina pažymėti, kuris vaistas yra  vardinis"]
["204.","Tirpalas odos dūrimo testui  3ml ± 0,5ml - Alfa amilazė"]
["204.1.","Tirpalas odos dūrimo testui  3ml ± 0,5ml - Alfa amilazė",1,"fl.",null,{"$f":"IF(ISBLANK(E2482),\"\", PRODUCT(C2482,E2482))","v":""}]
[null,null,null,null,"Suma be PVM",{"$f":"IF(F2482=\"\",\"\",SUM(F2482:F2482))","v":""},{"$f":"IF(F2482=\"\",\"Neužpildytos visos objektų kainos\",\"\")","v":"Neužpildytos visos objektų kainos"}]
[null,null,null,null,"PVM suma"]
[null,null,null,null,"Suma su PVM",{"$f":"IF(ISBLANK(F2484), \"\", SUM(F2483:F2484))","v":""},"Dalies biudžetas su PVM: 39,9 Eur"]
[]
[]
[]
["205. DALIS","TIRPALAS ODOS DŪRIMO TESTUI  3ML ± 0,5ML - CLADOSPORIUM"]
[]
["Tiekėjo pasiūlymas:"]
["Nr.","Pavadinimas","Kiekis","Mato vienetas","Įkainis be PVM, Eur","Suma be PVM, Eur","Siūlomo produkto pavadinimas, dozė, kiekis pakuotėje, gamintojas. Būtina pažymėti, kuris vaistas yra  vardinis"]
["205.","Tirpalas odos dūrimo testui  3ml ± 0,5ml - Cladosporium"]
["205.1.","Tirpalas odos dūrimo testui  3ml ± 0,5ml - Cladosporium",2,"fl.",null,{"$f":"IF(ISBLANK(E2494),\"\", PRODUCT(C2494,E2494))","v":""}]
[null,null,null,null,"Suma be PVM",{"$f":"IF(F2494=\"\",\"\",SUM(F2494:F2494))","v":""},{"$f":"IF(F2494=\"\",\"Neužpildytos visos objektų kainos\",\"\")","v":"Neužpildytos visos objektų kainos"}]
[null,null,null,null,"PVM suma"]
[null,null,null,null,"Suma su PVM",{"$f":"IF(ISBLANK(F2496), \"\", SUM(F2495:F2496))","v":""},"Dalies biudžetas su PVM: 79,8 Eur"]
[]
[]
[]
["206. DALIS","TIRPALAS ODOS DŪRIMO TESTUI 3ML ± 0,5ML - 4 ĮVAIRŪS JAVAI "]
[]
["Tiekėjo pasiūlymas:"]
["Nr.","Pavadinimas","Kiekis","Mato vienetas","Įkainis be PVM, Eur","Suma be PVM, Eur","Siūlomo produkto pavadinimas, dozė, kiekis pakuotėje, gamintojas. Būtina pažymėti, kuris vaistas yra  vardinis"]
["206.","Tirpalas odos dūrimo testui 3ml ± 0,5ml - 4 Įvairūs javai "]
["206.1.","Tirpalas odos dūrimo testui 3ml ± 0,5ml - 4 Įvairūs javai ",2,"fl.",null,{"$f":"IF(ISBLANK(E2506),\"\", PRODUCT(C2506,E2506))","v":""}]
[null,null,null,null,"Suma be PVM",{"$f":"IF(F2506=\"\",\"\",SUM(F2506:F2506))","v":""},{"$f":"IF(F2506=\"\",\"Neužpildytos visos objektų kainos\",\"\")","v":"Neužpildytos visos objektų kainos"}]
[null,null,null,null,"PVM suma"]
[null,null,null,null,"Suma su PVM",{"$f":"IF(ISBLANK(F2508), \"\", SUM(F2507:F2508))","v":""},"Dalies biudžetas su PVM: 79,8 Eur"]
[]
[]
[]
["207. DALIS","TIRPALAS ODOS DŪRIMO TESTUI  3ML ± 0,5ML - JAUTIENA"]
[]
["Tiekėjo pasiūlymas:"]
["Nr.","Pavadinimas","Kiekis","Mato vienetas","Įkainis be PVM, Eur","Suma be PVM, Eur","Siūlomo produkto pavadinimas, dozė, kiekis pakuotėje, gamintojas. Būtina pažymėti, kuris vaistas yra  vardinis"]
["207.","Tirpalas odos dūrimo testui  3ml ± 0,5ml - Jautiena"]
["207.1.","Tirpalas odos dūrimo testui  3ml ± 0,5ml - Jautiena",1,"fl.",null,{"$f":"IF(ISBLANK(E2518),\"\", PRODUCT(C2518,E2518))","v":""}]
[null,null,null,null,"Suma be PVM",{"$f":"IF(F2518=\"\",\"\",SUM(F2518:F2518))","v":""},{"$f":"IF(F2518=\"\",\"Neužpildytos visos objektų kainos\",\"\")","v":"Neužpildytos visos objektų kainos"}]
[null,null,null,null,"PVM suma"]
[null,null,null,null,"Suma su PVM",{"$f":"IF(ISBLANK(F2520), \"\", SUM(F2519:F2520))","v":""},"Dalies biudžetas su PVM: 39,9 Eur"]
[]
[]
[]
["208. DALIS","TIRPALAS ODOS DŪRIMO TESTUI  3ML ± 0,5ML - KARIS"]
[]
["Tiekėjo pasiūlymas:"]
["Nr.","Pavadinimas","Kiekis","Mato vienetas","Įkainis be PVM, Eur","Suma be PVM, Eur","Siūlomo produkto pavadinimas, dozė, kiekis pakuotėje, gamintojas. Būtina pažymėti, kuris vaistas yra  vardinis"]
["208.","Tirpalas odos dūrimo testui  3ml ± 0,5ml - Karis"]
["208.1.","Tirpalas odos dūrimo testui  3ml ± 0,5ml - Karis",1,"fl.",null,{"$f":"IF(ISBLANK(E2530),\"\", PRODUCT(C2530,E2530))","v":""}]
[null,null,null,null,"Suma be PVM",{"$f":"IF(F2530=\"\",\"\",SUM(F2530:F2530))","v":""},{"$f":"IF(F2530=\"\",\"Neužpildytos visos objektų kainos\",\"\")","v":"Neužpildytos visos objektų kainos"}]
[null,null,null,null,"PVM suma"]
[null,null,null,null,"Suma su PVM",{"$f":"IF(ISBLANK(F2532), \"\", SUM(F2531:F2532))","v":""},"Dalies biudžetas su PVM: 39,9 Eur"]
[]
[]
[]
["209. DALIS","TIRPALAS ODOS DŪRIMO TESTUI  3ML ± 0,5ML - KIAUŠINIS VISAS"]
[]
["Tiekėjo pasiūlymas:"]
["Nr.","Pavadinimas","Kiekis","Mato vienetas","Įkainis be PVM, Eur","Suma be PVM, Eur","Siūlomo produkto pavadinimas, dozė, kiekis pakuotėje, gamintojas. Būtina pažymėti, kuris vaistas yra  vardinis"]
["209.","Tirpalas odos dūrimo testui  3ml ± 0,5ml - Kiaušinis visas"]
["209.1.","Tirpalas odos dūrimo testui  3ml ± 0,5ml - Kiaušinis visas",2,"fl.",null,{"$f":"IF(ISBLANK(E2542),\"\", PRODUCT(C2542,E2542))","v":""}]
[null,null,null,null,"Suma be PVM",{"$f":"IF(F2542=\"\",\"\",SUM(F2542:F2542))","v":""},{"$f":"IF(F2542=\"\",\"Neužpildytos visos objektų kainos\",\"\")","v":"Neužpildytos visos objektų kainos"}]
[null,null,null,null,"PVM suma"]
[null,null,null,null,"Suma su PVM",{"$f":"IF(ISBLANK(F2544), \"\", SUM(F2543:F2544))","v":""},"Dalies biudžetas su PVM: 79,8 Eur"]
[]
[]
[]
["210. DALIS","TIRPALAS ODOS DŪRIMO TESTUI  3ML ± 0,5ML - KVIEČIŲ MILTAI"]
[]
["Tiekėjo pasiūlymas:"]
["Nr.","Pavadinimas","Kiekis","Mato vienetas","Įkainis be PVM, Eur","Suma be PVM, Eur","Siūlomo produkto pavadinimas, dozė, kiekis pakuotėje, gamintojas. Būtina pažymėti, kuris vaistas yra  vardinis"]
["210.","Tirpalas odos dūrimo testui  3ml ± 0,5ml - Kviečių miltai"]
["210.1.","Tirpalas odos dūrimo testui  3ml ± 0,5ml - Kviečių miltai",2,"fl.",null,{"$f":"IF(ISBLANK(E2554),\"\", PRODUCT(C2554,E2554))","v":""}]
[null,null,null,null,"Suma be PVM",{"$f":"IF(F2554=\"\",\"\",SUM(F2554:F2554))","v":""},{"$f":"IF(F2554=\"\",\"Neužpildytos visos objektų kainos\",\"\")","v":"Neužpildytos visos objektų kainos"}]
[null,null,null,null,"PVM suma"]
[null,null,null,null,"Suma su PVM",{"$f":"IF(ISBLANK(F2556), \"\", SUM(F2555:F2556))","v":""},"Dalies biudžetas su PVM: 79,8 Eur"]
[]
[]
[]
["211. DALIS","TIRPALAS ODOS DŪRIMO TESTUI  3ML ± 0,5ML - KVIEČIŲ ŽIEDADULKĖS"]
[]
["Tiekėjo pasiūlymas:"]
["Nr.","Pavadinimas","Kiekis","Mato vienetas","Įkainis be PVM, Eur","Suma be PVM, Eur","Siūlomo produkto pavadinimas, dozė, kiekis pakuotėje, gamintojas. Būtina pažymėti, kuris vaistas yra  vardinis"]
["211.","Tirpalas odos dūrimo testui  3ml ± 0,5ml - Kviečių žiedadulkės"]
["211.1.","Tirpalas odos dūrimo testui  3ml ± 0,5ml - Kviečių žiedadulkės",1,"fl.",null,{"$f":"IF(ISBLANK(E2566),\"\", PRODUCT(C2566,E2566))","v":""}]
[null,null,null,null,"Suma be PVM",{"$f":"IF(F2566=\"\",\"\",SUM(F2566:F2566))","v":""},{"$f":"IF(F2566=\"\",\"Neužpildytos visos objektų kainos\",\"\")","v":"Neužpildytos visos objektų kainos"}]
[null,null,null,null,"PVM suma"]
[null,null,null,null,"Suma su PVM",{"$f":"IF(ISBLANK(F2568), \"\", SUM(F2567:F2568))","v":""},"Dalies biudžetas su PVM: 39,9 Eur"]
[]
[]
[]
["212. DALIS","TIRPALAS ODOS DŪRIMO TESTUI  3ML ± 0,5ML - LATEKSAS"]
[]
["Tiekėjo pasiūlymas:"]
["Nr.","Pavadinimas","Kiekis","Mato vienetas","Įkainis be PVM, Eur","Suma be PVM, Eur","Siūlomo produkto pavadinimas, dozė, kiekis pakuotėje, gamintojas. Būtina pažymėti, kuris vaistas yra  vardinis"]
["212.","Tirpalas odos dūrimo testui  3ml ± 0,5ml - Lateksas"]
["212.1.","Tirpalas odos dūrimo testui  3ml ± 0,5ml - Lateksas",1,"fl.",null,{"$f":"IF(ISBLANK(E2578),\"\", PRODUCT(C2578,E2578))","v":""}]
[null,null,null,null,"Suma be PVM",{"$f":"IF(F2578=\"\",\"\",SUM(F2578:F2578))","v":""},{"$f":"IF(F2578=\"\",\"Neužpildytos visos objektų kainos\",\"\")","v":"Neužpildytos visos objektų kainos"}]
[null,null,null,null,"PVM suma"]
[null,null,null,null,"Suma su PVM",{"$f":"IF(ISBLANK(F2580), \"\", SUM(F2579:F2580))","v":""},"Dalies biudžetas su PVM: 39,9 Eur"]
[]
[]
[]
["213. DALIS","TIRPALAS ODOS DŪRIMO TESTUI  3ML ± 0,5ML - LAZDYNO RIEŠUTAI"]
[]
["Tiekėjo pasiūlymas:"]
["Nr.","Pavadinimas","Kiekis","Mato vienetas","Įkainis be PVM, Eur","Suma be PVM, Eur","Siūlomo produkto pavadinimas, dozė, kiekis pakuotėje, gamintojas. Būtina pažymėti, kuris vaistas yra  vardinis"]
["213.","Tirpalas odos dūrimo testui  3ml ± 0,5ml - Lazdyno riešutai"]
["213.1.","Tirpalas odos dūrimo testui  3ml ± 0,5ml - Lazdyno riešutai",2,"fl.",null,{"$f":"IF(ISBLANK(E2590),\"\", PRODUCT(C2590,E2590))","v":""}]
[null,null,null,null,"Suma be PVM",{"$f":"IF(F2590=\"\",\"\",SUM(F2590:F2590))","v":""},{"$f":"IF(F2590=\"\",\"Neužpildytos visos objektų kainos\",\"\")","v":"Neužpildytos visos objektų kainos"}]
[null,null,null,null,"PVM suma"]
[null,null,null,null,"Suma su PVM",{"$f":"IF(ISBLANK(F2592), \"\", SUM(F2591:F2592))","v":""},"Dalies biudžetas su PVM: 79,8 Eur"]
[]
[]
[]
["214. DALIS","TIRPALAS ODOS DŪRIMO TESTUI  3ML ± 0,5ML - MENKĖ"]
[]
["Tiekėjo pasiūlymas:"]
["Nr.","Pavadinimas","Kiekis","Mato vienetas","Įkainis be PVM, Eur","Suma be PVM, Eur","Siūlomo produkto pavadinimas, dozė, kiekis pakuotėje, gamintojas. Būtina pažymėti, kuris vaistas yra  vardinis"]
["214.","Tirpalas odos dūrimo testui  3ml ± 0,5ml - Menkė"]
["214.1.","Tirpalas odos dūrimo testui  3ml ± 0,5ml - Menkė",2,"fl.",null,{"$f":"IF(ISBLANK(E2602),\"\", PRODUCT(C2602,E2602))","v":""}]
[null,null,null,null,"Suma be PVM",{"$f":"IF(F2602=\"\",\"\",SUM(F2602:F2602))","v":""},{"$f":"IF(F2602=\"\",\"Neužpildytos visos objektų kainos\",\"\")","v":"Neužpildytos visos objektų kainos"}]
[null,null,null,null,"PVM suma"]
[null,null,null,null,"Suma su PVM",{"$f":"IF(ISBLANK(F2604), \"\", SUM(F2603:F2604))","v":""},"Dalies biudžetas su PVM: 79,8 Eur"]
[]
[]
[]
["215. DALIS","TIRPALAS ODOS DŪRIMO TESTUI  3ML ± 0,5ML - MORKA"]
[]
["Tiekėjo pasiūlymas:"]
["Nr.","Pavadinimas","Kiekis","Mato vienetas","Įkainis be PVM, Eur","Suma be PVM, Eur","Siūlomo produkto pavadinimas, dozė, kiekis pakuotėje, gamintojas. Būtina pažymėti, kuris vaistas yra  vardinis"]
["215.","Tirpalas odos dūrimo testui  3ml ± 0,5ml - Morka"]
["215.1.","Tirpalas odos dūrimo testui  3ml ± 0,5ml - Morka",1,"fl.",null,{"$f":"IF(ISBLANK(E2614),\"\", PRODUCT(C2614,E2614))","v":""}]
[null,null,null,null,"Suma be PVM",{"$f":"IF(F2614=\"\",\"\",SUM(F2614:F2614))","v":""},{"$f":"IF(F2614=\"\",\"Neužpildytos visos objektų kainos\",\"\")","v":"Neužpildytos visos objektų kainos"}]
[null,null,null,null,"PVM suma"]
[null,null,null,null,"Suma su PVM",{"$f":"IF(ISBLANK(F2616), \"\", SUM(F2615:F2616))","v":""},"Dalies biudžetas su PVM: 39,9 Eur"]
[]
[]
[]
["216. DALIS","TIRPALAS ODOS DŪRIMO TESTUI  3ML ± 0,5ML - MOTIEJUKAS"]
[]
["Tiekėjo pasiūlymas:"]
["Nr.","Pavadinimas","Kiekis","Mato vienetas","Įkainis be PVM, Eur","Suma be PVM, Eur","Siūlomo produkto pavadinimas, dozė, kiekis pakuotėje, gamintojas. Būtina pažymėti, kuris vaistas yra  vardinis"]
["216.","Tirpalas odos dūrimo testui  3ml ± 0,5ml - Motiejukas"]
["216.1.","Tirpalas odos dūrimo testui  3ml ± 0,5ml - Motiejukas",2,"fl.",null,{"$f":"IF(ISBLANK(E2626),\"\", PRODUCT(C2626,E2626))","v":""}]
[null,null,null,null,"Suma be PVM",{"$f":"IF(F2626=\"\",\"\",SUM(F2626:F2626))","v":""},{"$f":"IF(F2626=\"\",\"Neužpildytos visos objektų kainos\",\"\")","v":"Neužpildytos visos objektų kainos"}]
[null,null,null,null,"PVM suma"]
[null,null,null,null,"Suma su PVM",{"$f":"IF(ISBLANK(F2628), \"\", SUM(F2627:F2628))","v":""},"Dalies biudžetas su PVM: 79,8 Eur"]
[]
[]
[]
["217. DALIS","TIRPALAS ODOS DŪRIMO TESTUI  3ML ±  0,5ML – PAPRASTASIS KIETIS"]
[]
["Tiekėjo pasiūlymas:"]
["Nr.","Pavadinimas","Kiekis","Mato vienetas","Įkainis be PVM, Eur","Suma be PVM, Eur","Siūlomo produkto pavadinimas, dozė, kiekis pakuotėje, gamintojas. Būtina pažymėti, kuris vaistas yra  vardinis"]
["217.","Tirpalas odos dūrimo testui  3ml ±  0,5ml – Paprastasis kietis"]
["217.1.","Tirpalas odos dūrimo testui  3ml ±  0,5ml – Paprastasis kietis",2,"fl.",null,{"$f":"IF(ISBLANK(E2638),\"\", PRODUCT(C2638,E2638))","v":""}]
[null,null,null,null,"Suma be PVM",{"$f":"IF(F2638=\"\",\"\",SUM(F2638:F2638))","v":""},{"$f":"IF(F2638=\"\",\"Neužpildytos visos objektų kainos\",\"\")","v":"Neužpildytos visos objektų kainos"}]
[null,null,null,null,"PVM suma"]
[null,null,null,null,"Suma su PVM",{"$f":"IF(ISBLANK(F2640), \"\", SUM(F2639:F2640))","v":""},"Dalies biudžetas su PVM: 79,8 Eur"]
[]
[]
[]
["218. DALIS","TIRPALAS ODOS DŪRIMO TESTUI  3ML ± 0,5ML - PAUKŠTIENA"]
[]
["Tiekėjo pasiūlymas:"]
["Nr.","Pavadinimas","Kiekis","Mato vienetas","Įkainis be PVM, Eur","Suma be PVM, Eur","Siūlomo produkto pavadinimas, dozė, kiekis pakuotėje, gamintojas. Būtina pažymėti, kuris vaistas yra  vardinis"]
["218.","Tirpalas odos dūrimo testui  3ml ± 0,5ml - Paukštiena"]
["218.1.","Tirpalas odos dūrimo testui  3ml ± 0,5ml - Paukštiena",2,"fl.",null,{"$f":"IF(ISBLANK(E2650),\"\", PRODUCT(C2650,E2650))","v":""}]
[null,null,null,null,"Suma be PVM",{"$f":"IF(F2650=\"\",\"\",SUM(F2650:F2650))","v":""},{"$f":"IF(F2650=\"\",\"Neužpildytos visos objektų kainos\",\"\")","v":"Neužpildytos visos objektų kainos"}]
[null,null,null,null,"PVM suma"]
[null,null,null,null,"Suma su PVM",{"$f":"IF(ISBLANK(F2652), \"\", SUM(F2651:F2652))","v":""},"Dalies biudžetas su PVM: 79,8 Eur"]
[]
[]
[]
["219. DALIS","TIRPALAS ODOS DŪRIMO TESTUI  3ML ± 0,5ML - RIEŠUTŲ MIŠINYS"]
[]
["Tiekėjo pasiūlymas:"]
["Nr.","Pavadinimas","Kiekis","Mato vienetas","Įkainis be PVM, Eur","Suma be PVM, Eur","Siūlomo produkto pavadinimas, dozė, kiekis pakuotėje, gamintojas. Būtina pažymėti, kuris vaistas yra  vardinis"]
["219.","Tirpalas odos dūrimo testui  3ml ± 0,5ml - Riešutų mišinys"]
["219.1.","Tirpalas odos dūrimo testui  3ml ± 0,5ml - Riešutų mišinys",1,"fl.",null,{"$f":"IF(ISBLANK(E2662),\"\", PRODUCT(C2662,E2662))","v":""}]
[null,null,null,null,"Suma be PVM",{"$f":"IF(F2662=\"\",\"\",SUM(F2662:F2662))","v":""},{"$f":"IF(F2662=\"\",\"Neužpildytos visos objektų kainos\",\"\")","v":"Neužpildytos visos objektų kainos"}]
[null,null,null,null,"PVM suma"]
[null,null,null,null,"Suma su PVM",{"$f":"IF(ISBLANK(F2664), \"\", SUM(F2663:F2664))","v":""},"Dalies biudžetas su PVM: 39,9 Eur"]
[]
[]
[]
["220. DALIS","TIRPALAS ODOS DŪRIMO TESTUI  3ML ± 0,5ML - RYŽIAI"]
[]
["Tiekėjo pasiūlymas:"]
["Nr.","Pavadinimas","Kiekis","Mato vienetas","Įkainis be PVM, Eur","Suma be PVM, Eur","Siūlomo produkto pavadinimas, dozė, kiekis pakuotėje, gamintojas. Būtina pažymėti, kuris vaistas yra  vardinis"]
["220.","Tirpalas odos dūrimo testui  3ml ± 0,5ml - Ryžiai"]
["220.1.","Tirpalas odos dūrimo testui  3ml ± 0,5ml - Ryžiai",1,"fl.",null,{"$f":"IF(ISBLANK(E2674),\"\", PRODUCT(C2674,E2674))","v":""}]
[null,null,null,null,"Suma be PVM",{"$f":"IF(F2674=\"\",\"\",SUM(F2674:F2674))","v":""},{"$f":"IF(F2674=\"\",\"Neužpildytos visos objektų kainos\",\"\")","v":"Neužpildytos visos objektų kainos"}]
[null,null,null,null,"PVM suma"]
[null,null,null,null,"Suma su PVM",{"$f":"IF(ISBLANK(F2676), \"\", SUM(F2675:F2676))","v":""},"Dalies biudžetas su PVM: 39,9 Eur"]
[]
[]
[]
["221. DALIS","TIRPALAS ODOS DŪRIMO TESTUI  3ML ± 0,5ML - RUGIŲ MILTAI"]
[]
["Tiekėjo pasiūlymas:"]
["Nr.","Pavadinimas","Kiekis","Mato vienetas","Įkainis be PVM, Eur","Suma be PVM, Eur","Siūlomo produkto pavadinimas, dozė, kiekis pakuotėje, gamintojas. Būtina pažymėti, kuris vaistas yra  vardinis"]
["221.","Tirpalas odos dūrimo testui  3ml ± 0,5ml - Rugių miltai"]
["221.1.","Tirpalas odos dūrimo testui  3ml ± 0,5ml - Rugių miltai",2,"fl.",null,{"$f":"IF(ISBLANK(E2686),\"\", PRODUCT(C2686,E2686))","v":""}]
[null,null,null,null,"Suma be PVM",{"$f":"IF(F2686=\"\",\"\",SUM(F2686:F2686))","v":""},{"$f":"IF(F2686=\"\",\"Neužpildytos visos objektų kainos\",\"\")","v":"Neužpildytos visos objektų kainos"}]
[null,null,null,null,"PVM suma"]
[null,null,null,null,"Suma su PVM",{"$f":"IF(ISBLANK(F2688), \"\", SUM(F2687:F2688))","v":""},"Dalies biudžetas su PVM: 79,8 Eur"]
[]
[]
[]
["222. DALIS","TIRPALAS ODOS DŪRIMO TESTUI  3ML ± 0,5ML - SALIERAS"]
[]
["Tiekėjo pasiūlymas:"]
["Nr.","Pavadinimas","Kiekis","Mato vienetas","Įkainis be PVM, Eur","Suma be PVM, Eur","Siūlomo produkto pavadinimas, dozė, kiekis pakuotėje, gamintojas. Būtina pažymėti, kuris vaistas yra  vardinis"]
["222.","Tirpalas odos dūrimo testui  3ml ± 0,5ml - Salieras"]
["222.1.","Tirpalas odos dūrimo testui  3ml ± 0,5ml - Salieras",1,"fl.",null,{"$f":"IF(ISBLANK(E2698),\"\", PRODUCT(C2698,E2698))","v":""}]
[null,null,null,null,"Suma be PVM",{"$f":"IF(F2698=\"\",\"\",SUM(F2698:F2698))","v":""},{"$f":"IF(F2698=\"\",\"Neužpildytos visos objektų kainos\",\"\")","v":"Neužpildytos visos objektų kainos"}]
[null,null,null,null,"PVM suma"]
[null,null,null,null,"Suma su PVM",{"$f":"IF(ISBLANK(F2700), \"\", SUM(F2699:F2700))","v":""},"Dalies biudžetas su PVM: 39,9 Eur"]
[]
[]
[]
["223. DALIS","TIRPALAS ODOS DŪRIMO TESTUI  3ML ± 0,5ML - SEZAMAS"]
[]
["Tiekėjo pasiūlymas:"]
["Nr.","Pavadinimas","Kiekis","Mato vienetas","Įkainis be PVM, Eur","Suma be PVM, Eur","Siūlomo produkto pavadinimas, dozė, kiekis pakuotėje, gamintojas. Būtina pažymėti, kuris vaistas yra  vardinis"]
["223.","Tirpalas odos dūrimo testui  3ml ± 0,5ml - Sezamas"]
["223.1.","Tirpalas odos dūrimo testui  3ml ± 0,5ml - Sezamas",1,"fl.",null,{"$f":"IF(ISBLANK(E2710),\"\", PRODUCT(C2710,E2710))","v":""}]
[null,null,null,null,"Suma be PVM",{"$f":"IF(F2710=\"\",\"\",SUM(F2710:F2710))","v":""},{"$f":"IF(F2710=\"\",\"Neužpildytos visos objektų kainos\",\"\")","v":"Neužpildytos visos objektų kainos"}]
[null,null,null,null,"PVM suma"]
[null,null,null,null,"Suma su PVM",{"$f":"IF(ISBLANK(F2712), \"\", SUM(F2711:F2712))","v":""},"Dalies biudžetas su PVM: 39,9 Eur"]
[]
[]
[]
["224. DALIS","TIRPALAS ODOS DŪRIMO TESTUI  3ML ± 0,5ML - SOJA"]
[]
["Tiekėjo pasiūlymas:"]
["Nr.","Pavadinimas","Kiekis","Mato vienetas","Įkainis be PVM, Eur","Suma be PVM, Eur","Siūlomo produkto pavadinimas, dozė, kiekis pakuotėje, gamintojas. Būtina pažymėti, kuris vaistas yra  vardinis"]
["224.","Tirpalas odos dūrimo testui  3ml ± 0,5ml - Soja"]
["224.1.","Tirpalas odos dūrimo testui  3ml ± 0,5ml - Soja",1,"fl.",null,{"$f":"IF(ISBLANK(E2722),\"\", PRODUCT(C2722,E2722))","v":""}]
[null,null,null,null,"Suma be PVM",{"$f":"IF(F2722=\"\",\"\",SUM(F2722:F2722))","v":""},{"$f":"IF(F2722=\"\",\"Neužpildytos visos objektų kainos\",\"\")","v":"Neužpildytos visos objektų kainos"}]
[null,null,null,null,"PVM suma"]
[null,null,null,null,"Suma su PVM",{"$f":"IF(ISBLANK(F2724), \"\", SUM(F2723:F2724))","v":""},"Dalies biudžetas su PVM: 39,9 Eur"]
[]
[]
[]
["225. DALIS","TIRPALAS ODOS DŪRIMO TESTUI  3ML ± 0,5ML - TOPOLIS"]
[]
["Tiekėjo pasiūlymas:"]
["Nr.","Pavadinimas","Kiekis","Mato vienetas","Įkainis be PVM, Eur","Suma be PVM, Eur","Siūlomo produkto pavadinimas, dozė, kiekis pakuotėje, gamintojas. Būtina pažymėti, kuris vaistas yra  vardinis"]
["225.","Tirpalas odos dūrimo testui  3ml ± 0,5ml - Topolis"]
["225.1.","Tirpalas odos dūrimo testui  3ml ± 0,5ml - Topolis",2,"fl.",null,{"$f":"IF(ISBLANK(E2734),\"\", PRODUCT(C2734,E2734))","v":""}]
[null,null,null,null,"Suma be PVM",{"$f":"IF(F2734=\"\",\"\",SUM(F2734:F2734))","v":""},{"$f":"IF(F2734=\"\",\"Neužpildytos visos objektų kainos\",\"\")","v":"Neužpildytos visos objektų kainos"}]
[null,null,null,null,"PVM suma"]
[null,null,null,null,"Suma su PVM",{"$f":"IF(ISBLANK(F2736), \"\", SUM(F2735:F2736))","v":""},"Dalies biudžetas su PVM: 79,8 Eur"]
[]
[]
[]
["226. DALIS","TIRPALAS ODOS DŪRIMO TESTUI  3ML ± 0,5ML - TUNAS"]
[]
["Tiekėjo pasiūlymas:"]
["Nr.","Pavadinimas","Kiekis","Mato vienetas","Įkainis be PVM, Eur","Suma be PVM, Eur","Siūlomo produkto pavadinimas, dozė, kiekis pakuotėje, gamintojas. Būtina pažymėti, kuris vaistas yra  vardinis"]
["226.","Tirpalas odos dūrimo testui  3ml ± 0,5ml - Tunas"]
["226.1.","Tirpalas odos dūrimo testui  3ml ± 0,5ml - Tunas",1,"fl.",null,{"$f":"IF(ISBLANK(E2746),\"\", PRODUCT(C2746,E2746))","v":""}]
[null,null,null,null,"Suma be PVM",{"$f":"IF(F2746=\"\",\"\",SUM(F2746:F2746))","v":""},{"$f":"IF(F2746=\"\",\"Neužpildytos visos objektų kainos\",\"\")","v":"Neužpildytos visos objektų kainos"}]
[null,null,null,null,"PVM suma"]
[null,null,null,null,"Suma su PVM",{"$f":"IF(ISBLANK(F2748), \"\", SUM(F2747:F2748))","v":""},"Dalies biudžetas su PVM: 39,9 Eur"]
[]
[]
[]
["227. DALIS","TIRPALAS ODOS DŪRIMO TESTUI  3ML ± 0,5ML - ŽEMĖS RIEŠUTAI"]
[]
["Tiekėjo pasiūlymas:"]
["Nr.","Pavadinimas","Kiekis","Mato vienetas","Įkainis be PVM, Eur","Suma be PVM, Eur","Siūlomo produkto pavadinimas, dozė, kiekis pakuotėje, gamintojas. Būtina pažymėti, kuris vaistas yra  vardinis"]
["227.","Tirpalas odos dūrimo testui  3ml ± 0,5ml - Žemės riešutai"]
["227.1.","Tirpalas odos dūrimo testui  3ml ± 0,5ml - Žemės riešutai",2,"fl.",null,{"$f":"IF(ISBLANK(E2758),\"\", PRODUCT(C2758,E2758))","v":""}]
[null,null,null,null,"Suma be PVM",{"$f":"IF(F2758=\"\",\"\",SUM(F2758:F2758))","v":""},{"$f":"IF(F2758=\"\",\"Neužpildytos visos objektų kainos\",\"\")","v":"Neužpildytos visos objektų kainos"}]
[null,null,null,null,"PVM suma"]
[null,null,null,null,"Suma su PVM",{"$f":"IF(ISBLANK(F2760), \"\", SUM(F2759:F2760))","v":""},"Dalies biudžetas su PVM: 79,8 Eur"]
[]
[]
[]
["228. DALIS","TIRPALAS ODOS DŪRIMO TESTUI 3ML ± 0,5ML -  PENICILLIUM NOTATUM"]
[]
["Tiekėjo pasiūlymas:"]
["Nr.","Pavadinimas","Kiekis","Mato vienetas","Įkainis be PVM, Eur","Suma be PVM, Eur","Siūlomo produkto pavadinimas, dozė, kiekis pakuotėje, gamintojas. Būtina pažymėti, kuris vaistas yra  vardinis"]
["228.","Tirpalas odos dūrimo testui 3ml ± 0,5ml -  Penicillium notatum"]
["228.1.","Tirpalas odos dūrimo testui 3ml ± 0,5ml -  Penicillium notatum",1,"fl.",null,{"$f":"IF(ISBLANK(E2770),\"\", PRODUCT(C2770,E2770))","v":""}]
[null,null,null,null,"Suma be PVM",{"$f":"IF(F2770=\"\",\"\",SUM(F2770:F2770))","v":""},{"$f":"IF(F2770=\"\",\"Neužpildytos visos objektų kainos\",\"\")","v":"Neužpildytos visos objektų kainos"}]
[null,null,null,null,"PVM suma"]
[null,null,null,null,"Suma su PVM",{"$f":"IF(ISBLANK(F2772), \"\", SUM(F2771:F2772))","v":""},"Dalies biudžetas su PVM: 39,9 Eur"]
[]
[]
[]
["229. DALIS","TIRPALAS ODOS DŪRIMO TESTUI 3ML ± 0,5ML - ARTEMISIA, CHENOPODIUM, SALSOLA, PLANTAGO/ PIKTŽOLIŲ MIX"]
[]
["Tiekėjo pasiūlymas:"]
["Nr.","Pavadinimas","Kiekis","Mato vienetas","Įkainis be PVM, Eur","Suma be PVM, Eur","Siūlomo produkto pavadinimas, dozė, kiekis pakuotėje, gamintojas. Būtina pažymėti, kuris vaistas yra  vardinis"]
["229.","Tirpalas odos dūrimo testui 3ml ± 0,5ml - Artemisia, Chenopodium, Salsola, Plantago/ Piktžolių mix"]
["229.1.","Tirpalas odos dūrimo testui 3ml ± 0,5ml - Artemisia, Chenopodium, Salsola, Plantago/ Piktžolių mix",1,"fl.",null,{"$f":"IF(ISBLANK(E2782),\"\", PRODUCT(C2782,E2782))","v":""}]
[null,null,null,null,"Suma be PVM",{"$f":"IF(F2782=\"\",\"\",SUM(F2782:F2782))","v":""},{"$f":"IF(F2782=\"\",\"Neužpildytos visos objektų kainos\",\"\")","v":"Neužpildytos visos objektų kainos"}]
[null,null,null,null,"PVM suma"]
[null,null,null,null,"Suma su PVM",{"$f":"IF(ISBLANK(F2784), \"\", SUM(F2783:F2784))","v":""},"Dalies biudžetas su PVM: 39,9 Eur"]
[]
[]
[]
["230. DALIS","TIRPALAS ODOS DŪRIMO TESTUI 3ML ± 0,5ML - ČESNAKAS"]
[]
["Tiekėjo pasiūlymas:"]
["Nr.","Pavadinimas","Kiekis","Mato vienetas","Įkainis be PVM, Eur","Suma be PVM, Eur","Siūlomo produkto pavadinimas, dozė, kiekis pakuotėje, gamintojas. Būtina pažymėti, kuris vaistas yra  vardinis"]
["230.","Tirpalas odos dūrimo testui 3ml ± 0,5ml - Česnakas"]
["230.1.","Tirpalas odos dūrimo testui 3ml ± 0,5ml - Česnakas",1,"fl.",null,{"$f":"IF(ISBLANK(E2794),\"\", PRODUCT(C2794,E2794))","v":""}]
[null,null,null,null,"Suma be PVM",{"$f":"IF(F2794=\"\",\"\",SUM(F2794:F2794))","v":""},{"$f":"IF(F2794=\"\",\"Neužpildytos visos objektų kainos\",\"\")","v":"Neužpildytos visos objektų kainos"}]
[null,null,null,null,"PVM suma"]
[null,null,null,null,"Suma su PVM",{"$f":"IF(ISBLANK(F2796), \"\", SUM(F2795:F2796))","v":""},"Dalies biudžetas su PVM: 39,9 Eur"]
[]
[]
[]
["231. DALIS","TIRPALAS ODOS DŪRIMO TESTUI 3ML ± 0,5ML - GĖLŲ VANDENŲ ŽUVYS"]
[]
["Tiekėjo pasiūlymas:"]
["Nr.","Pavadinimas","Kiekis","Mato vienetas","Įkainis be PVM, Eur","Suma be PVM, Eur","Siūlomo produkto pavadinimas, dozė, kiekis pakuotėje, gamintojas. Būtina pažymėti, kuris vaistas yra  vardinis"]
["231.","Tirpalas odos dūrimo testui 3ml ± 0,5ml - Gėlų vandenų žuvys"]
["231.1.","Tirpalas odos dūrimo testui 3ml ± 0,5ml - Gėlų vandenų žuvys",1,"fl.",null,{"$f":"IF(ISBLANK(E2806),\"\", PRODUCT(C2806,E2806))","v":""}]
[null,null,null,null,"Suma be PVM",{"$f":"IF(F2806=\"\",\"\",SUM(F2806:F2806))","v":""},{"$f":"IF(F2806=\"\",\"Neužpildytos visos objektų kainos\",\"\")","v":"Neužpildytos visos objektų kainos"}]
[null,null,null,null,"PVM suma"]
[null,null,null,null,"Suma su PVM",{"$f":"IF(ISBLANK(F2808), \"\", SUM(F2807:F2808))","v":""},"Dalies biudžetas su PVM: 39,9 Eur"]
[]
[]
[]
["232. DALIS","TIRPALAS ODOS DŪRIMO TESTUI 3ML ± 0,5ML - KIAUŠINIO BALTYMAS"]
[]
["Tiekėjo pasiūlymas:"]
["Nr.","Pavadinimas","Kiekis","Mato vienetas","Įkainis be PVM, Eur","Suma be PVM, Eur","Siūlomo produkto pavadinimas, dozė, kiekis pakuotėje, gamintojas. Būtina pažymėti, kuris vaistas yra  vardinis"]
["232.","Tirpalas odos dūrimo testui 3ml ± 0,5ml - Kiaušinio baltymas"]
["232.1.","Tirpalas odos dūrimo testui 3ml ± 0,5ml - Kiaušinio baltymas",1,"fl.",null,{"$f":"IF(ISBLANK(E2818),\"\", PRODUCT(C2818,E2818))","v":""}]
[null,null,null,null,"Suma be PVM",{"$f":"IF(F2818=\"\",\"\",SUM(F2818:F2818))","v":""},{"$f":"IF(F2818=\"\",\"Neužpildytos visos objektų kainos\",\"\")","v":"Neužpildytos visos objektų kainos"}]
[null,null,null,null,"PVM suma"]
[null,null,null,null,"Suma su PVM",{"$f":"IF(ISBLANK(F2820), \"\", SUM(F2819:F2820))","v":""},"Dalies biudžetas su PVM: 39,9 Eur"]
[]
[]
[]
["233. DALIS","TIRPALAS ODOS DŪRIMO TESTUI 3ML ± 0,5ML - KRABAI"]
[]
["Tiekėjo pasiūlymas:"]
["Nr.","Pavadinimas","Kiekis","Mato vienetas","Įkainis be PVM, Eur","Suma be PVM, Eur","Siūlomo produkto pavadinimas, dozė, kiekis pakuotėje, gamintojas. Būtina pažymėti, kuris vaistas yra  vardinis"]
["233.","Tirpalas odos dūrimo testui 3ml ± 0,5ml - Krabai"]
["233.1.","Tirpalas odos dūrimo testui 3ml ± 0,5ml - Krabai",1,"fl.",null,{"$f":"IF(ISBLANK(E2830),\"\", PRODUCT(C2830,E2830))","v":""}]
[null,null,null,null,"Suma be PVM",{"$f":"IF(F2830=\"\",\"\",SUM(F2830:F2830))","v":""},{"$f":"IF(F2830=\"\",\"Neužpildytos visos objektų kainos\",\"\")","v":"Neužpildytos visos objektų kainos"}]
[null,null,null,null,"PVM suma"]
[null,null,null,null,"Suma su PVM",{"$f":"IF(ISBLANK(F2832), \"\", SUM(F2831:F2832))","v":""},"Dalies biudžetas su PVM: 39,9 Eur"]
[]
[]
[]
["234. DALIS","TIRPALAS ODOS DŪRIMO TESTUI 3ML ± 0,5ML - KREVETĖS"]
[]
["Tiekėjo pasiūlymas:"]
["Nr.","Pavadinimas","Kiekis","Mato vienetas","Įkainis be PVM, Eur","Suma be PVM, Eur","Siūlomo produkto pavadinimas, dozė, kiekis pakuotėje, gamintojas. Būtina pažymėti, kuris vaistas yra  vardinis"]
["234.","Tirpalas odos dūrimo testui 3ml ± 0,5ml - Krevetės"]
["234.1.","Tirpalas odos dūrimo testui 3ml ± 0,5ml - Krevetės",2,"fl.",null,{"$f":"IF(ISBLANK(E2842),\"\", PRODUCT(C2842,E2842))","v":""}]
[null,null,null,null,"Suma be PVM",{"$f":"IF(F2842=\"\",\"\",SUM(F2842:F2842))","v":""},{"$f":"IF(F2842=\"\",\"Neužpildytos visos objektų kainos\",\"\")","v":"Neužpildytos visos objektų kainos"}]
[null,null,null,null,"PVM suma"]
[null,null,null,null,"Suma su PVM",{"$f":"IF(ISBLANK(F2844), \"\", SUM(F2843:F2844))","v":""},"Dalies biudžetas su PVM: 79,8 Eur"]
[]
[]
[]
["235. DALIS","TIRPALAS ODOS DŪRIMO TESTUI 3ML ± 0,5ML - MIEŽINĖS KRUOPOS"]
[]
["Tiekėjo pasiūlymas:"]
["Nr.","Pavadinimas","Kiekis","Mato vienetas","Įkainis be PVM, Eur","Suma be PVM, Eur","Siūlomo produkto pavadinimas, dozė, kiekis pakuotėje, gamintojas. Būtina pažymėti, kuris vaistas yra  vardinis"]
["235.","Tirpalas odos dūrimo testui 3ml ± 0,5ml - Miežinės kruopos"]
["235.1.","Tirpalas odos dūrimo testui 3ml ± 0,5ml - Miežinės kruopos",1,"fl.",null,{"$f":"IF(ISBLANK(E2854),\"\", PRODUCT(C2854,E2854))","v":""}]
[null,null,null,null,"Suma be PVM",{"$f":"IF(F2854=\"\",\"\",SUM(F2854:F2854))","v":""},{"$f":"IF(F2854=\"\",\"Neužpildytos visos objektų kainos\",\"\")","v":"Neužpildytos visos objektų kainos"}]
[null,null,null,null,"PVM suma"]
[null,null,null,null,"Suma su PVM",{"$f":"IF(ISBLANK(F2856), \"\", SUM(F2855:F2856))","v":""},"Dalies biudžetas su PVM: 39,9 Eur"]
[]
[]
[]
["236. DALIS","TIRPALAS ODOS DŪRIMO TESTUI 3ML ± 0,5ML - PAPRASTASIS LAZDYNAS"]
[]
["Tiekėjo pasiūlymas:"]
["Nr.","Pavadinimas","Kiekis","Mato vienetas","Įkainis be PVM, Eur","Suma be PVM, Eur","Siūlomo produkto pavadinimas, dozė, kiekis pakuotėje, gamintojas. Būtina pažymėti, kuris vaistas yra  vardinis"]
["236.","Tirpalas odos dūrimo testui 3ml ± 0,5ml - paprastasis lazdynas"]
["236.1.","Tirpalas odos dūrimo testui 3ml ± 0,5ml - paprastasis lazdynas",1,"fl.",null,{"$f":"IF(ISBLANK(E2866),\"\", PRODUCT(C2866,E2866))","v":""}]
[null,null,null,null,"Suma be PVM",{"$f":"IF(F2866=\"\",\"\",SUM(F2866:F2866))","v":""},{"$f":"IF(F2866=\"\",\"Neužpildytos visos objektų kainos\",\"\")","v":"Neužpildytos visos objektų kainos"}]
[null,null,null,null,"PVM suma"]
[null,null,null,null,"Suma su PVM",{"$f":"IF(ISBLANK(F2868), \"\", SUM(F2867:F2868))","v":""},"Dalies biudžetas su PVM: 39,9 Eur"]
[]
[]
[]
["237. DALIS","TIRPALAS ODOS DŪRIMO TESTUI 3ML ± 0,5ML - PELYNAS"]
[]
["Tiekėjo pasiūlymas:"]
["Nr.","Pavadinimas","Kiekis","Mato vienetas","Įkainis be PVM, Eur","Suma be PVM, Eur","Siūlomo produkto pavadinimas, dozė, kiekis pakuotėje, gamintojas. Būtina pažymėti, kuris vaistas yra  vardinis"]
["237.","Tirpalas odos dūrimo testui 3ml ± 0,5ml - Pelynas"]
["237.1.","Tirpalas odos dūrimo testui 3ml ± 0,5ml - Pelynas",1,"fl.",null,{"$f":"IF(ISBLANK(E2878),\"\", PRODUCT(C2878,E2878))","v":""}]
[null,null,null,null,"Suma be PVM",{"$f":"IF(F2878=\"\",\"\",SUM(F2878:F2878))","v":""},{"$f":"IF(F2878=\"\",\"Neužpildytos visos objektų kainos\",\"\")","v":"Neužpildytos visos objektų kainos"}]
[null,null,null,null,"PVM suma"]
[null,null,null,null,"Suma su PVM",{"$f":"IF(ISBLANK(F2880), \"\", SUM(F2879:F2880))","v":""},"Dalies biudžetas su PVM: 39,9 Eur"]
[]
[]
[]
["238. DALIS","TIRPALAS ODOS DŪRIMO TESTUI 3ML ± 0,5ML - SVOGŪNAS"]
[]
["Tiekėjo pasiūlymas:"]
["Nr.","Pavadinimas","Kiekis","Mato vienetas","Įkainis be PVM, Eur","Suma be PVM, Eur","Siūlomo produkto pavadinimas, dozė, kiekis pakuotėje, gamintojas. Būtina pažymėti, kuris vaistas yra  vardinis"]
["238.","Tirpalas odos dūrimo testui 3ml ± 0,5ml - Svogūnas"]
["238.1.","Tirpalas odos dūrimo testui 3ml ± 0,5ml - Svogūnas",1,"fl.",null,{"$f":"IF(ISBLANK(E2890),\"\", PRODUCT(C2890,E2890))","v":""}]
[null,null,null,null,"Suma be PVM",{"$f":"IF(F2890=\"\",\"\",SUM(F2890:F2890))","v":""},{"$f":"IF(F2890=\"\",\"Neužpildytos visos objektų kainos\",\"\")","v":"Neužpildytos visos objektų kainos"}]
[null,null,null,null,"PVM suma"]
[null,null,null,null,"Suma su PVM",{"$f":"IF(ISBLANK(F2892), \"\", SUM(F2891:F2892))","v":""},"Dalies biudžetas su PVM: 39,9 Eur"]
[]
[]
[]
["239. DALIS","TIRPALAS ODOS DŪRIMO TESTUI 3ML ± 0,5ML -ALKSNIO ŽIEDADULKĖS"]
[]
["Tiekėjo pasiūlymas:"]
["Nr.","Pavadinimas","Kiekis","Mato vienetas","Įkainis be PVM, Eur","Suma be PVM, Eur","Siūlomo produkto pavadinimas, dozė, kiekis pakuotėje, gamintojas. Būtina pažymėti, kuris vaistas yra  vardinis"]
["239.","Tirpalas odos dūrimo testui 3ml ± 0,5ml -Alksnio žiedadulkės"]
["239.1.","Tirpalas odos dūrimo testui 3ml ± 0,5ml -Alksnio žiedadulkės",1,"fl.",null,{"$f":"IF(ISBLANK(E2902),\"\", PRODUCT(C2902,E2902))","v":""}]
[null,null,null,null,"Suma be PVM",{"$f":"IF(F2902=\"\",\"\",SUM(F2902:F2902))","v":""},{"$f":"IF(F2902=\"\",\"Neužpildytos visos objektų kainos\",\"\")","v":"Neužpildytos visos objektų kainos"}]
[null,null,null,null,"PVM suma"]
[null,null,null,null,"Suma su PVM",{"$f":"IF(ISBLANK(F2904), \"\", SUM(F2903:F2904))","v":""},"Dalies biudžetas su PVM: 39,9 Eur"]
[]
[]
[]
["240. DALIS","TIRPALAS ODOS DŪRIMO TESTUI 3ML ± 0,5ML -JUODALKSNIS"]
[]
["Tiekėjo pasiūlymas:"]
["Nr.","Pavadinimas","Kiekis","Mato vienetas","Įkainis be PVM, Eur","Suma be PVM, Eur","Siūlomo produkto pavadinimas, dozė, kiekis pakuotėje, gamintojas. Būtina pažymėti, kuris vaistas yra  vardinis"]
["240.","Tirpalas odos dūrimo testui 3ml ± 0,5ml -Juodalksnis"]
["240.1.","Tirpalas odos dūrimo testui 3ml ± 0,5ml -Juodalksnis",1,"fl.",null,{"$f":"IF(ISBLANK(E2914),\"\", PRODUCT(C2914,E2914))","v":""}]
[null,null,null,null,"Suma be PVM",{"$f":"IF(F2914=\"\",\"\",SUM(F2914:F2914))","v":""},{"$f":"IF(F2914=\"\",\"Neužpildytos visos objektų kainos\",\"\")","v":"Neužpildytos visos objektų kainos"}]
[null,null,null,null,"PVM suma"]
[null,null,null,null,"Suma su PVM",{"$f":"IF(ISBLANK(F2916), \"\", SUM(F2915:F2916))","v":""},"Dalies biudžetas su PVM: 39,9 Eur"]
[]
[]
[]
["241. DALIS","TIRPALAS ODOS DŪRIMO TESTUI 3ML ± 0,5ML -KULTIVUOTŲ KVIEČIŲ ŽIEDADULKĖS"]
[]
["Tiekėjo pasiūlymas:"]
["Nr.","Pavadinimas","Kiekis","Mato vienetas","Įkainis be PVM, Eur","Suma be PVM, Eur","Siūlomo produkto pavadinimas, dozė, kiekis pakuotėje, gamintojas. Būtina pažymėti, kuris vaistas yra  vardinis"]
["241.","Tirpalas odos dūrimo testui 3ml ± 0,5ml - Kultivuotų kviečių žiedadulkės"]
["241.1.","Tirpalas odos dūrimo testui 3ml ± 0,5ml - Kultivuotų kviečių žiedadulkės",1,"fl.",null,{"$f":"IF(ISBLANK(E2926),\"\", PRODUCT(C2926,E2926))","v":""}]
[null,null,null,null,"Suma be PVM",{"$f":"IF(F2926=\"\",\"\",SUM(F2926:F2926))","v":""},{"$f":"IF(F2926=\"\",\"Neužpildytos visos objektų kainos\",\"\")","v":"Neužpildytos visos objektų kainos"}]
[null,null,null,null,"PVM suma"]
[null,null,null,null,"Suma su PVM",{"$f":"IF(ISBLANK(F2928), \"\", SUM(F2927:F2928))","v":""},"Dalies biudžetas su PVM: 39,9 Eur"]
[]
[]
[]
["242. DALIS","TIRPALAS ODOS DŪRIMO TESTUI 3ML ± 0,5ML -ŠOKOLADAS"]
[]
["Tiekėjo pasiūlymas:"]
["Nr.","Pavadinimas","Kiekis","Mato vienetas","Įkainis be PVM, Eur","Suma be PVM, Eur","Siūlomo produkto pavadinimas, dozė, kiekis pakuotėje, gamintojas. Būtina pažymėti, kuris vaistas yra  vardinis"]
["242.","Tirpalas odos dūrimo testui 3ml ± 0,5ml -Šokoladas"]
["242.1.","Tirpalas odos dūrimo testui 3ml ± 0,5ml -Šokoladas",1,"fl.",null,{"$f":"IF(ISBLANK(E2938),\"\", PRODUCT(C2938,E2938))","v":""}]
[null,null,null,null,"Suma be PVM",{"$f":"IF(F2938=\"\",\"\",SUM(F2938:F2938))","v":""},{"$f":"IF(F2938=\"\",\"Neužpildytos visos objektų kainos\",\"\")","v":"Neužpildytos visos objektų kainos"}]
[null,null,null,null,"PVM suma"]
[null,null,null,null,"Suma su PVM",{"$f":"IF(ISBLANK(F2940), \"\", SUM(F2939:F2940))","v":""},"Dalies biudžetas su PVM: 39,9 Eur"]
[]
[]
[]
["243. DALIS","TIRPALAS ODOS DŪRIMO TESTUI 3ML ± 0,5ML -TARAKONAI"]
[]
["Tiekėjo pasiūlymas:"]
["Nr.","Pavadinimas","Kiekis","Mato vienetas","Įkainis be PVM, Eur","Suma be PVM, Eur","Siūlomo produkto pavadinimas, dozė, kiekis pakuotėje, gamintojas. Būtina pažymėti, kuris vaistas yra  vardinis"]
["243.","Tirpalas odos dūrimo testui 3ml ± 0,5ml -Tarakonai"]
["243.1.","Tirpalas odos dūrimo testui 3ml ± 0,5ml -Tarakonai",1,"fl.",null,{"$f":"IF(ISBLANK(E2950),\"\", PRODUCT(C2950,E2950))","v":""}]
[null,null,null,null,"Suma be PVM",{"$f":"IF(F2950=\"\",\"\",SUM(F2950:F2950))","v":""},{"$f":"IF(F2950=\"\",\"Neužpildytos visos objektų kainos\",\"\")","v":"Neužpildytos visos objektų kainos"}]
[null,null,null,null,"PVM suma"]
[null,null,null,null,"Suma su PVM",{"$f":"IF(ISBLANK(F2952), \"\", SUM(F2951:F2952))","v":""},"Dalies biudžetas su PVM: 39,9 Eur"]
[]
[]
[]
["244. DALIS","TIRPALAS ODOS DŪRIMO TESTUI 3ML ±0,5ML  – HISTAMINO HCL"]
[]
["Tiekėjo pasiūlymas:"]
["Nr.","Pavadinimas","Kiekis","Mato vienetas","Įkainis be PVM, Eur","Suma be PVM, Eur","Siūlomo produkto pavadinimas, dozė, kiekis pakuotėje, gamintojas. Būtina pažymėti, kuris vaistas yra  vardinis"]
["244.","Tirpalas odos dūrimo testui 3ml ±0,5ml  – Histamino HCL"]
["244.1.","Tirpalas odos dūrimo testui 3ml ±0,5ml  – Histamino HCL",2,"fl.",null,{"$f":"IF(ISBLANK(E2962),\"\", PRODUCT(C2962,E2962))","v":""}]
[null,null,null,null,"Suma be PVM",{"$f":"IF(F2962=\"\",\"\",SUM(F2962:F2962))","v":""},{"$f":"IF(F2962=\"\",\"Neužpildytos visos objektų kainos\",\"\")","v":"Neužpildytos visos objektų kainos"}]
[null,null,null,null,"PVM suma"]
[null,null,null,null,"Suma su PVM",{"$f":"IF(ISBLANK(F2964), \"\", SUM(F2963:F2964))","v":""},"Dalies biudžetas su PVM: 79,8 Eur"]
[]
[]
[]
["245. DALIS","TIRPALAS ODOS DŪRIMO TESTUI 3ML ±0,5ML – 12-OS ŽOLIŲ MIŠINYS"]
[]
["Tiekėjo pasiūlymas:"]
["Nr.","Pavadinimas","Kiekis","Mato vienetas","Įkainis be PVM, Eur","Suma be PVM, Eur","Siūlomo produkto pavadinimas, dozė, kiekis pakuotėje, gamintojas. Būtina pažymėti, kuris vaistas yra  vardinis"]
["245.","Tirpalas odos dūrimo testui 3ml ±0,5ml – 12-os žolių mišinys"]
["245.1.","Tirpalas odos dūrimo testui 3ml ±0,5ml – 12-os žolių mišinys",2,"fl.",null,{"$f":"IF(ISBLANK(E2974),\"\", PRODUCT(C2974,E2974))","v":""}]
[null,null,null,null,"Suma be PVM",{"$f":"IF(F2974=\"\",\"\",SUM(F2974:F2974))","v":""},{"$f":"IF(F2974=\"\",\"Neužpildytos visos objektų kainos\",\"\")","v":"Neužpildytos visos objektų kainos"}]
[null,null,null,null,"PVM suma"]
[null,null,null,null,"Suma su PVM",{"$f":"IF(ISBLANK(F2976), \"\", SUM(F2975:F2976))","v":""},"Dalies biudžetas su PVM: 79,8 Eur"]
[]
[]
[]
["246. DALIS","TIRPALAS ODOS DŪRIMO TESTUI 3ML ±0,5ML – 5 - 6 IŲ ŽOLIŲ MIŠINYS"]
[]
["Tiekėjo pasiūlymas:"]
["Nr.","Pavadinimas","Kiekis","Mato vienetas","Įkainis be PVM, Eur","Suma be PVM, Eur","Siūlomo produkto pavadinimas, dozė, kiekis pakuotėje, gamintojas. Būtina pažymėti, kuris vaistas yra  vardinis"]
["246.","Tirpalas odos dūrimo testui 3ml ±0,5ml – 5 - 6 ių žolių mišinys"]
["246.1.","Tirpalas odos dūrimo testui 3ml ±0,5ml – 5 - 6 ių žolių mišinys",1,"fl.",null,{"$f":"IF(ISBLANK(E2986),\"\", PRODUCT(C2986,E2986))","v":""}]
[null,null,null,null,"Suma be PVM",{"$f":"IF(F2986=\"\",\"\",SUM(F2986:F2986))","v":""},{"$f":"IF(F2986=\"\",\"Neužpildytos visos objektų kainos\",\"\")","v":"Neužpildytos visos objektų kainos"}]
[null,null,null,null,"PVM suma"]
[null,null,null,null,"Suma su PVM",{"$f":"IF(ISBLANK(F2988), \"\", SUM(F2987:F2988))","v":""},"Dalies biudžetas su PVM: 39,9 Eur"]
[]
[]
[]
["247. DALIS","TIRPALAS ODOS DŪRIMO TESTUI 3ML ±0,5ML - ALTERNARIA ALTERNATA"]
[]
["Tiekėjo pasiūlymas:"]
["Nr.","Pavadinimas","Kiekis","Mato vienetas","Įkainis be PVM, Eur","Suma be PVM, Eur","Siūlomo produkto pavadinimas, dozė, kiekis pakuotėje, gamintojas. Būtina pažymėti, kuris vaistas yra  vardinis"]
["247.","Tirpalas odos dūrimo testui 3ml ±0,5ml - Alternaria alternata"]
["247.1.","Tirpalas odos dūrimo testui 3ml ±0,5ml - Alternaria alternata",2,"fl.",null,{"$f":"IF(ISBLANK(E2998),\"\", PRODUCT(C2998,E2998))","v":""}]
[null,null,null,null,"Suma be PVM",{"$f":"IF(F2998=\"\",\"\",SUM(F2998:F2998))","v":""},{"$f":"IF(F2998=\"\",\"Neužpildytos visos objektų kainos\",\"\")","v":"Neužpildytos visos objektų kainos"}]
[null,null,null,null,"PVM suma"]
[null,null,null,null,"Suma su PVM",{"$f":"IF(ISBLANK(F3000), \"\", SUM(F2999:F3000))","v":""},"Dalies biudžetas su PVM: 79,8 Eur"]
[]
[]
[]
["248. DALIS","TIRPALAS ODOS DŪRIMO TESTUI 3ML ±0,5ML – ASPERGILLUS MIX"]
[]
["Tiekėjo pasiūlymas:"]
["Nr.","Pavadinimas","Kiekis","Mato vienetas","Įkainis be PVM, Eur","Suma be PVM, Eur","Siūlomo produkto pavadinimas, dozė, kiekis pakuotėje, gamintojas. Būtina pažymėti, kuris vaistas yra  vardinis"]
["248.","Tirpalas odos dūrimo testui 3ml ±0,5ml – Aspergillus mix"]
["248.1.","Tirpalas odos dūrimo testui 3ml ±0,5ml – Aspergillus mix",3,"fl.",null,{"$f":"IF(ISBLANK(E3010),\"\", PRODUCT(C3010,E3010))","v":""}]
[null,null,null,null,"Suma be PVM",{"$f":"IF(F3010=\"\",\"\",SUM(F3010:F3010))","v":""},{"$f":"IF(F3010=\"\",\"Neužpildytos visos objektų kainos\",\"\")","v":"Neužpildytos visos objektų kainos"}]
[null,null,null,null,"PVM suma"]
[null,null,null,null,"Suma su PVM",{"$f":"IF(ISBLANK(F3012), \"\", SUM(F3011:F3012))","v":""},"Dalies biudžetas su PVM: 119,7 Eur"]
[]
[]
[]
["249. DALIS","TIRPALAS ODOS DŪRIMO TESTUI 3ML ±0,5ML - BETULACEAE"]
[]
["Tiekėjo pasiūlymas:"]
["Nr.","Pavadinimas","Kiekis","Mato vienetas","Įkainis be PVM, Eur","Suma be PVM, Eur","Siūlomo produkto pavadinimas, dozė, kiekis pakuotėje, gamintojas. Būtina pažymėti, kuris vaistas yra  vardinis"]
["249.","Tirpalas odos dūrimo testui 3ml ±0,5ml - Betulaceae"]
["249.1.","Tirpalas odos dūrimo testui 3ml ±0,5ml - Betulaceae",2,"fl.",null,{"$f":"IF(ISBLANK(E3022),\"\", PRODUCT(C3022,E3022))","v":""}]
[null,null,null,null,"Suma be PVM",{"$f":"IF(F3022=\"\",\"\",SUM(F3022:F3022))","v":""},{"$f":"IF(F3022=\"\",\"Neužpildytos visos objektų kainos\",\"\")","v":"Neužpildytos visos objektų kainos"}]
[null,null,null,null,"PVM suma"]
[null,null,null,null,"Suma su PVM",{"$f":"IF(ISBLANK(F3024), \"\", SUM(F3023:F3024))","v":""},"Dalies biudžetas su PVM: 79,8 Eur"]
[]
[]
[]
["250. DALIS","TIRPALAS ODOS DŪRIMO TESTUI 3ML ±0,5ML - CHENOPODIACEAE"]
[]
["Tiekėjo pasiūlymas:"]
["Nr.","Pavadinimas","Kiekis","Mato vienetas","Įkainis be PVM, Eur","Suma be PVM, Eur","Siūlomo produkto pavadinimas, dozė, kiekis pakuotėje, gamintojas. Būtina pažymėti, kuris vaistas yra  vardinis"]
["250.","Tirpalas odos dūrimo testui 3ml ±0,5ml - Chenopodiaceae"]
["250.1.","Tirpalas odos dūrimo testui 3ml ±0,5ml - Chenopodiaceae",1,"fl.",null,{"$f":"IF(ISBLANK(E3034),\"\", PRODUCT(C3034,E3034))","v":""}]
[null,null,null,null,"Suma be PVM",{"$f":"IF(F3034=\"\",\"\",SUM(F3034:F3034))","v":""},{"$f":"IF(F3034=\"\",\"Neužpildytos visos objektų kainos\",\"\")","v":"Neužpildytos visos objektų kainos"}]
[null,null,null,null,"PVM suma"]
[null,null,null,null,"Suma su PVM",{"$f":"IF(ISBLANK(F3036), \"\", SUM(F3035:F3036))","v":""},"Dalies biudžetas su PVM: 39,9 Eur"]
[]
[]
[]
["251. DALIS","TIRPALAS ODOS DŪRIMO TESTUI 3ML ±0,5ML - COMPOSITE"]
[]
["Tiekėjo pasiūlymas:"]
["Nr.","Pavadinimas","Kiekis","Mato vienetas","Įkainis be PVM, Eur","Suma be PVM, Eur","Siūlomo produkto pavadinimas, dozė, kiekis pakuotėje, gamintojas. Būtina pažymėti, kuris vaistas yra  vardinis"]
["251.","Tirpalas odos dūrimo testui 3ml ±0,5ml - Composite"]
["251.1.","Tirpalas odos dūrimo testui 3ml ±0,5ml - Composite",1,"fl.",null,{"$f":"IF(ISBLANK(E3046),\"\", PRODUCT(C3046,E3046))","v":""}]
[null,null,null,null,"Suma be PVM",{"$f":"IF(F3046=\"\",\"\",SUM(F3046:F3046))","v":""},{"$f":"IF(F3046=\"\",\"Neužpildytos visos objektų kainos\",\"\")","v":"Neužpildytos visos objektų kainos"}]
[null,null,null,null,"PVM suma"]
[null,null,null,null,"Suma su PVM",{"$f":"IF(ISBLANK(F3048), \"\", SUM(F3047:F3048))","v":""},"Dalies biudžetas su PVM: 39,9 Eur"]
[]
[]
[]
["252. DALIS","TIRPALAS ODOS DŪRIMO TESTUI 3ML ±0,5ML – DERM PTERONYSSINUS (NAMŲ ERKĖ)"]
[]
["Tiekėjo pasiūlymas:"]
["Nr.","Pavadinimas","Kiekis","Mato vienetas","Įkainis be PVM, Eur","Suma be PVM, Eur","Siūlomo produkto pavadinimas, dozė, kiekis pakuotėje, gamintojas. Būtina pažymėti, kuris vaistas yra  vardinis"]
["252.","Tirpalas odos dūrimo testui 3ml ±0,5ml – Derm Pteronyssinus (namų erkė)"]
["252.1.","Tirpalas odos dūrimo testui 3ml ±0,5ml – Derm Pteronyssinus (namų erkė)",2,"fl.",null,{"$f":"IF(ISBLANK(E3058),\"\", PRODUCT(C3058,E3058))","v":""}]
[null,null,null,null,"Suma be PVM",{"$f":"IF(F3058=\"\",\"\",SUM(F3058:F3058))","v":""},{"$f":"IF(F3058=\"\",\"Neužpildytos visos objektų kainos\",\"\")","v":"Neužpildytos visos objektų kainos"}]
[null,null,null,null,"PVM suma"]
[null,null,null,null,"Suma su PVM",{"$f":"IF(ISBLANK(F3060), \"\", SUM(F3059:F3060))","v":""},"Dalies biudžetas su PVM: 79,8 Eur"]
[]
[]
[]
["253. DALIS","TIRPALAS ODOS DŪRIMO TESTUI 3ML ±0,5ML – DERM. FARINAE (NAMŲ ERKĖ)"]
[]
["Tiekėjo pasiūlymas:"]
["Nr.","Pavadinimas","Kiekis","Mato vienetas","Įkainis be PVM, Eur","Suma be PVM, Eur","Siūlomo produkto pavadinimas, dozė, kiekis pakuotėje, gamintojas. Būtina pažymėti, kuris vaistas yra  vardinis"]
["253.","Tirpalas odos dūrimo testui 3ml ±0,5ml – Derm. Farinae (namų erkė)"]
["253.1.","Tirpalas odos dūrimo testui 3ml ±0,5ml – Derm. Farinae (namų erkė)",2,"fl.",null,{"$f":"IF(ISBLANK(E3070),\"\", PRODUCT(C3070,E3070))","v":""}]
[null,null,null,null,"Suma be PVM",{"$f":"IF(F3070=\"\",\"\",SUM(F3070:F3070))","v":""},{"$f":"IF(F3070=\"\",\"Neužpildytos visos objektų kainos\",\"\")","v":"Neužpildytos visos objektų kainos"}]
[null,null,null,null,"PVM suma"]
[null,null,null,null,"Suma su PVM",{"$f":"IF(ISBLANK(F3072), \"\", SUM(F3071:F3072))","v":""},"Dalies biudžetas su PVM: 79,8 Eur"]
[]
[]
[]
["254. DALIS","TIRPALAS ODOS DŪRIMO TESTUI 3ML ±0,5ML - FAGACEAE"]
[]
["Tiekėjo pasiūlymas:"]
["Nr.","Pavadinimas","Kiekis","Mato vienetas","Įkainis be PVM, Eur","Suma be PVM, Eur","Siūlomo produkto pavadinimas, dozė, kiekis pakuotėje, gamintojas. Būtina pažymėti, kuris vaistas yra  vardinis"]
["254.","Tirpalas odos dūrimo testui 3ml ±0,5ml - Fagaceae"]
["254.1.","Tirpalas odos dūrimo testui 3ml ±0,5ml - Fagaceae",1,"fl.",null,{"$f":"IF(ISBLANK(E3082),\"\", PRODUCT(C3082,E3082))","v":""}]
[null,null,null,null,"Suma be PVM",{"$f":"IF(F3082=\"\",\"\",SUM(F3082:F3082))","v":""},{"$f":"IF(F3082=\"\",\"Neužpildytos visos objektų kainos\",\"\")","v":"Neužpildytos visos objektų kainos"}]
[null,null,null,null,"PVM suma"]
[null,null,null,null,"Suma su PVM",{"$f":"IF(ISBLANK(F3084), \"\", SUM(F3083:F3084))","v":""},"Dalies biudžetas su PVM: 39,9 Eur"]
[]
[]
[]
["255. DALIS","TIRPALAS ODOS DŪRIMO TESTUI 3ML ±0,5ML – MEDŽIŲ MIŠINYS"]
[]
["Tiekėjo pasiūlymas:"]
["Nr.","Pavadinimas","Kiekis","Mato vienetas","Įkainis be PVM, Eur","Suma be PVM, Eur","Siūlomo produkto pavadinimas, dozė, kiekis pakuotėje, gamintojas. Būtina pažymėti, kuris vaistas yra  vardinis"]
["255.","Tirpalas odos dūrimo testui 3ml ±0,5ml – Medžių mišinys"]
["255.1.","Tirpalas odos dūrimo testui 3ml ±0,5ml – Medžių mišinys",2,"fl.",null,{"$f":"IF(ISBLANK(E3094),\"\", PRODUCT(C3094,E3094))","v":""}]
[null,null,null,null,"Suma be PVM",{"$f":"IF(F3094=\"\",\"\",SUM(F3094:F3094))","v":""},{"$f":"IF(F3094=\"\",\"Neužpildytos visos objektų kainos\",\"\")","v":"Neužpildytos visos objektų kainos"}]
[null,null,null,null,"PVM suma"]
[null,null,null,null,"Suma su PVM",{"$f":"IF(ISBLANK(F3096), \"\", SUM(F3095:F3096))","v":""},"Dalies biudžetas su PVM: 79,8 Eur"]
[]
[]
[]
["256. DALIS","TIRPALAS ODOS DŪRIMO TESTUI  3ML ± 0,5ML - PIENAS"]
[]
["Tiekėjo pasiūlymas:"]
["Nr.","Pavadinimas","Kiekis","Mato vienetas","Įkainis be PVM, Eur","Suma be PVM, Eur","Siūlomo produkto pavadinimas, dozė, kiekis pakuotėje, gamintojas. Būtina pažymėti, kuris vaistas yra  vardinis"]
["256.","Tirpalas odos dūrimo testui  3ml ± 0,5ml - Pienas"]
["256.1.","Tirpalas odos dūrimo testui  3ml ± 0,5ml - Pienas",1,"fl.",null,{"$f":"IF(ISBLANK(E3106),\"\", PRODUCT(C3106,E3106))","v":""}]
[null,null,null,null,"Suma be PVM",{"$f":"IF(F3106=\"\",\"\",SUM(F3106:F3106))","v":""},{"$f":"IF(F3106=\"\",\"Neužpildytos visos objektų kainos\",\"\")","v":"Neužpildytos visos objektų kainos"}]
[null,null,null,null,"PVM suma"]
[null,null,null,null,"Suma su PVM",{"$f":"IF(ISBLANK(F3108), \"\", SUM(F3107:F3108))","v":""},"Dalies biudžetas su PVM: 39,9 Eur"]
[]
[]
[]
["257. DALIS","TIRPALAS ODOS DŪRIMO TESTUI 3ML ±0,5ML - PLUNKSNOS"]
[]
["Tiekėjo pasiūlymas:"]
["Nr.","Pavadinimas","Kiekis","Mato vienetas","Įkainis be PVM, Eur","Suma be PVM, Eur","Siūlomo produkto pavadinimas, dozė, kiekis pakuotėje, gamintojas. Būtina pažymėti, kuris vaistas yra  vardinis"]
["257.","Tirpalas odos dūrimo testui 3ml ±0,5ml - Plunksnos"]
["257.1.","Tirpalas odos dūrimo testui 3ml ±0,5ml - Plunksnos",2,"fl.",null,{"$f":"IF(ISBLANK(E3118),\"\", PRODUCT(C3118,E3118))","v":""}]
[null,null,null,null,"Suma be PVM",{"$f":"IF(F3118=\"\",\"\",SUM(F3118:F3118))","v":""},{"$f":"IF(F3118=\"\",\"Neužpildytos visos objektų kainos\",\"\")","v":"Neužpildytos visos objektų kainos"}]
[null,null,null,null,"PVM suma"]
[null,null,null,null,"Suma su PVM",{"$f":"IF(ISBLANK(F3120), \"\", SUM(F3119:F3120))","v":""},"Dalies biudžetas su PVM: 79,8 Eur"]
[]
[]
[]
["258. DALIS","TIRPALAS ODOS DŪRIMO TESTUI 3ML ±0,5ML - PUŠIS"]
[]
["Tiekėjo pasiūlymas:"]
["Nr.","Pavadinimas","Kiekis","Mato vienetas","Įkainis be PVM, Eur","Suma be PVM, Eur","Siūlomo produkto pavadinimas, dozė, kiekis pakuotėje, gamintojas. Būtina pažymėti, kuris vaistas yra  vardinis"]
["258.","Tirpalas odos dūrimo testui 3ml ±0,5ml - Pušis"]
["258.1.","Tirpalas odos dūrimo testui 3ml ±0,5ml - Pušis",1,"fl.",null,{"$f":"IF(ISBLANK(E3130),\"\", PRODUCT(C3130,E3130))","v":""}]
[null,null,null,null,"Suma be PVM",{"$f":"IF(F3130=\"\",\"\",SUM(F3130:F3130))","v":""},{"$f":"IF(F3130=\"\",\"Neužpildytos visos objektų kainos\",\"\")","v":"Neužpildytos visos objektų kainos"}]
[null,null,null,null,"PVM suma"]
[null,null,null,null,"Suma su PVM",{"$f":"IF(ISBLANK(F3132), \"\", SUM(F3131:F3132))","v":""},"Dalies biudžetas su PVM: 39,9 Eur"]
[]
[]
[]
["259. DALIS","TIRPALAS ODOS DŪRIMO TESTUI 3ML ±0,5ML – ŠUNS PLAUKAI"]
[]
["Tiekėjo pasiūlymas:"]
["Nr.","Pavadinimas","Kiekis","Mato vienetas","Įkainis be PVM, Eur","Suma be PVM, Eur","Siūlomo produkto pavadinimas, dozė, kiekis pakuotėje, gamintojas. Būtina pažymėti, kuris vaistas yra  vardinis"]
["259.","Tirpalas odos dūrimo testui 3ml ±0,5ml – Šuns plaukai"]
["259.1.","Tirpalas odos dūrimo testui 3ml ±0,5ml – Šuns plaukai",2,"fl.",null,{"$f":"IF(ISBLANK(E3142),\"\", PRODUCT(C3142,E3142))","v":""}]
[null,null,null,null,"Suma be PVM",{"$f":"IF(F3142=\"\",\"\",SUM(F3142:F3142))","v":""},{"$f":"IF(F3142=\"\",\"Neužpildytos visos objektų kainos\",\"\")","v":"Neužpildytos visos objektų kainos"}]
[null,null,null,null,"PVM suma"]
[null,null,null,null,"Suma su PVM",{"$f":"IF(ISBLANK(F3144), \"\", SUM(F3143:F3144))","v":""},"Dalies biudžetas su PVM: 79,8 Eur"]
[]
[]
[]
["260. DALIS","TIRPALAS ODOS DŪRIMO TESTUI 3ML ±0,5ML - CANDIDA ALBICANS"]
[]
["Tiekėjo pasiūlymas:"]
["Nr.","Pavadinimas","Kiekis","Mato vienetas","Įkainis be PVM, Eur","Suma be PVM, Eur","Siūlomo produkto pavadinimas, dozė, kiekis pakuotėje, gamintojas. Būtina pažymėti, kuris vaistas yra  vardinis"]
["260.","Tirpalas odos dūrimo testui 3ml ±0,5ml - Candida Albicans"]
["260.1.","Tirpalas odos dūrimo testui 3ml ±0,5ml - Candida Albicans",2,"fl.",null,{"$f":"IF(ISBLANK(E3154),\"\", PRODUCT(C3154,E3154))","v":""}]
[null,null,null,null,"Suma be PVM",{"$f":"IF(F3154=\"\",\"\",SUM(F3154:F3154))","v":""},{"$f":"IF(F3154=\"\",\"Neužpildytos visos objektų kainos\",\"\")","v":"Neužpildytos visos objektų kainos"}]
[null,null,null,null,"PVM suma"]
[null,null,null,null,"Suma su PVM",{"$f":"IF(ISBLANK(F3156), \"\", SUM(F3155:F3156))","v":""},"Dalies biudžetas su PVM: 79,8 Eur"]
[]
[]
[]
["261. DALIS","TIRPALAS ODOS DŪRIMO TESTUI 3ML ±0,5ML - KATĖS PLAUKAI"]
[]
["Tiekėjo pasiūlymas:"]
["Nr.","Pavadinimas","Kiekis","Mato vienetas","Įkainis be PVM, Eur","Suma be PVM, Eur","Siūlomo produkto pavadinimas, dozė, kiekis pakuotėje, gamintojas. Būtina pažymėti, kuris vaistas yra  vardinis"]
["261.","Tirpalas odos dūrimo testui 3ml ±0,5ml - Katės plaukai"]
["261.1.","Tirpalas odos dūrimo testui 3ml ±0,5ml - Katės plaukai",2,"fl.",null,{"$f":"IF(ISBLANK(E3166),\"\", PRODUCT(C3166,E3166))","v":""}]
[null,null,null,null,"Suma be PVM",{"$f":"IF(F3166=\"\",\"\",SUM(F3166:F3166))","v":""},{"$f":"IF(F3166=\"\",\"Neužpildytos visos objektų kainos\",\"\")","v":"Neužpildytos visos objektų kainos"}]
[null,null,null,null,"PVM suma"]
[null,null,null,null,"Suma su PVM",{"$f":"IF(ISBLANK(F3168), \"\", SUM(F3167:F3168))","v":""},"Dalies biudžetas su PVM: 79,8 Eur"]
[]
[]
[]
["262. DALIS","TIRPALAS SU DIMETIKONU  UTELĖMS IR GLINDOMS NAIKINTI, 100 ML PURKŠTI ANT GALVOS ODOS LYGIAVERTIS PARANIT"]
[]
["Tiekėjo pasiūlymas:"]
["Nr.","Pavadinimas","Kiekis","Mato vienetas","Įkainis be PVM, Eur","Suma be PVM, Eur","Siūlomo produkto pavadinimas, dozė, kiekis pakuotėje, gamintojas. Būtina pažymėti, kuris vaistas yra  vardinis"]
["262.","Tirpalas su dimetikonu  utelėms ir glindoms naikinti, 100 ml purkšti ant galvos odos lygiavertis Paranit"]
["262.1.","Tirpalas su dimetikonu  utelėms ir glindoms naikinti, 100 ml purkšti ant galvos odos lygiavertis Paranit",25,"fl.",null,{"$f":"IF(ISBLANK(E3178),\"\", PRODUCT(C3178,E3178))","v":""}]
[null,null,null,null,"Suma be PVM",{"$f":"IF(F3178=\"\",\"\",SUM(F3178:F3178))","v":""},{"$f":"IF(F3178=\"\",\"Neužpildytos visos objektų kainos\",\"\")","v":"Neužpildytos visos objektų kainos"}]
[null,null,null,null,"PVM suma"]
[null,null,null,null,"Suma su PVM",{"$f":"IF(ISBLANK(F3180), \"\", SUM(F3179:F3180))","v":""},"Dalies biudžetas su PVM: 294,26 Eur"]
[]
[]
[]
["263. DALIS","TOCOFEROL 300 MG/ML 10 ML"]
[]
["Tiekėjo pasiūlymas:"]
["Nr.","Pavadinimas","Kiekis","Mato vienetas","Įkainis be PVM, Eur","Suma be PVM, Eur","Siūlomo produkto pavadinimas, dozė, kiekis pakuotėje, gamintojas. Būtina pažymėti, kuris vaistas yra  vardinis"]
["263.","Tocoferol 300 mg/ml 10 ml"]
["263.1.","Tocoferol 300 mg/ml 10 ml",5,"fl",null,{"$f":"IF(ISBLANK(E3190),\"\", PRODUCT(C3190,E3190))","v":""}]
[null,null,null,null,"Suma be PVM",{"$f":"IF(F3190=\"\",\"\",SUM(F3190:F3190))","v":""},{"$f":"IF(F3190=\"\",\"Neužpildytos visos objektų kainos\",\"\")","v":"Neužpildytos visos objektų kainos"}]
[null,null,null,null,"PVM suma"]
[null,null,null,null,"Suma su PVM",{"$f":"IF(ISBLANK(F3192), \"\", SUM(F3191:F3192))","v":""},"Dalies biudžetas su PVM: 25,1 Eur"]
[]
[]
[]
["264. DALIS","TORAZEMIDAS 20 MG 4 ML "]
[]
["Tiekėjo pasiūlymas:"]
["Nr.","Pavadinimas","Kiekis","Mato vienetas","Įkainis be PVM, Eur","Suma be PVM, Eur","Siūlomo produkto pavadinimas, dozė, kiekis pakuotėje, gamintojas. Būtina pažymėti, kuris vaistas yra  vardinis"]
["264.","Torazemidas 20 mg 4 ml "]
["264.1.","Torazemidas 20 mg 4 ml ",200,"amp.",null,{"$f":"IF(ISBLANK(E3202),\"\", PRODUCT(C3202,E3202))","v":""}]
[null,null,null,null,"Suma be PVM",{"$f":"IF(F3202=\"\",\"\",SUM(F3202:F3202))","v":""},{"$f":"IF(F3202=\"\",\"Neužpildytos visos objektų kainos\",\"\")","v":"Neužpildytos visos objektų kainos"}]
[null,null,null,null,"PVM suma"]
[null,null,null,null,"Suma su PVM",{"$f":"IF(ISBLANK(F3204), \"\", SUM(F3203:F3204))","v":""},"Dalies biudžetas su PVM: 205,8 Eur"]
[]
[]
[]
["265. DALIS","TRANEKSAMO RŪGŠTIS 500MG"]
[]
["Tiekėjo pasiūlymas:"]
["Nr.","Pavadinimas","Kiekis","Mato vienetas","Įkainis be PVM, Eur","Suma be PVM, Eur","Siūlomo produkto pavadinimas, dozė, kiekis pakuotėje, gamintojas. Būtina pažymėti, kuris vaistas yra  vardinis"]
["265.","Traneksamo rūgštis 500mg"]
["265.1.","Traneksamo rūgštis 500mg",800,"amp.",null,{"$f":"IF(ISBLANK(E3214),\"\", PRODUCT(C3214,E3214))","v":""}]
[null,null,null,null,"Suma be PVM",{"$f":"IF(F3214=\"\",\"\",SUM(F3214:F3214))","v":""},{"$f":"IF(F3214=\"\",\"Neužpildytos visos objektų kainos\",\"\")","v":"Neužpildytos visos objektų kainos"}]
[null,null,null,null,"PVM suma"]
[null,null,null,null,"Suma su PVM",{"$f":"IF(ISBLANK(F3216), \"\", SUM(F3215:F3216))","v":""},"Dalies biudžetas su PVM: 840 Eur"]
[]
[]
[]
["266. DALIS","TRYPANO MĖLYNASIS 1,6 MG 1 ML "]
[]
["Tiekėjo pasiūlymas:"]
["Nr.","Pavadinimas","Kiekis","Mato vienetas","Įkainis be PVM, Eur","Suma be PVM, Eur","Siūlomo produkto pavadinimas, dozė, kiekis pakuotėje, gamintojas. Būtina pažymėti, kuris vaistas yra  vardinis"]
["266.","Trypano mėlynasis 1,6 mg 1 ml "]
["266.1.","Trypano mėlynasis 1,6 mg 1 ml ",30,"amp.",null,{"$f":"IF(ISBLANK(E3226),\"\", PRODUCT(C3226,E3226))","v":""}]
[null,null,null,null,"Suma be PVM",{"$f":"IF(F3226=\"\",\"\",SUM(F3226:F3226))","v":""},{"$f":"IF(F3226=\"\",\"Neužpildytos visos objektų kainos\",\"\")","v":"Neužpildytos visos objektų kainos"}]
[null,null,null,null,"PVM suma"]
[null,null,null,null,"Suma su PVM",{"$f":"IF(ISBLANK(F3228), \"\", SUM(F3227:F3228))","v":""},"Dalies biudžetas su PVM: 191,84 Eur"]
[]
[]
[]
["267. DALIS","TUBERCULIN 5TU/0,1ML 1ML"]
[]
["Tiekėjo pasiūlymas:"]
["Nr.","Pavadinimas","Kiekis","Mato vienetas","Įkainis be PVM, Eur","Suma be PVM, Eur","Siūlomo produkto pavadinimas, dozė, kiekis pakuotėje, gamintojas. Būtina pažymėti, kuris vaistas yra  vardinis"]
["267.","Tuberculin 5TU/0,1ml 1ml"]
["267.1.","Tuberculin 5TU/0,1ml 1ml",360,"amp.",null,{"$f":"IF(ISBLANK(E3238),\"\", PRODUCT(C3238,E3238))","v":""}]
[null,null,null,null,"Suma be PVM",{"$f":"IF(F3238=\"\",\"\",SUM(F3238:F3238))","v":""},{"$f":"IF(F3238=\"\",\"Neužpildytos visos objektų kainos\",\"\")","v":"Neužpildytos visos objektų kainos"}]
[null,null,null,null,"PVM suma"]
[null,null,null,null,"Suma su PVM",{"$f":"IF(ISBLANK(F3240), \"\", SUM(F3239:F3240))","v":""},"Dalies biudžetas su PVM: 3528 Eur"]
[]
[]
[]
["268. DALIS","UREA"]
[]
["Tiekėjo pasiūlymas:"]
["Nr.","Pavadinimas","Kiekis","Mato vienetas","Įkainis be PVM, Eur","Suma be PVM, Eur","Siūlomo produkto pavadinimas, dozė, kiekis pakuotėje, gamintojas. Būtina pažymėti, kuris vaistas yra  vardinis"]
["268.","Urea"]
["268.1.","Urea",2,"kg",null,{"$f":"IF(ISBLANK(E3250),\"\", PRODUCT(C3250,E3250))","v":""}]
[null,null,null,null,"Suma be PVM",{"$f":"IF(F3250=\"\",\"\",SUM(F3250:F3250))","v":""},{"$f":"IF(F3250=\"\",\"Neužpildytos visos objektų kainos\",\"\")","v":"Neužpildytos visos objektų kainos"}]
[null,null,null,null,"PVM suma"]
[null,null,null,null,"Suma su PVM",{"$f":"IF(ISBLANK(F3252), \"\", SUM(F3251:F3252))","v":""},"Dalies biudžetas su PVM: 105 Eur"]
[]
[]
[]
["269. DALIS","VALERIJONŲ (VALERIANA OFFICINALIS) ŠAKNYS/APYNIŲ (HUMULUS LUPULUS) SPURGAI/MELISŲ (MELISSA OFFICINALIS) LAPAI/SUKATŽOLĖS (LEONURUS CARDIACA) ŽOLĖ/ 170 MG/50 MG/50 MG/50 MG "]
[]
["Tiekėjo pasiūlymas:"]
["Nr.","Pavadinimas","Kiekis","Mato vienetas","Įkainis be PVM, Eur","Suma be PVM, Eur","Siūlomo produkto pavadinimas, dozė, kiekis pakuotėje, gamintojas. Būtina pažymėti, kuris vaistas yra  vardinis"]
["269.","Valerijonų (Valeriana officinalis) šaknys/Apynių (Humulus lupulus) spurgai/Melisų (Melissa officinalis) lapai/Sukatžolės (Leonurus cardiaca) žolė/ 170 mg/50 mg/50 mg/50 mg "]
["269.1.","Valerijonų (Valeriana officinalis) šaknys/Apynių (Humulus lupulus) spurgai/Melisų (Melissa officinalis) lapai/Sukatžolės (Leonurus cardiaca) žolė/ 170 mg/50 mg/50 mg/50 mg ",90,"tab.",null,{"$f":"IF(ISBLANK(E3262),\"\", PRODUCT(C3262,E3262))","v":""}]
[null,null,null,null,"Suma be PVM",{"$f":"IF(F3262=\"\",\"\",SUM(F3262:F3262))","v":""},{"$f":"IF(F3262=\"\",\"Neužpildytos visos objektų kainos\",\"\")","v":"Neužpildytos visos objektų kainos"}]
[null,null,null,null,"PVM suma"]
[null,null,null,null,"Suma su PVM",{"$f":"IF(ISBLANK(F3264), \"\", SUM(F3263:F3264))","v":""},"Dalies biudžetas su PVM: 6,62 Eur"]
[]
[]
[]
["270. DALIS","VALSARTANAS 320 MG"]
[]
["Tiekėjo pasiūlymas:"]
["Nr.","Pavadinimas","Kiekis","Mato vienetas","Įkainis be PVM, Eur","Suma be PVM, Eur","Siūlomo produkto pavadinimas, dozė, kiekis pakuotėje, gamintojas. Būtina pažymėti, kuris vaistas yra  vardinis"]
["270.","Valsartanas 320 mg"]
["270.1.","Valsartanas 320 mg",168,"tab.",null,{"$f":"IF(ISBLANK(E3274),\"\", PRODUCT(C3274,E3274))","v":""}]
[null,null,null,null,"Suma be PVM",{"$f":"IF(F3274=\"\",\"\",SUM(F3274:F3274))","v":""},{"$f":"IF(F3274=\"\",\"Neužpildytos visos objektų kainos\",\"\")","v":"Neužpildytos visos objektų kainos"}]
[null,null,null,null,"PVM suma"]
[null,null,null,null,"Suma su PVM",{"$f":"IF(ISBLANK(F3276), \"\", SUM(F3275:F3276))","v":""},"Dalies biudžetas su PVM: 116,42 Eur"]
[]
[]
[]
["271. DALIS","VANDENYJE TIRPIŲ VITAMINŲ MIŠINYS 10 ML "]
[]
["Tiekėjo pasiūlymas:"]
["Nr.","Pavadinimas","Kiekis","Mato vienetas","Įkainis be PVM, Eur","Suma be PVM, Eur","Siūlomo produkto pavadinimas, dozė, kiekis pakuotėje, gamintojas. Būtina pažymėti, kuris vaistas yra  vardinis"]
["271.","Vandenyje tirpių vitaminų mišinys 10 ml "]
["271.1.","Vandenyje tirpių vitaminų mišinys 10 ml ",100,"amp.",6,{"$f":"IF(ISBLANK(E3286),\"\", PRODUCT(C3286,E3286))","v":600},"Soluvit 10ml, milt.infuz.tirpalui, N10, gamintojas Fresenius Kabi AB, Švedija, Vardinis"]
[null,null,null,null,"Suma be PVM",{"$f":"IF(F3286=\"\",\"\",SUM(F3286:F3286))","v":600},{"$f":"IF(F3286=\"\",\"Neužpildytos visos objektų kainos\",\"\")","v":""}]
[null,null,null,null,"PVM suma",{"$f":"F3287*0.05","v":30}]
[null,null,null,null,"Suma su PVM",{"$f":"IF(ISBLANK(F3288), \"\", SUM(F3287:F3288))","v":630},"Dalies biudžetas su PVM: 630 Eur"]
[]
[]
[]
["272. DALIS","VASELINUM FLAVUM"]
[]
["Tiekėjo pasiūlymas:"]
["Nr.","Pavadinimas","Kiekis","Mato vienetas","Įkainis be PVM, Eur","Suma be PVM, Eur","Siūlomo produkto pavadinimas, dozė, kiekis pakuotėje, gamintojas. Būtina pažymėti, kuris vaistas yra  vardinis"]
["272.","Vaselinum flavum"]
["272.1.","Vaselinum flavum",165,"kg",null,{"$f":"IF(ISBLANK(E3298),\"\", PRODUCT(C3298,E3298))","v":""}]
[null,null,null,null,"Suma be PVM",{"$f":"IF(F3298=\"\",\"\",SUM(F3298:F3298))","v":""},{"$f":"IF(F3298=\"\",\"Neužpildytos visos objektų kainos\",\"\")","v":"Neužpildytos visos objektų kainos"}]
[null,null,null,null,"PVM suma"]
[null,null,null,null,"Suma su PVM",{"$f":"IF(ISBLANK(F3300), \"\", SUM(F3299:F3300))","v":""},"Dalies biudžetas su PVM: 1624,22 Eur"]
[]
[]
[]
["273. DALIS","VERAPAMILIO HIDROCHLORIDAS 5MG/2ML"]
[]
["Tiekėjo pasiūlymas:"]
["Nr.","Pavadinimas","Kiekis","Mato vienetas","Įkainis be PVM, Eur","Suma be PVM, Eur","Siūlomo produkto pavadinimas, dozė, kiekis pakuotėje, gamintojas. Būtina pažymėti, kuris vaistas yra  vardinis"]
["273.","Verapamilio hidrochloridas 5mg/2ml"]
["273.1.","Verapamilio hidrochloridas 5mg/2ml",200,"amp.",null,{"$f":"IF(ISBLANK(E3310),\"\", PRODUCT(C3310,E3310))","v":""}]
[null,null,null,null,"Suma be PVM",{"$f":"IF(F3310=\"\",\"\",SUM(F3310:F3310))","v":""},{"$f":"IF(F3310=\"\",\"Neužpildytos visos objektų kainos\",\"\")","v":"Neužpildytos visos objektų kainos"}]
[null,null,null,null,"PVM suma"]
[null,null,null,null,"Suma su PVM",{"$f":"IF(ISBLANK(F3312), \"\", SUM(F3311:F3312))","v":""},"Dalies biudžetas su PVM: 210 Eur"]
[]
[]
[]
["274. DALIS","VIT B1-15 MG, B2 - 15 MG, NIACINAS -50 MG, PANTOTENO R. -25 MG, B6-10 MCG, B12 - 10 MG, BIOTINO -150 MCG (LYGIAVERTIS MULTI B STRONG)"]
[]
["Tiekėjo pasiūlymas:"]
["Nr.","Pavadinimas","Kiekis","Mato vienetas","Įkainis be PVM, Eur","Suma be PVM, Eur","Siūlomo produkto pavadinimas, dozė, kiekis pakuotėje, gamintojas. Būtina pažymėti, kuris vaistas yra  vardinis"]
["274.","Vit B1-15 mg, B2 - 15 mg, Niacinas -50 mg, Pantoteno r. -25 mg, B6-10 mcg, B12 - 10 mg, Biotino -150 mcg (lygiavertis Multi B strong)"]
["274.1.","Vit B1-15 mg, B2 - 15 mg, Niacinas -50 mg, Pantoteno r. -25 mg, B6-10 mcg, B12 - 10 mg, Biotino -150 mcg (lygiavertis Multi B strong)",1000,"tab.",null,{"$f":"IF(ISBLANK(E3322),\"\", PRODUCT(C3322,E3322))","v":""}]
[null,null,null,null,"Suma be PVM",{"$f":"IF(F3322=\"\",\"\",SUM(F3322:F3322))","v":""},{"$f":"IF(F3322=\"\",\"Neužpildytos visos objektų kainos\",\"\")","v":"Neužpildytos visos objektų kainos"}]
[null,null,null,null,"PVM suma"]
[null,null,null,null,"Suma su PVM",{"$f":"IF(ISBLANK(F3324), \"\", SUM(F3323:F3324))","v":""},"Dalies biudžetas su PVM: 105 Eur"]
[]
[]
[]
["275. DALIS","VITAMINAS D3 ALIEJINIS TIRPALAS"]
[]
["Tiekėjo pasiūlymas:"]
["Nr.","Pavadinimas","Kiekis","Mato vienetas","Įkainis be PVM, Eur","Suma be PVM, Eur","Siūlomo produkto pavadinimas, dozė, kiekis pakuotėje, gamintojas. Būtina pažymėti, kuris vaistas yra  vardinis"]
["275.","Vitaminas D3 aliejinis tirpalas"]
["275.1.","Vitaminas D3 aliejinis tirpalas",600,"ml",null,{"$f":"IF(ISBLANK(E3334),\"\", PRODUCT(C3334,E3334))","v":""}]
[null,null,null,null,"Suma be PVM",{"$f":"IF(F3334=\"\",\"\",SUM(F3334:F3334))","v":""},{"$f":"IF(F3334=\"\",\"Neužpildytos visos objektų kainos\",\"\")","v":"Neužpildytos visos objektų kainos"}]
[null,null,null,null,"PVM suma"]
[null,null,null,null,"Suma su PVM",{"$f":"IF(ISBLANK(F3336), \"\", SUM(F3335:F3336))","v":""},"Dalies biudžetas su PVM: 315 Eur"]
[]
[]
[]
["276. DALIS","ZINCI OXYDUM"]
[]
["Tiekėjo pasiūlymas:"]
["Nr.","Pavadinimas","Kiekis","Mato vienetas","Įkainis be PVM, Eur","Suma be PVM, Eur","Siūlomo produkto pavadinimas, dozė, kiekis pakuotėje, gamintojas. Būtina pažymėti, kuris vaistas yra  vardinis"]
["276.","Zinci oxydum"]
["276.1.","Zinci oxydum",4,"kg",null,{"$f":"IF(ISBLANK(E3346),\"\", PRODUCT(C3346,E3346))","v":""}]
[null,null,null,null,"Suma be PVM",{"$f":"IF(F3346=\"\",\"\",SUM(F3346:F3346))","v":""},{"$f":"IF(F3346=\"\",\"Neužpildytos visos objektų kainos\",\"\")","v":"Neužpildytos visos objektų kainos"}]
[null,null,null,null,"PVM suma"]
[null,null,null,null,"Suma su PVM",{"$f":"IF(ISBLANK(F3348), \"\", SUM(F3347:F3348))","v":""},"Dalies biudžetas su PVM: 105 Eur"]
[]
[]
[]
["277. DALIS","GERIAMASIS ENTERINIS MAITINIMO MIŠINYS SU PADIDINTU BALTYMŲ, CINKO  IR ARGININO KIEKIU"]
[]
["Tiekėjo pasiūlymas:"]
["Nr.","Pavadinimas","Kiekis","Mato vienetas","Įkainis be PVM, Eur","Suma be PVM, Eur","Siūlomo produkto pavadinimas, dozė, kiekis pakuotėje, gamintojas. Būtina pažymėti, kuris vaistas yra  vardinis"]
["277.","Geriamasis enterinis maitinimo mišinys su padidintu baltymų, cinko  ir arginino kiekiu"]
["277.1.","Geriamasis enterinis maitinimo mišinys su padidintu baltymų, cinko  ir arginino kiekiu",500,"litrai",null,{"$f":"IF(ISBLANK(E3358),\"\", PRODUCT(C3358,E3358))","v":""}]
["277.1.1.","Geriamasis enterinis mišinys su padidintu baltymų ir arginino bei cinko  kiekiu, skirtas pacientams su įvairaus laipsnio mitybos nepakankamumu ir pragulomis, sunkiai gyjančiomis žaizdomis"]
["277.1.2.","Visavertis, subalansuotas, su mikro - makroelementais, vitaminais"]
["277.1.3.","Enterinio mišinio energinė vertė - ne mažiau nei 1.2 kcal/ml."]
["277.1.4.","Baltymai - ne mažiau nei 8 g/100 ml produkto."]
["277.1.5.","Su L-argininu (ne mažiau nei 1.2 g / 100 ml)."]
["277.1.6.","Su padidintu kiekiu cinko (ne mažiau nei 4,5mg/100 ml)."]
["277.1.7.","Be gliuteno, skaidulų ne daugiau nei 0.5 g/100 ml."]
["277.1.8.","Ne mažiau nei 2 skirtingų skonių."]
["277.1.9.","Pakuotės dydis 125-200 ml."]
["277.1.10.","Pateikti dokumentus (gali būti prekės katalogas, aprašas) įrodymui, ar siūlomas pirkimo objektas atitinka techninėje specifikacijoje nurodytus reikalavimus. Prašome pažymėti prekės kataloge vietas įrodančias siūlomo parametro reikšmę."]
[null,null,null,null,"Suma be PVM",{"$f":"IF((COUNT(C3358:C3368)<>COUNT(F3358:F3368)),\"\", SUM(F3358:F3368))","v":""},{"$f":"IF((COUNT(C3358:C3368)<>COUNT(F3358:F3368)),\"Neužpildytos visų objektų kainos\", \"\")","v":"Neužpildytos visų objektų kainos"}]
[null,null,null,null,"PVM suma"]
[null,null,null,null,"Suma su PVM",{"$f":"IF(ISBLANK(F3370), \"\", SUM(F3369:F3370))","v":""},"Dalies biudžetas su PVM: 4573,8 Eur"]
[]
[]
[]
["278. DALIS","MAISTO IR SKYSČIŲ TIRŠTIKLIS"]
[]
["Tiekėjo pasiūlymas:"]
["Nr.","Pavadinimas","Kiekis","Mato vienetas","Įkainis be PVM, Eur","Suma be PVM, Eur","Siūlomo produkto pavadinimas, dozė, kiekis pakuotėje, gamintojas. Būtina pažymėti, kuris vaistas yra  vardinis"]
["278.","Maisto ir skysčių tirštiklis"]
["278.1.","Maisto ir skysčių tirštiklis",15,"kg",null,{"$f":"IF(ISBLANK(E3380),\"\", PRODUCT(C3380,E3380))","v":""}]
["278.1.1.","Specialios medicininės paskirties maisto ir skysčių tirštiklis, skirtas pacientų su disfagija maitinimui (skysčių sutirštinimui)"]
["278.1.2.","Su atsparumo amilazei savybe."]
["278.1.3.","Gali būti dedamas į šaltus ir karštus gėrimus, maitinimo mišinius, sriubas ir košės pavidalo patiekalus."]
["278.1.4.","Nekeičia pagrindinio patiekalo ar gėrimo skonio."]
["278.1.5.","Sutirštintą patiekalą turi būti galima pašildyti, atšaldyti ar užšaldyti nepakeičiant jo konsistensijos. Konsistenciją turi išlaikyti ne mažiau  nei 2 val."]
["278.1.6.","Pakuotės dydis ne didesnis nei 300 g."]
["278.1.7.","Pateikti dokumentus (gali būti prekės katalogas, aprašas) įrodymui, ar siūlomas pirkimo objektas atitinka techninėje specifikacijoje nurodytus reikalavimus. Prašome pažymėti prekės kataloge vietas įrodančias siūlomo parametro reikšmę."]
[null,null,null,null,"Suma be PVM",{"$f":"IF((COUNT(C3380:C3387)<>COUNT(F3380:F3387)),\"\", SUM(F3380:F3387))","v":""},{"$f":"IF((COUNT(C3380:C3387)<>COUNT(F3380:F3387)),\"Neužpildytos visų objektų kainos\", \"\")","v":"Neužpildytos visų objektų kainos"}]
[null,null,null,null,"PVM suma"]
[null,null,null,null,"Suma su PVM",{"$f":"IF(ISBLANK(F3389), \"\", SUM(F3388:F3389))","v":""},"Dalies biudžetas su PVM: 635,25 Eur"]

{"sheet":"Subtiekėjai ir priedai","index":1,"n_rows":82,"n_cols":11,"rows_kept":82,"cut":false,"hidden":false,"merged":[[14,2,14,4],[13,2,13,4],[12,2,12,4],[14,0,14,1],[13,0,13,1],[12,0,12,1],[14,8,14,9],[13,8,13,9],[12,8,12,9],[14,5,14,7],[13,5,13,7],[12,5,12,7],[5,5,5,7],[5,0,5,1],[9,0,9,10],[11,8,11,9],[11,5,11,7],[11,2,11,4],[11,0,11,1],[1,0,2,10],[16,0,16,9],[7,5,7,7],[6,5,6,7],[7,8,7,9],[6,8,6,9],[7,0,7,1],[6,0,6,1],[7,2,7,4],[6,2,6,4],[5,2,5,4],[5,8,5,9],[4,8,4,9],[4,5,4,7],[4,2,4,4],[4,0,4,1],[18,0,18,9],[20,7,20,9],[20,1,20,6],[23,7,23,9],[22,7,22,9],[21,7,21,9],[23,1,23,6],[22,1,22,6],[21,1,21,6],[27,1,27,6],[26,1,26,6],[25,1,25,6],[24,7,24,9],[24,1,24,6],[32,4,32,9],[34,4,34,9],[29,0,29,9],[34,0,34,3],[32,0,32,3],[27,7,27,9],[26,7,26,9],[25,7,25,9]]}
[]
["Ūkio subjektai (įskaitant kvazisubtiekėjus - fiziniai asmenys, kuriuos ketinama įdarbinti pirkimo laimėjimo atveju), kurių pajėgumais tiekėjas remiasi, kad atitiktų keliamus kvalifikacijos reikalavimus:"]
[]
[]
["Pavadinimas*",null,"Kodas, adresas",null,null,"Perduodami įsipareigojimai",null,null,"Perduodamų įsipareigojimų dalis nuo visos pirkimo sutarties (Eur arba %)",null,"Kval. Reikalavimo Nr."]
[]
[]
[]
[]
["Subtiekėjams / subteikėjams / subrangovams numatomos perduoti veiklos (privaloma nurodyti) ir šių ūkio subjektų pavadinimai (jei žinomi):"]
[]
["Pavadinimas",null,"Kodas, adresas",null,null,"Perduodama veikla*",null,null,"Perduodamos veiklos dalis nuo visos pirkimo sutarties (Eur arba %)"]
[]
[]
[]
[]
[]
[]
["Kartu su pasiūlymu pateikiami šie dokumentai:"]
[]
["Nr.","Dokumento  pavadinimas",null,null,null,null,null,"Dokumentas yra konfidencialus? Taip/Ne"]
[1,"Jungtinės veiklos kopija (jei taikoma)"]
[2,"Europos bendrasis viešųjų pirkimų dokumentas",null,null,null,null,null,"Taip"]
[3,"Subtiekimo sutartis, ketinimų protokolas, preliminarios sutartys ar kiti dokumentai, patvirtinantys, kad laimėjus pirkimą tiekėjui bus prieinami kitų ūkio subjektų ištekliai (jei pasitelkiami kvalifikacijos atitikimui)"]
[4,"ĮG2022.01_02 Igaliojimas konkursams Daina Virksaite",null,null,null,null,null,"Taip"]
[5,"Irigaciniai tirpalai_katalogas",null,null,null,null,null,"Ne"]
[6,"Natrio Chloridas irigacijai 500ml",null,null,null,null,null,"Ne"]
[7,"Natrio Chloridas irigacijai 3000ml naudojimo instrukcija\nNatrio Chloridas irigacijai 3000ml aprasymas",null,null,null,null,null,"Ne"]
[]
["Pasiūlyme nurodyta Prekės kaina, išskyrus jos sudedamąsias dalis, subtiekėjai, taip pat kita informacija, kuri teisės aktų nustatyta tvarka turi būti skelbiama arba kitokiu būdu viešai prieinama visuomenei, nėra laikoma konfidencialia informacija. Konfidencialią informaciją sudaro, visų pirma, komercinė (gamybinė) paslaptis ir konfidencialieji pasiūlymų aspektai. Informacija, kurią viešai skelbti įpareigoja Lietuvos Respublikos įstatymai, negali būti tiekėjo nurodoma kaip konfidenciali, todėl, tiekėjui nurodžius tokią informaciją kaip konfidencialią, perkančioji organizacija turi teisę ją skelbti. Jei tiekėjas nenurodo konfidencialios informacijos, laikoma, kad konfidencialios informacijos tiekėjo pasiūlyme nėra. Vadovaujantis Informacijos viešinimo Centrinėje viešųjų pirkimų informacinėje sistemoje tvarkos aprašu, patvirtintu Viešųjų pirkimų tarnybos direktoriaus 2017 m. birželio 19 d. įsakymu Nr. 1S-91 „Dėl Informacijos viešinimo Centrinėje viešųjų pirkimų informacinėje sistemoje tvarkos aprašo patvirtinimo“, perkančioji organizacija laimėjusio dalyvio pasiūlymą, išskyrus informaciją, kurią tiekėjas nurodė kaip konfidencialią, paskelbs CVP IS."]
[]
[]
["Tiekėjo arba jo įgalioto asmens pareigų pavadinimas:",null,null,null,"Komercijos vadovė"]
[]
["Pasirašančio asmens vardas ir pavardė:",null,null,null,"Daina Virkšaitė"]
[]
[]
[]
[]
[]
[]
[]
[]
[]
[]
[]
[]
[]
[]
[]
[]
[]
[]
[]
[]
[]
[]
[]
[]
[]
[]
[]
[]
[]
[]
[]
[]
[]
[]
[]
[]
[]
[]
[]
[]
[]
[]
[]
[]
[]
[]
["6874-2 2022-04-01 21:15:47"]